Workbook

Sheet Main
E2: CQG NYSE and Nasdaq Performance Dashboard | Y2: =RTD("cqg.rtd", ,"SystemInfo", "Linetime") -> 43186.44668
B4: Description | F4: Net | G4: % Net | I4: Open | J4: High | K4: Low | L4: 5-minute Charts | R4: Description | U4: Last | V4: Net | W4: % Net | Y4: Open | Z4: High | AA4: Low
F5: Change | G5: Change | U5: Price | V5: Change | W5: Change
A6: =Symbols!C5 -> X.US.SPC | B6: =RTD("cqg.rtd",,"ContractData",A6,"LongDescription",,"T")&" ("&RIGHT(A6,LEN(A6)-5)&")" -> S&P 500 (SPC) | E6: =IFERROR(RTD("cqg.rtd", ,"ContractData",A6, "LastTrade",, "T"),"") -> 2668.17 | F6: =IFERROR(RTD("cqg.rtd", ,"ContractData",A6, "NetChange",, "T"),"") -> 9.15 | G6: =IFERROR(RTD("cqg.rtd", ,"ContractData",A6, "PerCentNetLastTrade",, "T")/100,"") -> 0.003618513852 | H6: =G6 -> 0.003618513852 | I6: =IFERROR(RTD("cqg.rtd", ,"ContractData",A6, "Open",, "T"),"") -> 2667.57 | J6: =IFERROR(RTD("cqg.rtd", ,"ContractData",A6, "High",, "T"),"") -> 2668.65 | K6: =IFERROR(RTD("cqg.rtd", ,"ContractData",A6, "Low",, "T"),"") -> 2652.57 | L6: =B6 -> S&P 500 (SPC) | R6: =IFERROR(RTD("cqg.rtd", ,"ContractData",AB6, "LongDescription",, "T"),"")&" ("&RIGHT(AB6,LEN(AB6)-5)&")" -> NASDAQ Composite Index (NQCOMP) | U6: =IFERROR(RTD("cqg.rtd", ,"ContractData",AB6, "LastTrade",, "T"),"") -> 7228.52 | V6: =IFERROR(RTD("cqg.rtd", ,"ContractData",AB6, "NetChange",, "T"),"") -> 7.98 | W6: =IFERROR(RTD("cqg.rtd", ,"ContractData",AB6, "PerCentNetLastTrade",, "T")/100,"") -> 0.001105180499 | X6: =W6 -> 0.001105180499 | Y6: =IFERROR(RTD("cqg.rtd", ,"ContractData",AB6, "Open",, "T"),"") -> 7255.47 | Z6: =IFERROR(RTD("cqg.rtd", ,"ContractData",AB6, "High",, "T"),"") -> 7255.54 | AA6: =IFERROR(RTD("cqg.rtd", ,"ContractData",AB6, "Low",, "T"),"") -> 7195.69 | AB6: =Symbols!H5 -> X.US.NQCOMP
A7: =Symbols!C6 -> X.US.DJI | B7: =RTD("cqg.rtd",,"ContractData",A7,"LongDescription",,"T")&" ("&RIGHT(A7,LEN(A7)-5)&")" -> DJ Industrial Average (DJI) | E7: =IFERROR(RTD("cqg.rtd", ,"ContractData",A7, "LastTrade",, "T"),"") -> 24369.2 | F7: =IFERROR(RTD("cqg.rtd", ,"ContractData",A7, "NetChange",, "T"),"") -> 161.8 | G7: =IFERROR(RTD("cqg.rtd", ,"ContractData",A7, "PerCentNetLastTrade",, "T")/100,"") -> 0.006883557965 | H7: 0.006883557965 | I7: =IFERROR(RTD("cqg.rtd", ,"ContractData",A7, "Open",, "T"),"") -> 24276.6 | J7: =IFERROR(RTD("cqg.rtd", ,"ContractData",A7, "High",, "T"),"") -> 24369.3 | K7: =IFERROR(RTD("cqg.rtd", ,"ContractData",A7, "Low",, "T"),"") -> 24161.1 | R7: =IFERROR(RTD("cqg.rtd", ,"ContractData",AB7, "LongDescription",, "T"),"")&" ("&RIGHT(AB7,LEN(AB7)-5)&")" -> NASDAQ-100 Index (NDX) | U7: =IFERROR(RTD("cqg.rtd", ,"ContractData",AB7, "LastTrade",, "T"),"") -> 6767.75 | V7: =IFERROR(RTD("cqg.rtd", ,"ContractData",AB7, "NetChange",, "T"),"") -> 13.92 | W7: =IFERROR(RTD("cqg.rtd", ,"ContractData",AB7, "PerCentNetLastTrade",, "T")/100,"") -> 0.002061052766 | X7: 0.002061052766 | Y7: =IFERROR(RTD("cqg.rtd", ,"ContractData",AB7, "Open",, "T"),"") -> 6791.39 | Z7: =IFERROR(RTD("cqg.rtd", ,"ContractData",AB7, "High",, "T"),"") -> 6793.5 | AA7: =IFERROR(RTD("cqg.rtd", ,"ContractData",AB7, "Low",, "T"),"") -> 6733.05 | AB7: =Symbols!H6 -> X.US.NDX
A8: =Symbols!C7 -> X.US.NYK | B8: =RTD("cqg.rtd",,"ContractData",A8,"LongDescription",,"T")&" ("&RIGHT(A8,LEN(A8)-5)&")" -> NYSE Financial Index (NYK) | E8: =IFERROR(RTD("cqg.rtd", ,"ContractData",A8, "LastTrade",, "T"),"") -> 8053.94 | F8: =IFERROR(RTD("cqg.rtd", ,"ContractData",A8, "NetChange",, "T"),"") -> 16.7 | G8: =IFERROR(RTD("cqg.rtd", ,"ContractData",A8, "PerCentNetLastTrade",, "T")/100,"") -> 0.002077827712 | H8: 0.002077827712 | I8: =IFERROR(RTD("cqg.rtd", ,"ContractData",A8, "Open",, "T"),"") -> 8054.63 | J8: =IFERROR(RTD("cqg.rtd", ,"ContractData",A8, "High",, "T"),"") -> 8055.73 | K8: =IFERROR(RTD("cqg.rtd", ,"ContractData",A8, "Low",, "T"),"") -> 8009.29 | R8: =IFERROR(RTD("cqg.rtd", ,"ContractData",AB8, "LongDescription",, "T"),"")&" ("&RIGHT(AB8,LEN(AB8)-5)&")" -> NASDAQ Financial 100 (IXF) | U8: =IFERROR(RTD("cqg.rtd", ,"ContractData",AB8, "LastTrade",, "T"),"") -> 4649.92 | V8: =IFERROR(RTD("cqg.rtd", ,"ContractData",AB8, "NetChange",, "T"),"") -> 3.82 | W8: =IFERROR(RTD("cqg.rtd", ,"ContractData",AB8, "PerCentNetLastTrade",, "T")/100,"") -> 0.0008221949592 | X8: 0.0008221949592 | Y8: =IFERROR(RTD("cqg.rtd", ,"ContractData",AB8, "Open",, "T"),"") -> 4667.87 | Z8: =IFERROR(RTD("cqg.rtd", ,"ContractData",AB8, "High",, "T"),"") -> 4667.87 | AA8: =IFERROR(RTD("cqg.rtd", ,"ContractData",AB8, "Low",, "T"),"") -> 4628.52 | AB8: =Symbols!H7 -> X.US.IXF
A9: =Symbols!C8 -> X.US.BTK | B9: =RTD("cqg.rtd",,"ContractData",A9,"LongDescription",,"T")&" ("&RIGHT(A9,LEN(A9)-5)&")" -> Biotechnology Index (BTK) | E9: =IFERROR(RTD("cqg.rtd", ,"ContractData",A9, "LastTrade",, "T"),"") -> 4595.93 | F9: =IFERROR(RTD("cqg.rtd", ,"ContractData",A9, "NetChange",, "T"),"") -> -31.11 | G9: =IFERROR(RTD("cqg.rtd", ,"ContractData",A9, "PerCentNetLastTrade",, "T")/100,"") -> -0.006723520869 | H9: -0.006723520869 | I9: =IFERROR(RTD("cqg.rtd", ,"ContractData",A9, "Open",, "T"),"") -> 4644.94 | J9: =IFERROR(RTD("cqg.rtd", ,"ContractData",A9, "High",, "T"),"") -> 4644.94 | K9: =IFERROR(RTD("cqg.rtd", ,"ContractData",A9, "Low",, "T"),"") -> 4572.09 | R9: =IFERROR(RTD("cqg.rtd", ,"ContractData",AB9, "LongDescription",, "T"),"")&" ("&RIGHT(AB9,LEN(AB9)-5)&")" -> NASDAQ Biotechnology (NBI) | U9: =IFERROR(RTD("cqg.rtd", ,"ContractData",AB9, "LastTrade",, "T"),"") -> 3383.64 | V9: =IFERROR(RTD("cqg.rtd", ,"ContractData",AB9, "NetChange",, "T"),"") -> -15.42 | W9: =IFERROR(RTD("cqg.rtd", ,"ContractData",AB9, "PerCentNetLastTrade",, "T")/100,"") -> -0.00453654834 | X9: -0.00453654834 | Y9: =IFERROR(RTD("cqg.rtd", ,"ContractData",AB9, "Open",, "T"),"") -> 3414.09 | Z9: =IFERROR(RTD("cqg.rtd", ,"ContractData",AB9, "High",, "T"),"") -> 3414.09 | AA9: =IFERROR(RTD("cqg.rtd", ,"ContractData",AB9, "Low",, "T"),"") -> 3364.49 | AB9: =Symbols!H8 -> X.US.NBI
A10: =Symbols!C9 -> X.US.NYPID | B10: =RTD("cqg.rtd",,"ContractData",A10,"LongDescription",,"T")&" ("&RIGHT(A10,LEN(A10)-5)&")" -> NYSE Healthcare Index (NYPID) | E10: =IFERROR(RTD("cqg.rtd", ,"ContractData",A10, "LastTrade",, "T"),"") -> 14040.12 | F10: =IFERROR(RTD("cqg.rtd", ,"ContractData",A10, "NetChange",, "T"),"") -> 40.13 | G10: =IFERROR(RTD("cqg.rtd", ,"ContractData",A10, "PerCentNetLastTrade",, "T")/100,"") -> 0.002866430619 | H10: 0.002866430619 | I10: =IFERROR(RTD("cqg.rtd", ,"ContractData",A10, "Open",, "T"),"") -> 14047.52 | J10: =IFERROR(RTD("cqg.rtd", ,"ContractData",A10, "High",, "T"),"") -> 14047.52 | K10: =IFERROR(RTD("cqg.rtd", ,"ContractData",A10, "Low",, "T"),"") -> 13956.08 | R10: =IFERROR(RTD("cqg.rtd", ,"ContractData",AB10, "LongDescription",, "T"),"")&" ("&RIGHT(AB10,LEN(AB10)-5)&")" -> Nasdaq Health Care Index (NHC) | U10: =IFERROR(RTD("cqg.rtd", ,"ContractData",AB10, "LastTrade",, "T"),"") -> 769.89 | V10: =IFERROR(RTD("cqg.rtd", ,"ContractData",AB10, "NetChange",, "T"),"") -> -3.21 | W10: =IFERROR(RTD("cqg.rtd", ,"ContractData",AB10, "PerCentNetLastTrade",, "T")/100,"") -> -0.004152114862 | X10: -0.004152114862 | Y10: =IFERROR(RTD("cqg.rtd", ,"ContractData",AB10, "Open",, "T"),"") -> 776.18 | Z10: =IFERROR(RTD("cqg.rtd", ,"ContractData",AB10, "High",, "T"),"") -> 776.18 | AA10: =IFERROR(RTD("cqg.rtd", ,"ContractData",AB10, "Low",, "T"),"") -> 766.12 | AB10: =Symbols!H9 -> X.US.NHC
A11: =Symbols!C10 -> X.US.IXE | B11: =RTD("cqg.rtd",,"ContractData",A11,"LongDescription",,"T")&" ("&RIGHT(A11,LEN(A11)-5)&")" -> S&P 500 Select Sector Energy Index (IXE) | E11: =IFERROR(RTD("cqg.rtd", ,"ContractData",A11, "LastTrade",, "T"),"") -> 687.58 | F11: =IFERROR(RTD("cqg.rtd", ,"ContractData",A11, "NetChange",, "T"),"") -> 1.07 | G11: =IFERROR(RTD("cqg.rtd", ,"ContractData",A11, "PerCentNetLastTrade",, "T")/100,"") -> 0.001558608032 | H11: 0.001558608032 | I11: =IFERROR(RTD("cqg.rtd", ,"ContractData",A11, "Open",, "T"),"") -> 687.47 | J11: =IFERROR(RTD("cqg.rtd", ,"ContractData",A11, "High",, "T"),"") -> 690.15 | K11: =IFERROR(RTD("cqg.rtd", ,"ContractData",A11, "Low",, "T"),"") -> 684.91 | R11: =IFERROR(RTD("cqg.rtd", ,"ContractData",AB11, "LongDescription",, "T"),"")&" ("&RIGHT(AB11,LEN(AB11)-5)&")" -> PHLX Oil Service Sector (OSX) | U11: =IFERROR(RTD("cqg.rtd", ,"ContractData",AB11, "LastTrade",, "T"),"") -> 138.02 | V11: =IFERROR(RTD("cqg.rtd", ,"ContractData",AB11, "NetChange",, "T"),"") -> -0.01 | W11: =IFERROR(RTD("cqg.rtd", ,"ContractData",AB11, "PerCentNetLastTrade",, "T")/100,"") -> -7.244801855e-05 | X11: -7.244801855e-05 | Y11: =IFERROR(RTD("cqg.rtd", ,"ContractData",AB11, "Open",, "T"),"") -> 138.34 | Z11: =IFERROR(RTD("cqg.rtd", ,"ContractData",AB11, "High",, "T"),"") -> 139.48 | AA11: =IFERROR(RTD("cqg.rtd", ,"ContractData",AB11, "Low",, "T"),"") -> 137.37 | AB11: =Symbols!H10 -> X.US.OSX
A12: =Symbols!C11 -> S.US.XLE | B12: =RTD("cqg.rtd",,"ContractData",A12,"LongDescription",,"T")&" ("&RIGHT(A12,LEN(A12)-5)&")" -> Energy Select Sector SPDR (XLE) | E12: =IFERROR(RTD("cqg.rtd", ,"ContractData",A12, "LastTrade",, "T"),"") -> 68.07 | F12: =IFERROR(RTD("cqg.rtd", ,"ContractData",A12, "NetChange",, "T"),"") -> 0.1 | G12: =IFERROR(RTD("cqg.rtd", ,"ContractData",A12, "PerCentNetLastTrade",, "T")/100,"") -> 0.001471237311 | H12: =G12 -> 0.001471237311 | I12: =IFERROR(RTD("cqg.rtd", ,"ContractData",A12, "Open",, "T"),"") -> 68.26 | J12: =IFERROR(RTD("cqg.rtd", ,"ContractData",A12, "High",, "T"),"") -> 68.33 | K12: =IFERROR(RTD("cqg.rtd", ,"ContractData",A12, "Low",, "T"),"") -> 67.79 | R12: =IFERROR(RTD("cqg.rtd", ,"ContractData",AB12, "LongDescription",, "T"),"")&" ("&RIGHT(AB12,LEN(AB12)-5)&")" -> Sirius XM Holdings Inc. (SIRI) | U12: =IFERROR(RTD("cqg.rtd", ,"ContractData",AB12, "LastTrade",, "T"),"") -> 6.28 | V12: =IFERROR(RTD("cqg.rtd", ,"ContractData",AB12, "NetChange",, "T"),"") -> -0.04 | W12: =IFERROR(RTD("cqg.rtd", ,"ContractData",AB12, "PerCentNetLastTrade",, "T")/100,"") -> -0.006329113924 | X12: -0.006329113924 | Y12: =IFERROR(RTD("cqg.rtd", ,"ContractData",AB12, "Open",, "T"),"") -> 6.35 | Z12: =IFERROR(RTD("cqg.rtd", ,"ContractData",AB12, "High",, "T"),"") -> 6.37 | AA12: =IFERROR(RTD("cqg.rtd", ,"ContractData",AB12, "Low",, "T"),"") -> 6.25 | AB12: =Symbols!H11 -> S.US.SIRI
A13: =Symbols!C12 -> S.US.RSP | B13: =RTD("cqg.rtd",,"ContractData",A13,"LongDescription",,"T")&" ("&RIGHT(A13,LEN(A13)-5)&")" -> Guggenheim S&P 500 Equal Weight ETF (RSP) | E13: =IFERROR(RTD("cqg.rtd", ,"ContractData",A13, "LastTrade",, "T"),"") -> 99.8 | F13: =IFERROR(RTD("cqg.rtd", ,"ContractData",A13, "NetChange",, "T"),"") -> 0.27 | G13: =IFERROR(RTD("cqg.rtd", ,"ContractData",A13, "PerCentNetLastTrade",, "T")/100,"") -> 0.002712749925 | H13: =G13 -> 0.002712749925 | I13: =IFERROR(RTD("cqg.rtd", ,"ContractData",A13, "Open",, "T"),"") -> 99.89 | J13: =IFERROR(RTD("cqg.rtd", ,"ContractData",A13, "High",, "T"),"") -> 99.89 | K13: =IFERROR(RTD("cqg.rtd", ,"ContractData",A13, "Low",, "T"),"") -> 99.19 | R13: =IFERROR(RTD("cqg.rtd", ,"ContractData",AB13, "LongDescription",, "T"),"")&" ("&RIGHT(AB13,LEN(AB13)-5)&")" -> Apple Inc (AAPL) | U13: =IFERROR(RTD("cqg.rtd", ,"ContractData",AB13, "LastTrade",, "T"),"") -> 174.16 | V13: =IFERROR(RTD("cqg.rtd", ,"ContractData",AB13, "NetChange",, "T"),"") -> 1.38 | W13: =IFERROR(RTD("cqg.rtd", ,"ContractData",AB13, "PerCentNetLastTrade",, "T")/100,"") -> 0.008045378249 | X13: =W13 -> 0.008045378249 | Y13: =IFERROR(RTD("cqg.rtd", ,"ContractData",AB13, "Open",, "T"),"") -> 173.68 | Z13: =IFERROR(RTD("cqg.rtd", ,"ContractData",AB13, "High",, "T"),"") -> 175.15 | AA13: =IFERROR(RTD("cqg.rtd", ,"ContractData",AB13, "Low",, "T"),"") -> 172.89 | AB13: =Symbols!H12 -> S.US.AAPL
A14: =Symbols!C13 -> S.US.SPY | B14: =RTD("cqg.rtd",,"ContractData",A14,"LongDescription",,"T")&" ("&RIGHT(A14,LEN(A14)-5)&")" -> SPDR S&P 500 (SPY) | E14: =IFERROR(RTD("cqg.rtd", ,"ContractData",A14, "LastTrade",, "T"),"") -> 266.09 | F14: =IFERROR(RTD("cqg.rtd", ,"ContractData",A14, "NetChange",, "T"),"") -> 0.98 | G14: =IFERROR(RTD("cqg.rtd", ,"ContractData",A14, "PerCentNetLastTrade",, "T")/100,"") -> 0.003696578779 | H14: 0.003696578779 | I14: =IFERROR(RTD("cqg.rtd", ,"ContractData",A14, "Open",, "T"),"") -> 266.17 | J14: =IFERROR(RTD("cqg.rtd", ,"ContractData",A14, "High",, "T"),"") -> 266.21 | K14: =IFERROR(RTD("cqg.rtd", ,"ContractData",A14, "Low",, "T"),"") -> 264.47 | R14: =IFERROR(RTD("cqg.rtd", ,"ContractData",AB14, "LongDescription",, "T"),"")&" ("&RIGHT(AB14,LEN(AB14)-5)&")" -> Tesla, Inc. (TSLA) | U14: =IFERROR(RTD("cqg.rtd", ,"ContractData",AB14, "LastTrade",, "T"),"") -> 296.63 | V14: =IFERROR(RTD("cqg.rtd", ,"ContractData",AB14, "NetChange",, "T"),"") -> -7.49 | W14: =IFERROR(RTD("cqg.rtd", ,"ContractData",AB14, "PerCentNetLastTrade",, "T")/100,"") -> -0.02482082977 | X14: -0.02482082977 | Y14: =IFERROR(RTD("cqg.rtd", ,"ContractData",AB14, "Open",, "T"),"") -> 304 | Z14: =IFERROR(RTD("cqg.rtd", ,"ContractData",AB14, "High",, "T"),"") -> 304.27 | AA14: =IFERROR(RTD("cqg.rtd", ,"ContractData",AB14, "Low",, "T"),"") -> 295.02 | AB14: =Symbols!H13 -> S.US.TSLA
A15: =Symbols!C14 -> F.US.EP | B15: =RTD("cqg.rtd",,"ContractData",A15,"LongDescription",,"T")&" ("&RIGHT(A15,LEN(A15)-5)&")" -> E-Mini S&P 500, Jun 18 (EP) | E15: =IFERROR(RTD("cqg.rtd", ,"ContractData",A15, "LastTrade",, "T"),"") -> 2669.25 | F15: =IFERROR(RTD("cqg.rtd", ,"ContractData",A15, "NetChange",, "T"),"") -> 9.75 | G15: =IFERROR(RTD("cqg.rtd", ,"ContractData",A15, "PerCentNetLastTrade",, "T")/100,"") -> 0.003666102651 | H15: 0.003666102651 | I15: =IFERROR(RTD("cqg.rtd", ,"ContractData",A15, "Open",, "T"),"") -> 2659.5 | J15: =IFERROR(RTD("cqg.rtd", ,"ContractData",A15, "High",, "T"),"") -> 2679.75 | K15: =IFERROR(RTD("cqg.rtd", ,"ContractData",A15, "Low",, "T"),"") -> 2652.5 | L15: =R6 -> NASDAQ Composite Index (NQCOMP) | R15: =IFERROR(RTD("cqg.rtd", ,"ContractData",AB15, "LongDescription",, "T"),"")&" ("&RIGHT(AB15,LEN(AB15)-5)&")" -> Micron Technology Inc (MU) | U15: =IFERROR(RTD("cqg.rtd", ,"ContractData",AB15, "LastTrade",, "T"),"") -> 55.36 | V15: =IFERROR(RTD("cqg.rtd", ,"ContractData",AB15, "NetChange",, "T"),"") -> -0.2 | W15: =IFERROR(RTD("cqg.rtd", ,"ContractData",AB15, "PerCentNetLastTrade",, "T")/100,"") -> -0.003599712023 | X15: -0.003599712023 | Y15: =IFERROR(RTD("cqg.rtd", ,"ContractData",AB15, "Open",, "T"),"") -> 55.06 | Z15: =IFERROR(RTD("cqg.rtd", ,"ContractData",AB15, "High",, "T"),"") -> 55.43 | AA15: =IFERROR(RTD("cqg.rtd", ,"ContractData",AB15, "Low",, "T"),"") -> 54.14 | AB15: =Symbols!H14 -> S.US.MU
A16: =Symbols!C15 -> F.US.CLE | B16: =RTD("cqg.rtd",,"ContractData",A16,"LongDescription",,"T")&" ("&RIGHT(A16,LEN(A16)-5)&")" -> Crude Light (Globex), May 18 (CLE) | E16: =IFERROR(RTD("cqg.rtd", ,"ContractData",A16, "LastTrade",, "T"),"") -> 65.29 | F16: =IFERROR(RTD("cqg.rtd", ,"ContractData",A16, "NetChange",, "T"),"") -> -0.26 | G16: =IFERROR(RTD("cqg.rtd", ,"ContractData",A16, "PerCentNetLastTrade",, "T")/100,"") -> -0.003966437834 | H16: -0.003966437834 | I16: =IFERROR(RTD("cqg.rtd", ,"ContractData",A16, "Open",, "T"),"") -> 65.53 | J16: =IFERROR(RTD("cqg.rtd", ,"ContractData",A16, "High",, "T"),"") -> 66.41 | K16: =IFERROR(RTD("cqg.rtd", ,"ContractData",A16, "Low",, "T"),"") -> 65.11 | R16: =IFERROR(RTD("cqg.rtd", ,"ContractData",AB16, "LongDescription",, "T"),"")&" ("&RIGHT(AB16,LEN(AB16)-5)&")" -> Powershares QQQ Trust (QQQ) | U16: =IFERROR(RTD("cqg.rtd", ,"ContractData",AB16, "LastTrade",, "T"),"") -> 164.74 | V16: =IFERROR(RTD("cqg.rtd", ,"ContractData",AB16, "NetChange",, "T"),"") -> 0.34 | W16: =IFERROR(RTD("cqg.rtd", ,"ContractData",AB16, "PerCentNetLastTrade",, "T")/100,"") -> 0.002068126521 | X16: 0.002068126521 | Y16: =IFERROR(RTD("cqg.rtd", ,"ContractData",AB16, "Open",, "T"),"") -> 165.6 | Z16: =IFERROR(RTD("cqg.rtd", ,"ContractData",AB16, "High",, "T"),"") -> 165.62 | AA16: =IFERROR(RTD("cqg.rtd", ,"ContractData",AB16, "Low",, "T"),"") -> 163.88 | AB16: =Symbols!H15 -> S.US.QQQ
A17: =Symbols!C16 -> F.US.HOE | B17: =RTD("cqg.rtd",,"ContractData",A17,"LongDescription",,"T")&" ("&RIGHT(A17,LEN(A17)-5)&")" -> NY Harbor ULSD, May 18 (HOE) | E17: =IFERROR(RTD("cqg.rtd", ,"ContractData",A17, "LastTrade",, "T"),"") -> 2.0246 | F17: =IFERROR(RTD("cqg.rtd", ,"ContractData",A17, "NetChange",, "T"),"") -> 0.0066 | G17: =IFERROR(RTD("cqg.rtd", ,"ContractData",A17, "PerCentNetLastTrade",, "T")/100,"") -> 0.003270564916 | H17: 0.003270564916 | I17: =IFERROR(RTD("cqg.rtd", ,"ContractData",A17, "Open",, "T"),"") -> 2.0205 | J17: =IFERROR(RTD("cqg.rtd", ,"ContractData",A17, "High",, "T"),"") -> 2.0485 | K17: =IFERROR(RTD("cqg.rtd", ,"ContractData",A17, "Low",, "T"),"") -> 2.0162 | R17: =IFERROR(RTD("cqg.rtd", ,"ContractData",AB17, "LongDescription",, "T"),"")&" ("&RIGHT(AB17,LEN(AB17)-5)&")" -> Cisco Systems Inc (CSCO) | U17: =IFERROR(RTD("cqg.rtd", ,"ContractData",AB17, "LastTrade",, "T"),"") -> 44.27 | V17: =IFERROR(RTD("cqg.rtd", ,"ContractData",AB17, "NetChange",, "T"),"") -> 0.21 | W17: =IFERROR(RTD("cqg.rtd", ,"ContractData",AB17, "PerCentNetLastTrade",, "T")/100,"") -> 0.004766227871 | X17: 0.004766227871 | Y17: =IFERROR(RTD("cqg.rtd", ,"ContractData",AB17, "Open",, "T"),"") -> 44.49 | Z17: =IFERROR(RTD("cqg.rtd", ,"ContractData",AB17, "High",, "T"),"") -> 44.52 | AA17: =IFERROR(RTD("cqg.rtd", ,"ContractData",AB17, "Low",, "T"),"") -> 43.83 | AB17: =Symbols!H16 -> S.US.CSCO
A18: =Symbols!C17 -> F.US.RBE | B18: =RTD("cqg.rtd",,"ContractData",A18,"LongDescription",,"T")&" ("&RIGHT(A18,LEN(A18)-5)&")" -> RBOB Gasoline (Globex), May 18 (RBE) | E18: =IFERROR(RTD("cqg.rtd", ,"ContractData",A18, "LastTrade",, "T"),"") -> 2.0204 | F18: =IFERROR(RTD("cqg.rtd", ,"ContractData",A18, "NetChange",, "T"),"") -> -0.0002 | G18: =IFERROR(RTD("cqg.rtd", ,"ContractData",A18, "PerCentNetLastTrade",, "T")/100,"") -> 4.949759937e-05 | H18: 4.949759937e-05 | I18: =IFERROR(RTD("cqg.rtd", ,"ContractData",A18, "Open",, "T"),"") -> 2.019 | J18: =IFERROR(RTD("cqg.rtd", ,"ContractData",A18, "High",, "T"),"") -> 2.0426 | K18: =IFERROR(RTD("cqg.rtd", ,"ContractData",A18, "Low",, "T"),"") -> 2.0109 | R18: =IFERROR(RTD("cqg.rtd", ,"ContractData",AB18, "LongDescription",, "T"),"")&" ("&RIGHT(AB18,LEN(AB18)-5)&")" -> Facebook, Inc. (FB) | U18: =IFERROR(RTD("cqg.rtd", ,"ContractData",AB18, "LastTrade",, "T"),"") -> 158.92 | V18: =IFERROR(RTD("cqg.rtd", ,"ContractData",AB18, "NetChange",, "T"),"") -> -1.14 | W18: =IFERROR(RTD("cqg.rtd", ,"ContractData",AB18, "PerCentNetLastTrade",, "T")/100,"") -> -0.007122329127 | X18: -0.007122329127 | Y18: =IFERROR(RTD("cqg.rtd", ,"ContractData",AB18, "Open",, "T"),"") -> 156.31 | Z18: =IFERROR(RTD("cqg.rtd", ,"ContractData",AB18, "High",, "T"),"") -> 162.85 | AA18: =IFERROR(RTD("cqg.rtd", ,"ContractData",AB18, "Low",, "T"),"") -> 156.1 | AB18: =Symbols!H17 -> S.US.FB
A19: =Symbols!C18 -> F.US.GCE | B19: =RTD("cqg.rtd",,"ContractData",A19,"LongDescription",,"T")&" ("&RIGHT(A19,LEN(A19)-5)&")" -> Gold (Globex), Jun 18 (GCE) | E19: =IFERROR(RTD("cqg.rtd", ,"ContractData",A19, "LastTrade",, "T"),"") -> 1347.7 | F19: =IFERROR(RTD("cqg.rtd", ,"ContractData",A19, "NetChange",, "T"),"") -> -13.1 | G19: =IFERROR(RTD("cqg.rtd", ,"ContractData",A19, "PerCentNetLastTrade",, "T")/100,"") -> -0.00969946359 | H19: -0.00969946359 | I19: =IFERROR(RTD("cqg.rtd", ,"ContractData",A19, "Open",, "T"),"") -> 1359.3 | J19: =IFERROR(RTD("cqg.rtd", ,"ContractData",A19, "High",, "T"),"") -> 1362.6 | K19: =IFERROR(RTD("cqg.rtd", ,"ContractData",A19, "Low",, "T"),"") -> 1345.4 | R19: =IFERROR(RTD("cqg.rtd", ,"ContractData",AB19, "LongDescription",, "T"),"")&" ("&RIGHT(AB19,LEN(AB19)-5)&")" -> iShares 20+ Year Treasury Bond ETF (TLT) | U19: =IFERROR(RTD("cqg.rtd", ,"ContractData",AB19, "LastTrade",, "T"),"") -> 120.36 | V19: =IFERROR(RTD("cqg.rtd", ,"ContractData",AB19, "NetChange",, "T"),"") -> 0.64 | W19: =IFERROR(RTD("cqg.rtd", ,"ContractData",AB19, "PerCentNetLastTrade",, "T")/100,"") -> 0.005429788656 | X19: 0.005429788656 | Y19: =IFERROR(RTD("cqg.rtd", ,"ContractData",AB19, "Open",, "T"),"") -> 119.83 | Z19: =IFERROR(RTD("cqg.rtd", ,"ContractData",AB19, "High",, "T"),"") -> 120.5 | AA19: =IFERROR(RTD("cqg.rtd", ,"ContractData",AB19, "Low",, "T"),"") -> 119.81 | AB19: =Symbols!H18 -> S.US.TLT
A20: =Symbols!C19 -> F.US.DD | B20: =RTD("cqg.rtd",,"ContractData",A20,"LongDescription",,"T")&" ("&RIGHT(A20,LEN(A20)-5)&")" -> DAX Index, Jun 18 (DD) | E20: =IFERROR(RTD("cqg.rtd", ,"ContractData",A20, "LastTrade",, "T"),"") -> 11985.5 | F20: =IFERROR(RTD("cqg.rtd", ,"ContractData",A20, "NetChange",, "T"),"") -> 223.5 | G20: =IFERROR(RTD("cqg.rtd", ,"ContractData",A20, "PerCentNetLastTrade",, "T")/100,"") -> 0.01895855473 | H20: 0.01895855473 | I20: =IFERROR(RTD("cqg.rtd", ,"ContractData",A20, "Open",, "T"),"") -> 11991 | J20: =IFERROR(RTD("cqg.rtd", ,"ContractData",A20, "High",, "T"),"") -> 12047 | K20: =IFERROR(RTD("cqg.rtd", ,"ContractData",A20, "Low",, "T"),"") -> 11929 | R20: =IFERROR(RTD("cqg.rtd", ,"ContractData",AB20, "LongDescription",, "T"),"")&" ("&RIGHT(AB20,LEN(AB20)-5)&")" -> Intel Corporation (INTC) | U20: =IFERROR(RTD("cqg.rtd", ,"ContractData",AB20, "LastTrade",, "T"),"") -> 52.96 | V20: =IFERROR(RTD("cqg.rtd", ,"ContractData",AB20, "NetChange",, "T"),"") -> 0.48 | W20: =IFERROR(RTD("cqg.rtd", ,"ContractData",AB20, "PerCentNetLastTrade",, "T")/100,"") -> 0.009146341463 | X20: 0.009146341463 | Y20: =IFERROR(RTD("cqg.rtd", ,"ContractData",AB20, "Open",, "T"),"") -> 53.01 | Z20: =IFERROR(RTD("cqg.rtd", ,"ContractData",AB20, "High",, "T"),"") -> 53.25 | AA20: =IFERROR(RTD("cqg.rtd", ,"ContractData",AB20, "Low",, "T"),"") -> 52.38 | AB20: =Symbols!H19 -> S.US.INTC
A21: =Symbols!C20 -> F.US.DSX | B21: =RTD("cqg.rtd",,"ContractData",A21,"LongDescription",,"T")&" ("&RIGHT(A21,LEN(A21)-5)&")" -> Euro STOXX 50, Jun 18 (DSX) | E21: =IFERROR(RTD("cqg.rtd", ,"ContractData",A21, "LastTrade",, "T"),"") -> 3231 | F21: =IFERROR(RTD("cqg.rtd", ,"ContractData",A21, "NetChange",, "T"),"") -> 47 | G21: =IFERROR(RTD("cqg.rtd", ,"ContractData",A21, "PerCentNetLastTrade",, "T")/100,"") -> 0.01476130653 | H21: 0.01476130653 | I21: =IFERROR(RTD("cqg.rtd", ,"ContractData",A21, "Open",, "T"),"") -> 3237 | J21: =IFERROR(RTD("cqg.rtd", ,"ContractData",A21, "High",, "T"),"") -> 3249 | K21: =IFERROR(RTD("cqg.rtd", ,"ContractData",A21, "Low",, "T"),"") -> 3220 | R21: =IFERROR(RTD("cqg.rtd", ,"ContractData",AB21, "LongDescription",, "T"),"")&" ("&RIGHT(AB21,LEN(AB21)-5)&")" -> QUALCOMM Inc (QCOM) | U21: =IFERROR(RTD("cqg.rtd", ,"ContractData",AB21, "LastTrade",, "T"),"") -> 56.5 | V21: =IFERROR(RTD("cqg.rtd", ,"ContractData",AB21, "NetChange",, "T"),"") -> 0.37 | W21: =IFERROR(RTD("cqg.rtd", ,"ContractData",AB21, "PerCentNetLastTrade",, "T")/100,"") -> 0.006591840371 | X21: 0.006591840371 | Y21: =IFERROR(RTD("cqg.rtd", ,"ContractData",AB21, "Open",, "T"),"") -> 56.59 | Z21: =IFERROR(RTD("cqg.rtd", ,"ContractData",AB21, "High",, "T"),"") -> 57.24 | AA21: =IFERROR(RTD("cqg.rtd", ,"ContractData",AB21, "Low",, "T"),"") -> 56.15 | AB21: =Symbols!H20 -> S.US.QCOM
A22: =Symbols!C21 -> F.US.TYA | B22: =RTD("cqg.rtd",,"ContractData",A22,"LongDescription",,"T")&" ("&RIGHT(A22,LEN(A22)-5)&")" -> 10yr US Treasury Notes (Globex), Jun 18 (TYA) | E22: =IFERROR(RTD("cqg.rtd", ,"ContractData",A22, "LastTrade",, "T"),"") -> 120.6875 | F22: =IFERROR(RTD("cqg.rtd", ,"ContractData",A22, "NetChange",, "T"),"") -> 0.21875 | G22: =IFERROR(RTD("cqg.rtd", ,"ContractData",A22, "PerCentNetLastTrade",, "T")/100,"") -> 0.001815823606 | H22: 0.001815823606 | I22: =IFERROR(RTD("cqg.rtd", ,"ContractData",A22, "Open",, "T"),"") -> 120.375 | J22: =IFERROR(RTD("cqg.rtd", ,"ContractData",A22, "High",, "T"),"") -> 120.71875 | K22: =IFERROR(RTD("cqg.rtd", ,"ContractData",A22, "Low",, "T"),"") -> 120.34375 | R22: =IFERROR(RTD("cqg.rtd", ,"ContractData",AB22, "LongDescription",, "T"),"")&" ("&RIGHT(AB22,LEN(AB22)-5)&")" -> American Airlines Group Inc. (AAL) | U22: =IFERROR(RTD("cqg.rtd", ,"ContractData",AB22, "LastTrade",, "T"),"") -> 52.1 | V22: =IFERROR(RTD("cqg.rtd", ,"ContractData",AB22, "NetChange",, "T"),"") -> 0.24 | W22: =IFERROR(RTD("cqg.rtd", ,"ContractData",AB22, "PerCentNetLastTrade",, "T")/100,"") -> 0.004627844196 | X22: 0.004627844196 | Y22: =IFERROR(RTD("cqg.rtd", ,"ContractData",AB22, "Open",, "T"),"") -> 52.3 | Z22: =IFERROR(RTD("cqg.rtd", ,"ContractData",AB22, "High",, "T"),"") -> 52.34 | AA22: =IFERROR(RTD("cqg.rtd", ,"ContractData",AB22, "Low",, "T"),"") -> 51.81 | AB22: =Symbols!H21 -> S.US.AAL
B23: Description | E23: Last | F23: Net | G23: % Net | H23: Tdy Vol | I23: Open | J23: High | K23: Low | R23: Description | U23: Last | V23: Net | W23: % Net | X23: Tdy Vol | Y23: Open | Z23: High | AA23: Low
E24: Price | F24: Change | G24: Change | H24: 21d-Vol | L24: NYSE Total Volume | O24: NASDAQ Total Volume | U24: Price | V24: Change | W24: Change | X24: 21d-Vol
B25: CQG Top Ten Percentage Performers on the NYSE | L25: =IFERROR(RTD("cqg.rtd", ,"ContractData","DJTOV", "LastTrade",, "T"),"") -> 232794 | O25: =O28+O31+O34 -> 788703 | R25: CQG Top Ten Percentage Performers on the NASDAQ
A26: =NYSE!I1 -> S.US.HMI | B26: =IFERROR(RTD("cqg.rtd",,"ContractData",A26,"LongDescription",,"T")&" ("&RIGHT(A26,LEN(A26)-5)&")","") -> Huami Corporation ADR (HMI) | E26: =IF(B26="","",IFERROR(RTD("cqg.rtd",,"ContractData",A26,"LastTrade",,"T"),"")) -> 10.99 | F26: =IF(B26="","",IFERROR(RTD("cqg.rtd", ,"ContractData",A26, "NetChange",, "T"),"")) -> 0.79 | G26: =IFERROR(RTD("cqg.rtd", ,"ContractData",A26, "PerCentNetLastTrade",, "T")/100,"") -> 0.07745098039 | H26: =IFERROR(RTD("cqg.rtd",,"StudyData",A26, "Vol", "VolType=Exchange,CoCType=Auto", "Vol","ADC","0","ALL",,,"TRUE","T")/ RTD("cqg.rtd",,"StudyData",A26, "MA", "InputChoice=ContractVol,MAType=Sim,Period=21", "MA","D","-1","all",,,,"T"),"") -> 1.837063081 | I26: =IF(B26="","",IFERROR(RTD("cqg.rtd", ,"ContractData",A26, "Open",, "T"),"")) -> 10.63 | J26: =IF(B26="","",IFERROR(RTD("cqg.rtd", ,"ContractData",A26, "High",, "T"),"")) -> 11.07 | K26: =IF(B26="","",IFERROR(RTD("cqg.rtd",,"ContractData",A26,"Low",,"T"),"")) -> 10.26 | L26: NYSE Up Volume | O26: NASDAQ Up Volume | R26: =IFERROR(RTD("cqg.rtd",,"ContractData",AB26,"LongDescription",,"T")&" ("&RIGHT(AB26,LEN(AB26)-5)&")","") -> Astrotech Corp (ASTC) | U26: =IF(R26="","",IFERROR(RTD("cqg.rtd",,"ContractData",AB26,"LastTrade",,"T"),"")) -> 2.6 | V26: =IF(R26="","",IFERROR(RTD("cqg.rtd", ,"ContractData",AB26, "NetChange",, "T"),"")) -> 0.58 | W26: =IFERROR(RTD("cqg.rtd", ,"ContractData",AB26, "PerCentNetLastTrade",, "T")/100,"") -> 0.2871287129 | X26: =IFERROR(RTD("cqg.rtd",,"StudyData",AB26, "Vol", "VolType=Exchange,CoCType=Auto", "Vol","ADC","0","ALL",,,"TRUE","T")/ RTD("cqg.rtd",,"StudyData",AB26, "MA", "InputChoice=ContractVol,MAType=Sim,Period=21", "MA","D","-1","all",,,,"T"),"") -> 95.06500251 | Y26: =IF(R26="","",IFERROR(RTD("cqg.rtd", ,"ContractData",AB26, "Open",, "T"),"")) -> 2.5 | Z26: =IF(R26="","",IFERROR(RTD("cqg.rtd", ,"ContractData",AB26, "High",, "T"),"")) -> 3.4 | AA26: =IF(R26="","",IFERROR(RTD("cqg.rtd", ,"ContractData",AB26, "Low",, "T"),"")) -> 2.43 | AB26: =NASDAQ!I1 -> S.US.ASTC
A27: =NYSE!I2 -> S.US.ECR | B27: =IFERROR(RTD("cqg.rtd",,"ContractData",A27,"LongDescription",,"T")&" ("&RIGHT(A27,LEN(A27)-5)&")","") -> Eclipse Resources Corporation (ECR) | E27: =IF(B27="","",IFERROR(RTD("cqg.rtd",,"ContractData",A27,"LastTrade",,"T"),"")) -> 1.4 | F27: =IF(B27="","",IFERROR(RTD("cqg.rtd", ,"ContractData",A27, "NetChange",, "T"),"")) -> 0.1 | G27: =IFERROR(RTD("cqg.rtd", ,"ContractData",A27, "PerCentNetLastTrade",, "T")/100,"") -> 0.07692307692 | H27: =IFERROR(RTD("cqg.rtd",,"StudyData",A27, "Vol", "VolType=Exchange,CoCType=Auto", "Vol","ADC","0","ALL",,,"TRUE","T")/ RTD("cqg.rtd",,"StudyData",A27, "MA", "InputChoice=ContractVol,MAType=Sim,Period=21", "MA","D","-1","all",,,,"T"),"") -> 0.8933083851 | I27: =IF(B27="","",IFERROR(RTD("cqg.rtd", ,"ContractData",A27, "Open",, "T"),"")) -> 1.42 | J27: =IF(B27="","",IFERROR(RTD("cqg.rtd", ,"ContractData",A27, "High",, "T"),"")) -> 1.43 | K27: =IF(B27="","",IFERROR(RTD("cqg.rtd",,"ContractData",A27,"Low",,"T"),"")) -> 1.38 | R27: =IFERROR(RTD("cqg.rtd",,"ContractData",AB27,"LongDescription",,"T")&" ("&RIGHT(AB27,LEN(AB27)-5)&")","") -> Sears Hometown and Outlet Stores, Inc. (SHOS) | U27: =IF(R27="","",IFERROR(RTD("cqg.rtd",,"ContractData",AB27,"LastTrade",,"T"),"")) -> 2.65 | V27: =IF(R27="","",IFERROR(RTD("cqg.rtd", ,"ContractData",AB27, "NetChange",, "T"),"")) -> 0.55 | W27: =IFERROR(RTD("cqg.rtd", ,"ContractData",AB27, "PerCentNetLastTrade",, "T")/100,"") -> 0.2619047619 | X27: =IFERROR(RTD("cqg.rtd",,"StudyData",AB27, "Vol", "VolType=Exchange,CoCType=Auto", "Vol","ADC","0","ALL",,,"TRUE","T")/ RTD("cqg.rtd",,"StudyData",AB27, "MA", "InputChoice=ContractVol,MAType=Sim,Period=21", "MA","D","-1","all",,,,"T"),"") -> 2.188320914 | Y27: =IF(R27="","",IFERROR(RTD("cqg.rtd", ,"ContractData",AB27, "Open",, "T"),"")) -> 2.2 | Z27: =IF(R27="","",IFERROR(RTD("cqg.rtd", ,"ContractData",AB27, "High",, "T"),"")) -> 2.65 | AA27: =IF(R27="","",IFERROR(RTD("cqg.rtd", ,"ContractData",AB27, "Low",, "T"),"")) -> 2.2 | AB27: =NASDAQ!I2 -> S.US.SHOS
A28: =NYSE!I3 -> S.US.TEP | B28: =IFERROR(RTD("cqg.rtd",,"ContractData",A28,"LongDescription",,"T")&" ("&RIGHT(A28,LEN(A28)-5)&")","") -> Tallgrass Energy Partners LP (TEP) | E28: =IF(B28="","",IFERROR(RTD("cqg.rtd",,"ContractData",A28,"LastTrade",,"T"),"")) -> 37.87 | F28: =IF(B28="","",IFERROR(RTD("cqg.rtd", ,"ContractData",A28, "NetChange",, "T"),"")) -> 2.66 | G28: =IFERROR(RTD("cqg.rtd", ,"ContractData",A28, "PerCentNetLastTrade",, "T")/100,"") -> 0.07585227273 | H28: =IFERROR(RTD("cqg.rtd",,"StudyData",A28, "Vol", "VolType=Exchange,CoCType=Auto", "Vol","ADC","0","ALL",,,"TRUE","T")/ RTD("cqg.rtd",,"StudyData",A28, "MA", "InputChoice=ContractVol,MAType=Sim,Period=21", "MA","D","-1","all",,,,"T"),"") -> 1.486122827 | I28: =IF(B28="","",IFERROR(RTD("cqg.rtd", ,"ContractData",A28, "Open",, "T"),"")) -> 37.03 | J28: =IF(B28="","",IFERROR(RTD("cqg.rtd", ,"ContractData",A28, "High",, "T"),"")) -> 38.07 | K28: =IF(B28="","",IFERROR(RTD("cqg.rtd",,"ContractData",A28,"Low",,"T"),"")) -> 36.71 | L28: =IFERROR(RTD("cqg.rtd", ,"ContractData","DJUPV", "LastTrade",, "T"),"") -> 129101 | O28: =IFERROR(RTD("cqg.rtd", ,"ContractData","NASUPV", "LastTrade",, "T"),"") -> 339550 | R28: =IFERROR(RTD("cqg.rtd",,"ContractData",AB28,"LongDescription",,"T")&" ("&RIGHT(AB28,LEN(AB28)-5)&")","") -> Anthera Pharmaceuticals, Inc. (ANTH) | U28: =IF(R28="","",IFERROR(RTD("cqg.rtd",,"ContractData",AB28,"LastTrade",,"T"),"")) -> 0.36 | V28: =IF(R28="","",IFERROR(RTD("cqg.rtd", ,"ContractData",AB28, "NetChange",, "T"),"")) -> 0.05 | W28: =IFERROR(RTD("cqg.rtd", ,"ContractData",AB28, "PerCentNetLastTrade",, "T")/100,"") -> 0.1612903226 | X28: =IFERROR(RTD("cqg.rtd",,"StudyData",AB28, "Vol", "VolType=Exchange,CoCType=Auto", "Vol","ADC","0","ALL",,,"TRUE","T")/ RTD("cqg.rtd",,"StudyData",AB28, "MA", "InputChoice=ContractVol,MAType=Sim,Period=21", "MA","D","-1","all",,,,"T"),"") -> 0.8691493225 | Y28: =IF(R28="","",IFERROR(RTD("cqg.rtd", ,"ContractData",AB28, "Open",, "T"),"")) -> 0.32 | Z28: =IF(R28="","",IFERROR(RTD("cqg.rtd", ,"ContractData",AB28, "High",, "T"),"")) -> 0.38 | AA28: =IF(R28="","",IFERROR(RTD("cqg.rtd", ,"ContractData",AB28, "Low",, "T"),"")) -> 0.31 | AB28: =NASDAQ!I3 -> S.US.ANTH
A29: =NYSE!I4 -> S.US.RYAM | B29: =IFERROR(RTD("cqg.rtd",,"ContractData",A29,"LongDescription",,"T")&" ("&RIGHT(A29,LEN(A29)-5)&")","") -> Rayonier Advanced Materials Inc (RYAM) | E29: =IF(B29="","",IFERROR(RTD("cqg.rtd",,"ContractData",A29,"LastTrade",,"T"),"")) -> 20.94 | F29: =IF(B29="","",IFERROR(RTD("cqg.rtd", ,"ContractData",A29, "NetChange",, "T"),"")) -> 1.46 | G29: =IFERROR(RTD("cqg.rtd", ,"ContractData",A29, "PerCentNetLastTrade",, "T")/100,"") -> 0.07550077042 | H29: =IFERROR(RTD("cqg.rtd",,"StudyData",A29, "Vol", "VolType=Exchange,CoCType=Auto", "Vol","ADC","0","ALL",,,"TRUE","T")/ RTD("cqg.rtd",,"StudyData",A29, "MA", "InputChoice=ContractVol,MAType=Sim,Period=21", "MA","D","-1","all",,,,"T"),"") -> 0.6358705761 | I29: =IF(B29="","",IFERROR(RTD("cqg.rtd", ,"ContractData",A29, "Open",, "T"),"")) -> 20.26 | J29: =IF(B29="","",IFERROR(RTD("cqg.rtd", ,"ContractData",A29, "High",, "T"),"")) -> 21 | K29: =IF(B29="","",IFERROR(RTD("cqg.rtd",,"ContractData",A29,"Low",,"T"),"")) -> 20.14 | L29: NYSE Down Volume | O29: NASDAQ Down Volume | R29: =IFERROR(RTD("cqg.rtd",,"ContractData",AB29,"LongDescription",,"T")&" ("&RIGHT(AB29,LEN(AB29)-5)&")","") -> TOP Ships, Inc. (TOPS) | U29: =IF(R29="","",IFERROR(RTD("cqg.rtd",,"ContractData",AB29,"LastTrade",,"T"),"")) -> 2.56 | V29: =IF(R29="","",IFERROR(RTD("cqg.rtd", ,"ContractData",AB29, "NetChange",, "T"),"")) -> 0.36 | W29: =IFERROR(RTD("cqg.rtd", ,"ContractData",AB29, "PerCentNetLastTrade",, "T")/100,"") -> 0.1636363636 | X29: =IFERROR(RTD("cqg.rtd",,"StudyData",AB29, "Vol", "VolType=Exchange,CoCType=Auto", "Vol","ADC","0","ALL",,,"TRUE","T")/ RTD("cqg.rtd",,"StudyData",AB29, "MA", "InputChoice=ContractVol,MAType=Sim,Period=21", "MA","D","-1","all",,,,"T"),"") -> 3.61877745 | Y29: =IF(R29="","",IFERROR(RTD("cqg.rtd", ,"ContractData",AB29, "Open",, "T"),"")) -> 2.2 | Z29: =IF(R29="","",IFERROR(RTD("cqg.rtd", ,"ContractData",AB29, "High",, "T"),"")) -> 2.84 | AA29: =IF(R29="","",IFERROR(RTD("cqg.rtd", ,"ContractData",AB29, "Low",, "T"),"")) -> 2.19 | AB29: =NASDAQ!I4 -> S.US.TOPS
A30: =NYSE!I5 -> S.US.TEGP | B30: =IFERROR(RTD("cqg.rtd",,"ContractData",A30,"LongDescription",,"T")&" ("&RIGHT(A30,LEN(A30)-5)&")","") -> Tallgrass Energy GP, LP (TEGP) | E30: =IF(B30="","",IFERROR(RTD("cqg.rtd",,"ContractData",A30,"LastTrade",,"T"),"")) -> 18.92 | F30: =IF(B30="","",IFERROR(RTD("cqg.rtd", ,"ContractData",A30, "NetChange",, "T"),"")) -> 1.22 | G30: =IFERROR(RTD("cqg.rtd", ,"ContractData",A30, "PerCentNetLastTrade",, "T")/100,"") -> 0.06832298137 | H30: =IFERROR(RTD("cqg.rtd",,"StudyData",A30, "Vol", "VolType=Exchange,CoCType=Auto", "Vol","ADC","0","ALL",,,"TRUE","T")/ RTD("cqg.rtd",,"StudyData",A30, "MA", "InputChoice=ContractVol,MAType=Sim,Period=21", "MA","D","-1","all",,,,"T"),"") -> 2.687096824 | I30: =IF(B30="","",IFERROR(RTD("cqg.rtd", ,"ContractData",A30, "Open",, "T"),"")) -> 18.8 | J30: =IF(B30="","",IFERROR(RTD("cqg.rtd", ,"ContractData",A30, "High",, "T"),"")) -> 19.2 | K30: =IF(B30="","",IFERROR(RTD("cqg.rtd",,"ContractData",A30,"Low",,"T"),"")) -> 18.35 | R30: =IFERROR(RTD("cqg.rtd",,"ContractData",AB30,"LongDescription",,"T")&" ("&RIGHT(AB30,LEN(AB30)-5)&")","") -> Arrowhead Pharmaceuticals, Inc. (ARWR) | U30: =IF(R30="","",IFERROR(RTD("cqg.rtd",,"ContractData",AB30,"LastTrade",,"T"),"")) -> 8.01 | V30: =IF(R30="","",IFERROR(RTD("cqg.rtd", ,"ContractData",AB30, "NetChange",, "T"),"")) -> 1.07 | W30: =IFERROR(RTD("cqg.rtd", ,"ContractData",AB30, "PerCentNetLastTrade",, "T")/100,"") -> 0.1541786744 | X30: =IFERROR(RTD("cqg.rtd",,"StudyData",AB30, "Vol", "VolType=Exchange,CoCType=Auto", "Vol","ADC","0","ALL",,,"TRUE","T")/ RTD("cqg.rtd",,"StudyData",AB30, "MA", "InputChoice=ContractVol,MAType=Sim,Period=21", "MA","D","-1","all",,,,"T"),"") -> 1.340031464 | Y30: =IF(R30="","",IFERROR(RTD("cqg.rtd", ,"ContractData",AB30, "Open",, "T"),"")) -> 7.3 | Z30: =IF(R30="","",IFERROR(RTD("cqg.rtd", ,"ContractData",AB30, "High",, "T"),"")) -> 8.09 | AA30: =IF(R30="","",IFERROR(RTD("cqg.rtd", ,"ContractData",AB30, "Low",, "T"),"")) -> 7.24 | AB30: =NASDAQ!I5 -> S.US.ARWR
A31: =NYSE!I6 -> S.US.BBDO | B31: =IFERROR(RTD("cqg.rtd",,"ContractData",A31,"LongDescription",,"T")&" ("&RIGHT(A31,LEN(A31)-5)&")","") -> Banco Bradesco SA (BBDO) | E31: =IF(B31="","",IFERROR(RTD("cqg.rtd",,"ContractData",A31,"LastTrade",,"T"),"")) -> 11.29 | F31: =IF(B31="","",IFERROR(RTD("cqg.rtd", ,"ContractData",A31, "NetChange",, "T"),"")) -> 0.7 | G31: =IFERROR(RTD("cqg.rtd", ,"ContractData",A31, "PerCentNetLastTrade",, "T")/100,"") -> 0.06610009443 | H31: =IFERROR(RTD("cqg.rtd",,"StudyData",A31, "Vol", "VolType=Exchange,CoCType=Auto", "Vol","ADC","0","ALL",,,"TRUE","T")/ RTD("cqg.rtd",,"StudyData",A31, "MA", "InputChoice=ContractVol,MAType=Sim,Period=21", "MA","D","-1","all",,,,"T"),"") -> 0.2044234304 | I31: =IF(B31="","",IFERROR(RTD("cqg.rtd", ,"ContractData",A31, "Open",, "T"),"")) -> 10.91 | J31: =IF(B31="","",IFERROR(RTD("cqg.rtd", ,"ContractData",A31, "High",, "T"),"")) -> 11.29 | K31: =IF(B31="","",IFERROR(RTD("cqg.rtd",,"ContractData",A31,"Low",,"T"),"")) -> 10.91 | L31: =IFERROR(RTD("cqg.rtd", ,"ContractData","DJDNV", "LastTrade",, "T"),"") -> 101343 | O31: =IFERROR(RTD("cqg.rtd", ,"ContractData","NASDNV", "LastTrade",, "T"),"") -> 353797 | R31: =IFERROR(RTD("cqg.rtd",,"ContractData",AB31,"LongDescription",,"T")&" ("&RIGHT(AB31,LEN(AB31)-5)&")","") -> Aytu BioScience, Inc. (AYTU) | U31: =IF(R31="","",IFERROR(RTD("cqg.rtd",,"ContractData",AB31,"LastTrade",,"T"),"")) -> 0.67 | V31: =IF(R31="","",IFERROR(RTD("cqg.rtd", ,"ContractData",AB31, "NetChange",, "T"),"")) -> 0.08 | W31: =IFERROR(RTD("cqg.rtd", ,"ContractData",AB31, "PerCentNetLastTrade",, "T")/100,"") -> 0.1355932203 | X31: =IFERROR(RTD("cqg.rtd",,"StudyData",AB31, "Vol", "VolType=Exchange,CoCType=Auto", "Vol","ADC","0","ALL",,,"TRUE","T")/ RTD("cqg.rtd",,"StudyData",AB31, "MA", "InputChoice=ContractVol,MAType=Sim,Period=21", "MA","D","-1","all",,,,"T"),"") -> 3.631283682 | Y31: =IF(R31="","",IFERROR(RTD("cqg.rtd", ,"ContractData",AB31, "Open",, "T"),"")) -> 0.64 | Z31: =IF(R31="","",IFERROR(RTD("cqg.rtd", ,"ContractData",AB31, "High",, "T"),"")) -> 0.73 | AA31: =IF(R31="","",IFERROR(RTD("cqg.rtd", ,"ContractData",AB31, "Low",, "T"),"")) -> 0.64 | AB31: =NASDAQ!I6 -> S.US.AYTU
A32: =NYSE!I7 -> S.US.NLS | B32: =IFERROR(RTD("cqg.rtd",,"ContractData",A32,"LongDescription",,"T")&" ("&RIGHT(A32,LEN(A32)-5)&")","") -> Nautilus Group Inc (NLS) | E32: =IF(B32="","",IFERROR(RTD("cqg.rtd",,"ContractData",A32,"LastTrade",,"T"),"")) -> 13.15 | F32: =IF(B32="","",IFERROR(RTD("cqg.rtd", ,"ContractData",A32, "NetChange",, "T"),"")) -> 0.8 | G32: =IFERROR(RTD("cqg.rtd", ,"ContractData",A32, "PerCentNetLastTrade",, "T")/100,"") -> 0.06477732794 | H32: =IFERROR(RTD("cqg.rtd",,"StudyData",A32, "Vol", "VolType=Exchange,CoCType=Auto", "Vol","ADC","0","ALL",,,"TRUE","T")/ RTD("cqg.rtd",,"StudyData",A32, "MA", "InputChoice=ContractVol,MAType=Sim,Period=21", "MA","D","-1","all",,,,"T"),"") -> 0.1869872776 | I32: =IF(B32="","",IFERROR(RTD("cqg.rtd", ,"ContractData",A32, "Open",, "T"),"")) -> 12.35 | J32: =IF(B32="","",IFERROR(RTD("cqg.rtd", ,"ContractData",A32, "High",, "T"),"")) -> 13.15 | K32: =IF(B32="","",IFERROR(RTD("cqg.rtd",,"ContractData",A32,"Low",,"T"),"")) -> 12.2 | L32: NYSE Unchanged Vol | O32: NASDAQ Unchanged Vol | R32: =IFERROR(RTD("cqg.rtd",,"ContractData",AB32,"LongDescription",,"T")&" ("&RIGHT(AB32,LEN(AB32)-5)&")","") -> Helios & Matheson Analytics Inc (HMNY) | U32: =IF(R32="","",IFERROR(RTD("cqg.rtd",,"ContractData",AB32,"LastTrade",,"T"),"")) -> 3.44 | V32: =IF(R32="","",IFERROR(RTD("cqg.rtd", ,"ContractData",AB32, "NetChange",, "T"),"")) -> 0.38 | W32: =IFERROR(RTD("cqg.rtd", ,"ContractData",AB32, "PerCentNetLastTrade",, "T")/100,"") -> 0.1241830065 | X32: =IFERROR(RTD("cqg.rtd",,"StudyData",AB32, "Vol", "VolType=Exchange,CoCType=Auto", "Vol","ADC","0","ALL",,,"TRUE","T")/ RTD("cqg.rtd",,"StudyData",AB32, "MA", "InputChoice=ContractVol,MAType=Sim,Period=21", "MA","D","-1","all",,,,"T"),"") -> 2.613459118 | Y32: =IF(R32="","",IFERROR(RTD("cqg.rtd", ,"ContractData",AB32, "Open",, "T"),"")) -> 3.5 | Z32: =IF(R32="","",IFERROR(RTD("cqg.rtd", ,"ContractData",AB32, "High",, "T"),"")) -> 3.63 | AA32: =IF(R32="","",IFERROR(RTD("cqg.rtd", ,"ContractData",AB32, "Low",, "T"),"")) -> 3.26 | AB32: =NASDAQ!I7 -> S.US.HMNY
A33: =NYSE!I8 -> S.US.IO | B33: =IFERROR(RTD("cqg.rtd",,"ContractData",A33,"LongDescription",,"T")&" ("&RIGHT(A33,LEN(A33)-5)&")","") -> ION Geophysical (IO) | E33: =IF(B33="","",IFERROR(RTD("cqg.rtd",,"ContractData",A33,"LastTrade",,"T"),"")) -> 26.8 | F33: =IF(B33="","",IFERROR(RTD("cqg.rtd", ,"ContractData",A33, "NetChange",, "T"),"")) -> 1.6 | G33: =IFERROR(RTD("cqg.rtd", ,"ContractData",A33, "PerCentNetLastTrade",, "T")/100,"") -> 0.06349206349 | H33: =IFERROR(RTD("cqg.rtd",,"StudyData",A33, "Vol", "VolType=Exchange,CoCType=Auto", "Vol","ADC","0","ALL",,,"TRUE","T")/ RTD("cqg.rtd",,"StudyData",A33, "MA", "InputChoice=ContractVol,MAType=Sim,Period=21", "MA","D","-1","all",,,,"T"),"") -> 0.7292350248 | I33: =IF(B33="","",IFERROR(RTD("cqg.rtd", ,"ContractData",A33, "Open",, "T"),"")) -> 25.35 | J33: =IF(B33="","",IFERROR(RTD("cqg.rtd", ,"ContractData",A33, "High",, "T"),"")) -> 27.6 | K33: =IF(B33="","",IFERROR(RTD("cqg.rtd",,"ContractData",A33,"Low",,"T"),"")) -> 25.35 | R33: =IFERROR(RTD("cqg.rtd",,"ContractData",AB33,"LongDescription",,"T")&" ("&RIGHT(AB33,LEN(AB33)-5)&")","") -> Enphase Energy, Inc. (ENPH) | U33: =IF(R33="","",IFERROR(RTD("cqg.rtd",,"ContractData",AB33,"LastTrade",,"T"),"")) -> 5.49 | V33: =IF(R33="","",IFERROR(RTD("cqg.rtd", ,"ContractData",AB33, "NetChange",, "T"),"")) -> 0.57 | W33: =IFERROR(RTD("cqg.rtd", ,"ContractData",AB33, "PerCentNetLastTrade",, "T")/100,"") -> 0.1158536585 | X33: =IFERROR(RTD("cqg.rtd",,"StudyData",AB33, "Vol", "VolType=Exchange,CoCType=Auto", "Vol","ADC","0","ALL",,,"TRUE","T")/ RTD("cqg.rtd",,"StudyData",AB33, "MA", "InputChoice=ContractVol,MAType=Sim,Period=21", "MA","D","-1","all",,,,"T"),"") -> 1.041365374 | Y33: =IF(R33="","",IFERROR(RTD("cqg.rtd", ,"ContractData",AB33, "Open",, "T"),"")) -> 4.97 | Z33: =IF(R33="","",IFERROR(RTD("cqg.rtd", ,"ContractData",AB33, "High",, "T"),"")) -> 5.55 | AA33: =IF(R33="","",IFERROR(RTD("cqg.rtd", ,"ContractData",AB33, "Low",, "T"),"")) -> 4.95 | AB33: =NASDAQ!I8 -> S.US.ENPH
A34: =NYSE!I9 -> S.US.GRAM | B34: =IFERROR(RTD("cqg.rtd",,"ContractData",A34,"LongDescription",,"T")&" ("&RIGHT(A34,LEN(A34)-5)&")","") -> Grana y Montero S.A.A. (GRAM) | E34: =IF(B34="","",IFERROR(RTD("cqg.rtd",,"ContractData",A34,"LastTrade",,"T"),"")) -> 2.85 | F34: =IF(B34="","",IFERROR(RTD("cqg.rtd", ,"ContractData",A34, "NetChange",, "T"),"")) -> 0.16 | G34: =IFERROR(RTD("cqg.rtd", ,"ContractData",A34, "PerCentNetLastTrade",, "T")/100,"") -> 0.06343283582 | H34: =IFERROR(RTD("cqg.rtd",,"StudyData",A34, "Vol", "VolType=Exchange,CoCType=Auto", "Vol","ADC","0","ALL",,,"TRUE","T")/ RTD("cqg.rtd",,"StudyData",A34, "MA", "InputChoice=ContractVol,MAType=Sim,Period=21", "MA","D","-1","all",,,,"T"),"") -> 0.7538868971 | I34: =IF(B34="","",IFERROR(RTD("cqg.rtd", ,"ContractData",A34, "Open",, "T"),"")) -> 2.69 | J34: =IF(B34="","",IFERROR(RTD("cqg.rtd", ,"ContractData",A34, "High",, "T"),"")) -> 2.85 | K34: =IF(B34="","",IFERROR(RTD("cqg.rtd",,"ContractData",A34,"Low",,"T"),"")) -> 2.64 | L34: =IFERROR(RTD("cqg.rtd", ,"ContractData","DJUCV", "LastTrade",, "T"),"") -> 2349 | O34: =IFERROR(RTD("cqg.rtd", ,"ContractData","NASUCV", "LastTrade",, "T"),"") -> 95356 | R34: =IFERROR(RTD("cqg.rtd",,"ContractData",AB34,"LongDescription",,"T")&" ("&RIGHT(AB34,LEN(AB34)-5)&")","") -> ShiftPixy, Inc. (PIXY) | U34: =IF(R34="","",IFERROR(RTD("cqg.rtd",,"ContractData",AB34,"LastTrade",,"T"),"")) -> 3.13 | V34: =IF(R34="","",IFERROR(RTD("cqg.rtd", ,"ContractData",AB34, "NetChange",, "T"),"")) -> 0.32 | W34: =IFERROR(RTD("cqg.rtd", ,"ContractData",AB34, "PerCentNetLastTrade",, "T")/100,"") -> 0.1138790036 | X34: =IFERROR(RTD("cqg.rtd",,"StudyData",AB34, "Vol", "VolType=Exchange,CoCType=Auto", "Vol","ADC","0","ALL",,,"TRUE","T")/ RTD("cqg.rtd",,"StudyData",AB34, "MA", "InputChoice=ContractVol,MAType=Sim,Period=21", "MA","D","-1","all",,,,"T"),"") -> 0.6978164382 | Y34: =IF(R34="","",IFERROR(RTD("cqg.rtd", ,"ContractData",AB34, "Open",, "T"),"")) -> 2.86 | Z34: =IF(R34="","",IFERROR(RTD("cqg.rtd", ,"ContractData",AB34, "High",, "T"),"")) -> 3.55 | AA34: =IF(R34="","",IFERROR(RTD("cqg.rtd", ,"ContractData",AB34, "Low",, "T"),"")) -> 2.85 | AB34: =NASDAQ!I9 -> S.US.PIXY
A35: =NYSE!I10 -> S.US.FEDU | B35: =IFERROR(RTD("cqg.rtd",,"ContractData",A35,"LongDescription",,"T")&" ("&RIGHT(A35,LEN(A35)-5)&")","") -> Four Seasons Education (Cayman) Inc. (FEDU) | E35: =IF(B35="","",IFERROR(RTD("cqg.rtd",,"ContractData",A35,"LastTrade",,"T"),"")) -> 7.01 | F35: =IF(B35="","",IFERROR(RTD("cqg.rtd", ,"ContractData",A35, "NetChange",, "T"),"")) -> 0.42 | G35: =IFERROR(RTD("cqg.rtd", ,"ContractData",A35, "PerCentNetLastTrade",, "T")/100,"") -> 0.06212121212 | H35: =IFERROR(RTD("cqg.rtd",,"StudyData",A35, "Vol", "VolType=Exchange,CoCType=Auto", "Vol","ADC","0","ALL",,,"TRUE","T")/ RTD("cqg.rtd",,"StudyData",A35, "MA", "InputChoice=ContractVol,MAType=Sim,Period=21", "MA","D","-1","all",,,,"T"),"") -> 0.6977397657 | I35: =IF(B35="","",IFERROR(RTD("cqg.rtd", ,"ContractData",A35, "Open",, "T"),"")) -> 6.65 | J35: =IF(B35="","",IFERROR(RTD("cqg.rtd", ,"ContractData",A35, "High",, "T"),"")) -> 7.21 | K35: =IF(B35="","",IFERROR(RTD("cqg.rtd",,"ContractData",A35,"Low",,"T"),"")) -> 6.65 | L35: NYSE Adv Issues | O35: NASDAQ Adv Issues | R35: =IFERROR(RTD("cqg.rtd",,"ContractData",AB35,"LongDescription",,"T")&" ("&RIGHT(AB35,LEN(AB35)-5)&")","") -> Sierra Wireless Inc (SWIR) | U35: =IF(R35="","",IFERROR(RTD("cqg.rtd",,"ContractData",AB35,"LastTrade",,"T"),"")) -> 17.47 | V35: =IF(R35="","",IFERROR(RTD("cqg.rtd", ,"ContractData",AB35, "NetChange",, "T"),"")) -> 1.67 | W35: =IFERROR(RTD("cqg.rtd", ,"ContractData",AB35, "PerCentNetLastTrade",, "T")/100,"") -> 0.1056962025 | X35: =IFERROR(RTD("cqg.rtd",,"StudyData",AB35, "Vol", "VolType=Exchange,CoCType=Auto", "Vol","ADC","0","ALL",,,"TRUE","T")/ RTD("cqg.rtd",,"StudyData",AB35, "MA", "InputChoice=ContractVol,MAType=Sim,Period=21", "MA","D","-1","all",,,,"T"),"") -> 1.538102971 | Y35: =IF(R35="","",IFERROR(RTD("cqg.rtd", ,"ContractData",AB35, "Open",, "T"),"")) -> 16.5 | Z35: =IF(R35="","",IFERROR(RTD("cqg.rtd", ,"ContractData",AB35, "High",, "T"),"")) -> 17.55 | AA35: =IF(R35="","",IFERROR(RTD("cqg.rtd", ,"ContractData",AB35, "Low",, "T"),"")) -> 16.45 | AB35: =NASDAQ!I10 -> S.US.SWIR
B36: CQG Bottom Ten Percentage Performers on the NYSE | R36: CQG Bottom Ten Percentage Performers on the NASDAQ
A37: =NYSE!N1 -> S.US.IDT | B37: =IFERROR(RTD("cqg.rtd",,"ContractData",A37,"LongDescription",,"T")&" ("&RIGHT(A37,LEN(A37)-5)&")","") -> IDT Corp (IDT) | E37: =IF(B37="","",IFERROR(RTD("cqg.rtd",,"ContractData",A37,"LastTrade",,"T"),"")) -> 7.53 | F37: =IF(B37="","",IFERROR(RTD("cqg.rtd", ,"ContractData",A37, "NetChange",, "T"),"")) -> -2.33 | G37: =IFERROR(RTD("cqg.rtd", ,"ContractData",A37, "PerCentNetLastTrade",, "T")/100,"") -> -0.2370820669 | H37: =IFERROR(RTD("cqg.rtd",,"StudyData",A37, "Vol", "VolType=Exchange,CoCType=Auto", "Vol","ADC","0","ALL",,,"TRUE","T")/ RTD("cqg.rtd",,"StudyData",A37, "MA", "InputChoice=ContractVol,MAType=Sim,Period=21", "MA","D","-1","all",,,,"T"),"") -> 1.35909415 | I37: =IF(B37="","",IFERROR(RTD("cqg.rtd", ,"ContractData",A37, "Open",, "T"),"")) -> 8.79 | J37: =IF(B37="","",IFERROR(RTD("cqg.rtd", ,"ContractData",A37, "High",, "T"),"")) -> 9.2 | K37: =IF(B37="","",IFERROR(RTD("cqg.rtd",,"ContractData",A37,"Low",,"T"),"")) -> 7.46 | L37: =IFERROR(RTD("cqg.rtd", ,"ContractData","DJIUP", "LastTrade",, "T"),"") -> 1540 | O37: =IFERROR(RTD("cqg.rtd", ,"ContractData","NASIUP", "LastTrade",, "T"),"") -> 1282 | R37: =IFERROR(RTD("cqg.rtd",,"ContractData",AB37,"LongDescription",,"T")&" ("&RIGHT(AB37,LEN(AB37)-5)&")","") -> Porter Bancorp Inc (PBIB) | U37: =IF(R37="","",IFERROR(RTD("cqg.rtd",,"ContractData",AB37,"LastTrade",,"T"),"")) -> 13.7 | V37: =IF(R37="","",IFERROR(RTD("cqg.rtd", ,"ContractData",AB37, "NetChange",, "T"),"")) -> -20.13 | W37: =IFERROR(RTD("cqg.rtd", ,"ContractData",AB37, "PerCentNetLastTrade",, "T")/100,"") -> -0.5955122527 | X37: =IFERROR(RTD("cqg.rtd",,"StudyData",AB37, "Vol", "VolType=Exchange,CoCType=Auto", "Vol","ADC","0","ALL",,,"TRUE","T")/ RTD("cqg.rtd",,"StudyData",AB37, "MA", "InputChoice=ContractVol,MAType=Sim,Period=21", "MA","D","-1","all",,,,"T"),"") -> 0.03057213568 | Y37: =IF(R37="","",IFERROR(RTD("cqg.rtd", ,"ContractData",AB37, "Open",, "T"),"")) -> 13.7 | Z37: =IF(R37="","",IFERROR(RTD("cqg.rtd", ,"ContractData",AB37, "High",, "T"),"")) -> 13.7 | AA37: =IF(R37="","",IFERROR(RTD("cqg.rtd", ,"ContractData",AB37, "Low",, "T"),"")) -> 13.7 | AB37: =NASDAQ!N1 -> S.US.PBIB
A38: =NYSE!N2 -> S.US.NAP | B38: =IFERROR(RTD("cqg.rtd",,"ContractData",A38,"LongDescription",,"T")&" ("&RIGHT(A38,LEN(A38)-5)&")","") -> Navios Maritime Midstream Partners L.P. (NAP) | E38: =IF(B38="","",IFERROR(RTD("cqg.rtd",,"ContractData",A38,"LastTrade",,"T"),"")) -> 4.34 | F38: =IF(B38="","",IFERROR(RTD("cqg.rtd", ,"ContractData",A38, "NetChange",, "T"),"")) -> -1.12 | G38: =IFERROR(RTD("cqg.rtd", ,"ContractData",A38, "PerCentNetLastTrade",, "T")/100,"") -> -0.2051282051 | H38: =IFERROR(RTD("cqg.rtd",,"StudyData",A38, "Vol", "VolType=Exchange,CoCType=Auto", "Vol","ADC","0","ALL",,,"TRUE","T")/ RTD("cqg.rtd",,"StudyData",A38, "MA", "InputChoice=ContractVol,MAType=Sim,Period=21", "MA","D","-1","all",,,,"T"),"") -> 8.630920374 | I38: =IF(B38="","",IFERROR(RTD("cqg.rtd", ,"ContractData",A38, "Open",, "T"),"")) -> 5.5 | J38: =IF(B38="","",IFERROR(RTD("cqg.rtd", ,"ContractData",A38, "High",, "T"),"")) -> 5.58 | K38: =IF(B38="","",IFERROR(RTD("cqg.rtd",,"ContractData",A38,"Low",,"T"),"")) -> 4.1 | L38: NYSE Dec Issues | O38: NASDAQ Dec Issues | R38: =IFERROR(RTD("cqg.rtd",,"ContractData",AB38,"LongDescription",,"T")&" ("&RIGHT(AB38,LEN(AB38)-5)&")","") -> Broadway Financial Corp (BYFC) | U38: =IF(R38="","",IFERROR(RTD("cqg.rtd",,"ContractData",AB38,"LastTrade",,"T"),"")) -> 2.1 | V38: =IF(R38="","",IFERROR(RTD("cqg.rtd", ,"ContractData",AB38, "NetChange",, "T"),"")) -> -1.15 | W38: =IFERROR(RTD("cqg.rtd", ,"ContractData",AB38, "PerCentNetLastTrade",, "T")/100,"") -> -0.3538461538 | X38: =IFERROR(RTD("cqg.rtd",,"StudyData",AB38, "Vol", "VolType=Exchange,CoCType=Auto", "Vol","ADC","0","ALL",,,"TRUE","T")/ RTD("cqg.rtd",,"StudyData",AB38, "MA", "InputChoice=ContractVol,MAType=Sim,Period=21", "MA","D","-1","all",,,,"T"),"") -> 0.0220041763 | Y38: =IF(R38="","",IFERROR(RTD("cqg.rtd", ,"ContractData",AB38, "Open",, "T"),"")) -> 2.1 | Z38: =IF(R38="","",IFERROR(RTD("cqg.rtd", ,"ContractData",AB38, "High",, "T"),"")) -> 2.1 | AA38: =IF(R38="","",IFERROR(RTD("cqg.rtd", ,"ContractData",AB38, "Low",, "T"),"")) -> 2.1 | AB38: =NASDAQ!N2 -> S.US.BYFC
A39: =NYSE!N3 -> S.US.NVTA | B39: =IFERROR(RTD("cqg.rtd",,"ContractData",A39,"LongDescription",,"T")&" ("&RIGHT(A39,LEN(A39)-5)&")","") -> Invitae Corp (NVTA) | E39: =IF(B39="","",IFERROR(RTD("cqg.rtd",,"ContractData",A39,"LastTrade",,"T"),"")) -> 6.05 | F39: =IF(B39="","",IFERROR(RTD("cqg.rtd", ,"ContractData",A39, "NetChange",, "T"),"")) -> -0.95 | G39: =IFERROR(RTD("cqg.rtd", ,"ContractData",A39, "PerCentNetLastTrade",, "T")/100,"") -> -0.1357142857 | H39: =IFERROR(RTD("cqg.rtd",,"StudyData",A39, "Vol", "VolType=Exchange,CoCType=Auto", "Vol","ADC","0","ALL",,,"TRUE","T")/ RTD("cqg.rtd",,"StudyData",A39, "MA", "InputChoice=ContractVol,MAType=Sim,Period=21", "MA","D","-1","all",,,,"T"),"") -> 2.875440419 | I39: =IF(B39="","",IFERROR(RTD("cqg.rtd", ,"ContractData",A39, "Open",, "T"),"")) -> 6.38 | J39: =IF(B39="","",IFERROR(RTD("cqg.rtd", ,"ContractData",A39, "High",, "T"),"")) -> 6.47 | K39: =IF(B39="","",IFERROR(RTD("cqg.rtd",,"ContractData",A39,"Low",,"T"),"")) -> 5.77 | R39: =IFERROR(RTD("cqg.rtd",,"ContractData",AB39,"LongDescription",,"T")&" ("&RIGHT(AB39,LEN(AB39)-5)&")","") -> LongFin Corp Class A (LFIN) | U39: =IF(R39="","",IFERROR(RTD("cqg.rtd",,"ContractData",AB39,"LastTrade",,"T"),"")) -> 40.76 | V39: =IF(R39="","",IFERROR(RTD("cqg.rtd", ,"ContractData",AB39, "NetChange",, "T"),"")) -> -18.46 | W39: =IFERROR(RTD("cqg.rtd", ,"ContractData",AB39, "PerCentNetLastTrade",, "T")/100,"") -> -0.3124156545 | X39: =IFERROR(RTD("cqg.rtd",,"StudyData",AB39, "Vol", "VolType=Exchange,CoCType=Auto", "Vol","ADC","0","ALL",,,"TRUE","T")/ RTD("cqg.rtd",,"StudyData",AB39, "MA", "InputChoice=ContractVol,MAType=Sim,Period=21", "MA","D","-1","all",,,,"T"),"") -> 1.652646469 | Y39: =IF(R39="","",IFERROR(RTD("cqg.rtd", ,"ContractData",AB39, "Open",, "T"),"")) -> 46 | Z39: =IF(R39="","",IFERROR(RTD("cqg.rtd", ,"ContractData",AB39, "High",, "T"),"")) -> 49.53 | AA39: =IF(R39="","",IFERROR(RTD("cqg.rtd", ,"ContractData",AB39, "Low",, "T"),"")) -> 38.26 | AB39: =NASDAQ!N3 -> S.US.LFIN
A40: =NYSE!N4 -> S.US.ARA | B40: =IFERROR(RTD("cqg.rtd",,"ContractData",A40,"LongDescription",,"T")&" ("&RIGHT(A40,LEN(A40)-5)&")","") -> American Renal Associates Holdings, Inc. (ARA) | E40: =IF(B40="","",IFERROR(RTD("cqg.rtd",,"ContractData",A40,"LastTrade",,"T"),"")) -> 18.45 | F40: =IF(B40="","",IFERROR(RTD("cqg.rtd", ,"ContractData",A40, "NetChange",, "T"),"")) -> -2.85 | G40: =IFERROR(RTD("cqg.rtd", ,"ContractData",A40, "PerCentNetLastTrade",, "T")/100,"") -> -0.1346153846 | H40: =IFERROR(RTD("cqg.rtd",,"StudyData",A40, "Vol", "VolType=Exchange,CoCType=Auto", "Vol","ADC","0","ALL",,,"TRUE","T")/ RTD("cqg.rtd",,"StudyData",A40, "MA", "InputChoice=ContractVol,MAType=Sim,Period=21", "MA","D","-1","all",,,,"T"),"") -> 2.154259793 | I40: =IF(B40="","",IFERROR(RTD("cqg.rtd", ,"ContractData",A40, "Open",, "T"),"")) -> 19.49 | J40: =IF(B40="","",IFERROR(RTD("cqg.rtd", ,"ContractData",A40, "High",, "T"),"")) -> 19.57 | K40: =IF(B40="","",IFERROR(RTD("cqg.rtd",,"ContractData",A40,"Low",,"T"),"")) -> 18.04 | L40: =IFERROR(RTD("cqg.rtd", ,"ContractData","DJIDN", "LastTrade",, "T"),"") -> 1320 | O40: =IFERROR(RTD("cqg.rtd", ,"ContractData","NASIDN", "LastTrade",, "T"),"") -> 1463 | R40: =IFERROR(RTD("cqg.rtd",,"ContractData",AB40,"LongDescription",,"T")&" ("&RIGHT(AB40,LEN(AB40)-5)&")","") -> Oasmia Pharmaceutical AB (OASM) | U40: =IF(R40="","",IFERROR(RTD("cqg.rtd",,"ContractData",AB40,"LastTrade",,"T"),"")) -> 1.33 | V40: =IF(R40="","",IFERROR(RTD("cqg.rtd", ,"ContractData",AB40, "NetChange",, "T"),"")) -> -0.53 | W40: =IFERROR(RTD("cqg.rtd", ,"ContractData",AB40, "PerCentNetLastTrade",, "T")/100,"") -> -0.2962962963 | X40: =IFERROR(RTD("cqg.rtd",,"StudyData",AB40, "Vol", "VolType=Exchange,CoCType=Auto", "Vol","ADC","0","ALL",,,"TRUE","T")/ RTD("cqg.rtd",,"StudyData",AB40, "MA", "InputChoice=ContractVol,MAType=Sim,Period=21", "MA","D","-1","all",,,,"T"),"") -> 0.4675463465 | Y40: =IF(R40="","",IFERROR(RTD("cqg.rtd", ,"ContractData",AB40, "Open",, "T"),"")) -> 1.33 | Z40: =IF(R40="","",IFERROR(RTD("cqg.rtd", ,"ContractData",AB40, "High",, "T"),"")) -> 1.34 | AA40: =IF(R40="","",IFERROR(RTD("cqg.rtd", ,"ContractData",AB40, "Low",, "T"),"")) -> 1.33 | AB40: =NASDAQ!N4 -> S.US.OASM
A41: =NYSE!N5 -> S.US.LAC | B41: =IFERROR(RTD("cqg.rtd",,"ContractData",A41,"LongDescription",,"T")&" ("&RIGHT(A41,LEN(A41)-5)&")","") -> Lithium Americas Corp. (LAC) | E41: =IF(B41="","",IFERROR(RTD("cqg.rtd",,"ContractData",A41,"LastTrade",,"T"),"")) -> 5.31 | F41: =IF(B41="","",IFERROR(RTD("cqg.rtd", ,"ContractData",A41, "NetChange",, "T"),"")) -> -0.53 | G41: =IFERROR(RTD("cqg.rtd", ,"ContractData",A41, "PerCentNetLastTrade",, "T")/100,"") -> -0.09075342466 | H41: =IFERROR(RTD("cqg.rtd",,"StudyData",A41, "Vol", "VolType=Exchange,CoCType=Auto", "Vol","ADC","0","ALL",,,"TRUE","T")/ RTD("cqg.rtd",,"StudyData",A41, "MA", "InputChoice=ContractVol,MAType=Sim,Period=21", "MA","D","-1","all",,,,"T"),"") -> 2.090942136 | I41: =IF(B41="","",IFERROR(RTD("cqg.rtd", ,"ContractData",A41, "Open",, "T"),"")) -> 5.95 | J41: =IF(B41="","",IFERROR(RTD("cqg.rtd", ,"ContractData",A41, "High",, "T"),"")) -> 5.95 | K41: =IF(B41="","",IFERROR(RTD("cqg.rtd",,"ContractData",A41,"Low",,"T"),"")) -> 5.2 | L41: NYSE Unc Issues | O41: NASDAQ Unc Issues | R41: =IFERROR(RTD("cqg.rtd",,"ContractData",AB41,"LongDescription",,"T")&" ("&RIGHT(AB41,LEN(AB41)-5)&")","") -> Diversicare Healthcare Services Inc. (DVCR) | U41: =IF(R41="","",IFERROR(RTD("cqg.rtd",,"ContractData",AB41,"LastTrade",,"T"),"")) -> 7.76 | V41: =IF(R41="","",IFERROR(RTD("cqg.rtd", ,"ContractData",AB41, "NetChange",, "T"),"")) -> -2.74 | W41: =IFERROR(RTD("cqg.rtd", ,"ContractData",AB41, "PerCentNetLastTrade",, "T")/100,"") -> -0.260952381 | X41: =IFERROR(RTD("cqg.rtd",,"StudyData",AB41, "Vol", "VolType=Exchange,CoCType=Auto", "Vol","ADC","0","ALL",,,"TRUE","T")/ RTD("cqg.rtd",,"StudyData",AB41, "MA", "InputChoice=ContractVol,MAType=Sim,Period=21", "MA","D","-1","all",,,,"T"),"") -> 0.9422943582 | Y41: =IF(R41="","",IFERROR(RTD("cqg.rtd", ,"ContractData",AB41, "Open",, "T"),"")) -> 7.85 | Z41: =IF(R41="","",IFERROR(RTD("cqg.rtd", ,"ContractData",AB41, "High",, "T"),"")) -> 7.85 | AA41: =IF(R41="","",IFERROR(RTD("cqg.rtd", ,"ContractData",AB41, "Low",, "T"),"")) -> 7.25 | AB41: =NASDAQ!N5 -> S.US.DVCR
A42: =NYSE!N6 -> S.US.UNT | B42: =IFERROR(RTD("cqg.rtd",,"ContractData",A42,"LongDescription",,"T")&" ("&RIGHT(A42,LEN(A42)-5)&")","") -> Unit Corp (UNT) | E42: =IF(B42="","",IFERROR(RTD("cqg.rtd",,"ContractData",A42,"LastTrade",,"T"),"")) -> 17.63 | F42: =IF(B42="","",IFERROR(RTD("cqg.rtd", ,"ContractData",A42, "NetChange",, "T"),"")) -> -1.74 | G42: =IFERROR(RTD("cqg.rtd", ,"ContractData",A42, "PerCentNetLastTrade",, "T")/100,"") -> -0.09029927761 | H42: =IFERROR(RTD("cqg.rtd",,"StudyData",A42, "Vol", "VolType=Exchange,CoCType=Auto", "Vol","ADC","0","ALL",,,"TRUE","T")/ RTD("cqg.rtd",,"StudyData",A42, "MA", "InputChoice=ContractVol,MAType=Sim,Period=21", "MA","D","-1","all",,,,"T"),"") -> 1.104926549 | I42: =IF(B42="","",IFERROR(RTD("cqg.rtd", ,"ContractData",A42, "Open",, "T"),"")) -> 18.12 | J42: =IF(B42="","",IFERROR(RTD("cqg.rtd", ,"ContractData",A42, "High",, "T"),"")) -> 18.17 | K42: =IF(B42="","",IFERROR(RTD("cqg.rtd",,"ContractData",A42,"Low",,"T"),"")) -> 16.9 | R42: =IFERROR(RTD("cqg.rtd",,"ContractData",AB42,"LongDescription",,"T")&" ("&RIGHT(AB42,LEN(AB42)-5)&")","") -> RXI Pharmaceuticals Corporation (RXII) | U42: =IF(R42="","",IFERROR(RTD("cqg.rtd",,"ContractData",AB42,"LastTrade",,"T"),"")) -> 3.28 | V42: =IF(R42="","",IFERROR(RTD("cqg.rtd", ,"ContractData",AB42, "NetChange",, "T"),"")) -> -0.74 | W42: =IFERROR(RTD("cqg.rtd", ,"ContractData",AB42, "PerCentNetLastTrade",, "T")/100,"") -> -0.1921182266 | X42: =IFERROR(RTD("cqg.rtd",,"StudyData",AB42, "Vol", "VolType=Exchange,CoCType=Auto", "Vol","ADC","0","ALL",,,"TRUE","T")/ RTD("cqg.rtd",,"StudyData",AB42, "MA", "InputChoice=ContractVol,MAType=Sim,Period=21", "MA","D","-1","all",,,,"T"),"") -> 0.3459562117 | Y42: =IF(R42="","",IFERROR(RTD("cqg.rtd", ,"ContractData",AB42, "Open",, "T"),"")) -> 3.65 | Z42: =IF(R42="","",IFERROR(RTD("cqg.rtd", ,"ContractData",AB42, "High",, "T"),"")) -> 3.65 | AA42: =IF(R42="","",IFERROR(RTD("cqg.rtd", ,"ContractData",AB42, "Low",, "T"),"")) -> 3.19 | AB42: =NASDAQ!N6 -> S.US.RXII
A43: =NYSE!N7 -> S.US.SBS | B43: =IFERROR(RTD("cqg.rtd",,"ContractData",A43,"LongDescription",,"T")&" ("&RIGHT(A43,LEN(A43)-5)&")","") -> Cia de Saneamento Basico de Sao Paulo Sa (SBS) | E43: =IF(B43="","",IFERROR(RTD("cqg.rtd",,"ContractData",A43,"LastTrade",,"T"),"")) -> 10.67 | F43: =IF(B43="","",IFERROR(RTD("cqg.rtd", ,"ContractData",A43, "NetChange",, "T"),"")) -> -0.94 | G43: =IFERROR(RTD("cqg.rtd", ,"ContractData",A43, "PerCentNetLastTrade",, "T")/100,"") -> -0.08096468562 | H43: =IFERROR(RTD("cqg.rtd",,"StudyData",A43, "Vol", "VolType=Exchange,CoCType=Auto", "Vol","ADC","0","ALL",,,"TRUE","T")/ RTD("cqg.rtd",,"StudyData",A43, "MA", "InputChoice=ContractVol,MAType=Sim,Period=21", "MA","D","-1","all",,,,"T"),"") -> 1.773901808 | I43: =IF(B43="","",IFERROR(RTD("cqg.rtd", ,"ContractData",A43, "Open",, "T"),"")) -> 10.8 | J43: =IF(B43="","",IFERROR(RTD("cqg.rtd", ,"ContractData",A43, "High",, "T"),"")) -> 10.86 | K43: =IF(B43="","",IFERROR(RTD("cqg.rtd",,"ContractData",A43,"Low",,"T"),"")) -> 10.54 | L43: =IFERROR(RTD("cqg.rtd", ,"ContractData","DJIUC", "LastTrade",, "T"),"") -> 100 | O43: =IFERROR(RTD("cqg.rtd", ,"ContractData","NASIUC", "LastTrade",, "T"),"") -> 139 | R43: =IFERROR(RTD("cqg.rtd",,"ContractData",AB43,"LongDescription",,"T")&" ("&RIGHT(AB43,LEN(AB43)-5)&")","") -> Cogint, Inc. (COGT) | U43: =IF(R43="","",IFERROR(RTD("cqg.rtd",,"ContractData",AB43,"LastTrade",,"T"),"")) -> 2.77 | V43: =IF(R43="","",IFERROR(RTD("cqg.rtd", ,"ContractData",AB43, "NetChange",, "T"),"")) -> -0.58 | W43: =IFERROR(RTD("cqg.rtd", ,"ContractData",AB43, "PerCentNetLastTrade",, "T")/100,"") -> -0.1731343284 | X43: =IFERROR(RTD("cqg.rtd",,"StudyData",AB43, "Vol", "VolType=Exchange,CoCType=Auto", "Vol","ADC","0","ALL",,,"TRUE","T")/ RTD("cqg.rtd",,"StudyData",AB43, "MA", "InputChoice=ContractVol,MAType=Sim,Period=21", "MA","D","-1","all",,,,"T"),"") -> 0.9933683489 | Y43: =IF(R43="","",IFERROR(RTD("cqg.rtd", ,"ContractData",AB43, "Open",, "T"),"")) -> 2.65 | Z43: =IF(R43="","",IFERROR(RTD("cqg.rtd", ,"ContractData",AB43, "High",, "T"),"")) -> 2.95 | AA43: =IF(R43="","",IFERROR(RTD("cqg.rtd", ,"ContractData",AB43, "Low",, "T"),"")) -> 2.45 | AB43: =NASDAQ!N7 -> S.US.COGT
A44: =NYSE!N8 -> S.US.PUMP | B44: =IFERROR(RTD("cqg.rtd",,"ContractData",A44,"LongDescription",,"T")&" ("&RIGHT(A44,LEN(A44)-5)&")","") -> ProPetro Holding Corp. (PUMP) | E44: =IF(B44="","",IFERROR(RTD("cqg.rtd",,"ContractData",A44,"LastTrade",,"T"),"")) -> 15.73 | F44: =IF(B44="","",IFERROR(RTD("cqg.rtd", ,"ContractData",A44, "NetChange",, "T"),"")) -> -1.23 | G44: =IFERROR(RTD("cqg.rtd", ,"ContractData",A44, "PerCentNetLastTrade",, "T")/100,"") -> -0.07252358491 | H44: =IFERROR(RTD("cqg.rtd",,"StudyData",A44, "Vol", "VolType=Exchange,CoCType=Auto", "Vol","ADC","0","ALL",,,"TRUE","T")/ RTD("cqg.rtd",,"StudyData",A44, "MA", "InputChoice=ContractVol,MAType=Sim,Period=21", "MA","D","-1","all",,,,"T"),"") -> 1.281598717 | I44: =IF(B44="","",IFERROR(RTD("cqg.rtd", ,"ContractData",A44, "Open",, "T"),"")) -> 14.78 | J44: =IF(B44="","",IFERROR(RTD("cqg.rtd", ,"ContractData",A44, "High",, "T"),"")) -> 16.85 | K44: =IF(B44="","",IFERROR(RTD("cqg.rtd",,"ContractData",A44,"Low",,"T"),"")) -> 14.78 | L44: NYSE Tick | O44: NASDAQ Tick | R44: =IFERROR(RTD("cqg.rtd",,"ContractData",AB44,"LongDescription",,"T")&" ("&RIGHT(AB44,LEN(AB44)-5)&")","") -> Sphere 3D Corp. (ANY) | U44: =IF(R44="","",IFERROR(RTD("cqg.rtd",,"ContractData",AB44,"LastTrade",,"T"),"")) -> 0.92 | V44: =IF(R44="","",IFERROR(RTD("cqg.rtd", ,"ContractData",AB44, "NetChange",, "T"),"")) -> -0.17 | W44: =IFERROR(RTD("cqg.rtd", ,"ContractData",AB44, "PerCentNetLastTrade",, "T")/100,"") -> -0.1559633028 | X44: =IFERROR(RTD("cqg.rtd",,"StudyData",AB44, "Vol", "VolType=Exchange,CoCType=Auto", "Vol","ADC","0","ALL",,,"TRUE","T")/ RTD("cqg.rtd",,"StudyData",AB44, "MA", "InputChoice=ContractVol,MAType=Sim,Period=21", "MA","D","-1","all",,,,"T"),"") -> 2.473367042 | Y44: =IF(R44="","",IFERROR(RTD("cqg.rtd", ,"ContractData",AB44, "Open",, "T"),"")) -> 1.11 | Z44: =IF(R44="","",IFERROR(RTD("cqg.rtd", ,"ContractData",AB44, "High",, "T"),"")) -> 1.11 | AA44: =IF(R44="","",IFERROR(RTD("cqg.rtd", ,"ContractData",AB44, "Low",, "T"),"")) -> 0.87 | AB44: =NASDAQ!N8 -> S.US.ANY
A45: =NYSE!N9 -> S.US.EGO | B45: =IFERROR(RTD("cqg.rtd",,"ContractData",A45,"LongDescription",,"T")&" ("&RIGHT(A45,LEN(A45)-5)&")","") -> Eldorado Gold Corp (EGO) | E45: =IF(B45="","",IFERROR(RTD("cqg.rtd",,"ContractData",A45,"LastTrade",,"T"),"")) -> 0.81 | F45: =IF(B45="","",IFERROR(RTD("cqg.rtd", ,"ContractData",A45, "NetChange",, "T"),"")) -> -0.05 | G45: =IFERROR(RTD("cqg.rtd", ,"ContractData",A45, "PerCentNetLastTrade",, "T")/100,"") -> -0.05813953488 | H45: =IFERROR(RTD("cqg.rtd",,"StudyData",A45, "Vol", "VolType=Exchange,CoCType=Auto", "Vol","ADC","0","ALL",,,"TRUE","T")/ RTD("cqg.rtd",,"StudyData",A45, "MA", "InputChoice=ContractVol,MAType=Sim,Period=21", "MA","D","-1","all",,,,"T"),"") -> 0.9242330457 | I45: =IF(B45="","",IFERROR(RTD("cqg.rtd", ,"ContractData",A45, "Open",, "T"),"")) -> 0.85 | J45: =IF(B45="","",IFERROR(RTD("cqg.rtd", ,"ContractData",A45, "High",, "T"),"")) -> 0.86 | K45: =IF(B45="","",IFERROR(RTD("cqg.rtd",,"ContractData",A45,"Low",,"T"),"")) -> 0.8 | R45: =IFERROR(RTD("cqg.rtd",,"ContractData",AB45,"LongDescription",,"T")&" ("&RIGHT(AB45,LEN(AB45)-5)&")","") -> Altimmune, Inc. (ALT) | U45: =IF(R45="","",IFERROR(RTD("cqg.rtd",,"ContractData",AB45,"LastTrade",,"T"),"")) -> 1.3 | V45: =IF(R45="","",IFERROR(RTD("cqg.rtd", ,"ContractData",AB45, "NetChange",, "T"),"")) -> -0.24 | W45: =IFERROR(RTD("cqg.rtd", ,"ContractData",AB45, "PerCentNetLastTrade",, "T")/100,"") -> -0.1558441558 | X45: =IFERROR(RTD("cqg.rtd",,"StudyData",AB45, "Vol", "VolType=Exchange,CoCType=Auto", "Vol","ADC","0","ALL",,,"TRUE","T")/ RTD("cqg.rtd",,"StudyData",AB45, "MA", "InputChoice=ContractVol,MAType=Sim,Period=21", "MA","D","-1","all",,,,"T"),"") -> 2.648850638 | Y45: =IF(R45="","",IFERROR(RTD("cqg.rtd", ,"ContractData",AB45, "Open",, "T"),"")) -> 1.56 | Z45: =IF(R45="","",IFERROR(RTD("cqg.rtd", ,"ContractData",AB45, "High",, "T"),"")) -> 1.63 | AA45: =IF(R45="","",IFERROR(RTD("cqg.rtd", ,"ContractData",AB45, "Low",, "T"),"")) -> 1.25 | AB45: =NASDAQ!N9 -> S.US.ALT
A46: =NYSE!N10 -> S.US.HJV | B46: =IFERROR(RTD("cqg.rtd",,"ContractData",A46,"LongDescription",,"T")&" ("&RIGHT(A46,LEN(A46)-5)&")","") -> MSSAC CL A JCP UTS (HJV) | E46: =IF(B46="","",IFERROR(RTD("cqg.rtd",,"ContractData",A46,"LastTrade",,"T"),"")) -> 12.24 | F46: =IF(B46="","",IFERROR(RTD("cqg.rtd", ,"ContractData",A46, "NetChange",, "T"),"")) -> -0.73 | G46: =IFERROR(RTD("cqg.rtd", ,"ContractData",A46, "PerCentNetLastTrade",, "T")/100,"") -> -0.05701078582 | H46: =IFERROR(RTD("cqg.rtd",,"StudyData",A46, "Vol", "VolType=Exchange,CoCType=Auto", "Vol","ADC","0","ALL",,,"TRUE","T")/ RTD("cqg.rtd",,"StudyData",A46, "MA", "InputChoice=ContractVol,MAType=Sim,Period=21", "MA","D","-1","all",,,,"T"),"") -> 0.1661222823 | I46: =IF(B46="","",IFERROR(RTD("cqg.rtd", ,"ContractData",A46, "Open",, "T"),"")) -> 12.24 | J46: =IF(B46="","",IFERROR(RTD("cqg.rtd", ,"ContractData",A46, "High",, "T"),"")) -> 12.24 | K46: =IF(B46="","",IFERROR(RTD("cqg.rtd",,"ContractData",A46,"Low",,"T"),"")) -> 12.24 | L46: =IFERROR(RTD("cqg.rtd", ,"ContractData","DJTIC", "LastTrade",, "T"),"") -> 227 | O46: =IFERROR(RTD("cqg.rtd", ,"ContractData","NASTIC", "LastTrade",, "T"),"") -> 173 | R46: =IFERROR(RTD("cqg.rtd",,"ContractData",AB46,"LongDescription",,"T")&" ("&RIGHT(AB46,LEN(AB46)-5)&")","") -> Trans World Entertainment (TWMC) | U46: =IF(R46="","",IFERROR(RTD("cqg.rtd",,"ContractData",AB46,"LastTrade",,"T"),"")) -> 1.21 | V46: =IF(R46="","",IFERROR(RTD("cqg.rtd", ,"ContractData",AB46, "NetChange",, "T"),"")) -> -0.19 | W46: =IFERROR(RTD("cqg.rtd", ,"ContractData",AB46, "PerCentNetLastTrade",, "T")/100,"") -> -0.1357142857 | X46: =IFERROR(RTD("cqg.rtd",,"StudyData",AB46, "Vol", "VolType=Exchange,CoCType=Auto", "Vol","ADC","0","ALL",,,"TRUE","T")/ RTD("cqg.rtd",,"StudyData",AB46, "MA", "InputChoice=ContractVol,MAType=Sim,Period=21", "MA","D","-1","all",,,,"T"),"") -> 2.30087488 | Y46: =IF(R46="","",IFERROR(RTD("cqg.rtd", ,"ContractData",AB46, "Open",, "T"),"")) -> 1.5 | Z46: =IF(R46="","",IFERROR(RTD("cqg.rtd", ,"ContractData",AB46, "High",, "T"),"")) -> 1.5 | AA46: =IF(R46="","",IFERROR(RTD("cqg.rtd", ,"ContractData",AB46, "Low",, "T"),"")) -> 1.1 | AB46: =NASDAQ!N10 -> S.US.TWMC
C47: Copyright © 2018 | E47: Designed by Thom Hartle | T47: To better manage performance the dashboard ranking does not update on every quote, but once every
T48: second. Click "Rank" to force an update if the percent net change column is out of order.

Sheet Symbols
E2: Requires Real-Time Data
C3: Left hand display | H3: Right hand display | L3: DJUPV | O3: DJDNV | R3: NASUPV | U3: NASDNV | X3: DJUCV | AA3: NASUCV | AD3: DJIUP | AG3: NASIUP | AJ3: DJIDN | AM3: NASIDN | AP3: DJIUC | AS3: NASIUC | AV3: DJTIC | AY3: NASTIC
C4: Symbols | D4: Description | H4: Symbols | I4: Description | K4: -10 | L4: =RTD("cqg.rtd",,"StudyData",$L$3,"Bar",,"Close","5",K4,,,,,"T") -> 77819 | N4: -10 | O4: =RTD("cqg.rtd",,"StudyData",$O$3,"Bar",,"Close","5",N4,,,,,"T") -> 99072 | Q4: -10 | R4: =RTD("cqg.rtd",,"StudyData",$R$3,"Bar",,"Close","5",Q4,,,,,"T") -> 230310 | T4: -10 | U4: =RTD("cqg.rtd",,"StudyData",$U$3,"Bar",,"Close","5",T4,,,,,"T") -> 289937 | W4: -10 | X4: =RTD("cqg.rtd",,"StudyData",$X$3,"Bar",,"Close","5",W4,,,,,"T") -> 1618 | Z4: -10 | AA4: =RTD("cqg.rtd",,"StudyData",$AA$3,"Bar",,"Close","5",Z4,,,,,"T") -> 71777 | AC4: -10 | AD4: =RTD("cqg.rtd",,"StudyData",$AD$3,"Bar",,"Close","5",AC4,,,,,"T") -> 1257 | AF4: -10 | AG4: =RTD("cqg.rtd",,"StudyData",$AG$3,"Bar",,"Close","5",AF4,,,,,"T") -> 1140 | AI4: -10 | AJ4: =RTD("cqg.rtd",,"StudyData",$AJ$3,"Bar",,"Close","5",AI4,,,,,"T") -> 1548 | AL4: -10 | AM4: =RTD("cqg.rtd",,"StudyData",$AM$3,"Bar",,"Close","5",AL4,,,,,"T") -> 1531 | AO4: -10 | AP4: =RTD("cqg.rtd",,"StudyData",$AP$3,"Bar",,"Close","5",AO4,,,,,"T") -> 116 | AR4: -10 | AS4: =RTD("cqg.rtd",,"StudyData",$AS$3,"Bar",,"Close","5",AR4,,,,,"T") -> 137 | AU4: -10 | AV4: =RTD("cqg.rtd",,"StudyData",$AV$3,"Bar",,"Close","5",AU4,,,,,"T") -> 70 | AX4: -10 | AY4: =RTD("cqg.rtd",,"StudyData",$AY$3,"Bar",,"Close","5",AX4,,,,,"T") -> -5
C5: X.US.SPC | D5: =RTD("cqg.rtd", ,"ContractData",C5, "LongDescription",, "T") -> S&P 500 | H5: X.US.NQCOMP | I5: =RTD("cqg.rtd", ,"ContractData",H5, "LongDescription",, "T") -> NASDAQ Composite Index | K5: =K4+1 -> -9 | L5: =RTD("cqg.rtd",,"StudyData",$L$3,"Bar",,"Close","5",K5,,,,,"T") -> 78563 | N5: =N4+1 -> -9 | O5: =RTD("cqg.rtd",,"StudyData",$O$3,"Bar",,"Close","5",N5,,,,,"T") -> 102139 | Q5: =Q4+1 -> -9 | R5: =RTD("cqg.rtd",,"StudyData",$R$3,"Bar",,"Close","5",Q5,,,,,"T") -> 238435 | T5: =T4+1 -> -9 | U5: =RTD("cqg.rtd",,"StudyData",$U$3,"Bar",,"Close","5",T5,,,,,"T") -> 300112 | W5: =W4+1 -> -9 | X5: =RTD("cqg.rtd",,"StudyData",$X$3,"Bar",,"Close","5",W5,,,,,"T") -> 4194 | Z5: =Z4+1 -> -9 | AA5: =RTD("cqg.rtd",,"StudyData",$AA$3,"Bar",,"Close","5",Z5,,,,,"T") -> 73708 | AC5: =AC4+1 -> -9 | AD5: =RTD("cqg.rtd",,"StudyData",$AD$3,"Bar",,"Close","5",AC5,,,,,"T") -> 1275 | AF5: =AF4+1 -> -9 | AG5: =RTD("cqg.rtd",,"StudyData",$AG$3,"Bar",,"Close","5",AF5,,,,,"T") -> 1155 | AI5: =AI4+1 -> -9 | AJ5: =RTD("cqg.rtd",,"StudyData",$AJ$3,"Bar",,"Close","5",AI5,,,,,"T") -> 1541 | AL5: =AL4+1 -> -9 | AM5: =RTD("cqg.rtd",,"StudyData",$AM$3,"Bar",,"Close","5",AL5,,,,,"T") -> 1529 | AO5: =AO4+1 -> -9 | AP5: =RTD("cqg.rtd",,"StudyData",$AP$3,"Bar",,"Close","5",AO5,,,,,"T") -> 110 | AR5: =AR4+1 -> -9 | AS5: =RTD("cqg.rtd",,"StudyData",$AS$3,"Bar",,"Close","5",AR5,,,,,"T") -> 136 | AU5: =AU4+1 -> -9 | AV5: =RTD("cqg.rtd",,"StudyData",$AV$3,"Bar",,"Close","5",AU5,,,,,"T") -> -12 | AX5: =AX4+1 -> -9 | AY5: =RTD("cqg.rtd",,"StudyData",$AY$3,"Bar",,"Close","5",AX5,,,,,"T") -> 44
C6: X.US.DJI | D6: =RTD("cqg.rtd", ,"ContractData",C6, "LongDescription",, "T") -> DJ Industrial Average | H6: X.US.NDX | I6: =RTD("cqg.rtd", ,"ContractData",H6, "LongDescription",, "T") -> NASDAQ-100 Index | K6: =K5+1 -> -8 | L6: =RTD("cqg.rtd",,"StudyData",$L$3,"Bar",,"Close","5",K6,,,,,"T") -> 72860 | N6: =N5+1 -> -8 | O6: =RTD("cqg.rtd",,"StudyData",$O$3,"Bar",,"Close","5",N6,,,,,"T") -> 117166 | Q6: =Q5+1 -> -8 | R6: =RTD("cqg.rtd",,"StudyData",$R$3,"Bar",,"Close","5",Q6,,,,,"T") -> 232118 | T6: =T5+1 -> -8 | U6: =RTD("cqg.rtd",,"StudyData",$U$3,"Bar",,"Close","5",T6,,,,,"T") -> 325809 | W6: =W5+1 -> -8 | X6: =RTD("cqg.rtd",,"StudyData",$X$3,"Bar",,"Close","5",W6,,,,,"T") -> 2317 | Z6: =Z5+1 -> -8 | AA6: =RTD("cqg.rtd",,"StudyData",$AA$3,"Bar",,"Close","5",Z6,,,,,"T") -> 86807 | AC6: =AC5+1 -> -8 | AD6: =RTD("cqg.rtd",,"StudyData",$AD$3,"Bar",,"Close","5",AC6,,,,,"T") -> 1215 | AF6: =AF5+1 -> -8 | AG6: =RTD("cqg.rtd",,"StudyData",$AG$3,"Bar",,"Close","5",AF6,,,,,"T") -> 1091 | AI6: =AI5+1 -> -8 | AJ6: =RTD("cqg.rtd",,"StudyData",$AJ$3,"Bar",,"Close","5",AI6,,,,,"T") -> 1597 | AL6: =AL5+1 -> -8 | AM6: =RTD("cqg.rtd",,"StudyData",$AM$3,"Bar",,"Close","5",AL6,,,,,"T") -> 1592 | AO6: =AO5+1 -> -8 | AP6: =RTD("cqg.rtd",,"StudyData",$AP$3,"Bar",,"Close","5",AO6,,,,,"T") -> 117 | AR6: =AR5+1 -> -8 | AS6: =RTD("cqg.rtd",,"StudyData",$AS$3,"Bar",,"Close","5",AR6,,,,,"T") -> 144 | AU6: =AU5+1 -> -8 | AV6: =RTD("cqg.rtd",,"StudyData",$AV$3,"Bar",,"Close","5",AU6,,,,,"T") -> -354 | AX6: =AX5+1 -> -8 | AY6: =RTD("cqg.rtd",,"StudyData",$AY$3,"Bar",,"Close","5",AX6,,,,,"T") -> -55
C7: X.US.NYK | D7: =RTD("cqg.rtd", ,"ContractData",C7, "LongDescription",, "T") -> NYSE Financial Index | H7: X.US.IXF | I7: =RTD("cqg.rtd", ,"ContractData",H7, "LongDescription",, "T") -> NASDAQ Financial 100 | K7: -7 | L7: =RTD("cqg.rtd",,"StudyData",$L$3,"Bar",,"Close","5",K7,,,,,"T") -> 79701 | N7: -7 | O7: =RTD("cqg.rtd",,"StudyData",$O$3,"Bar",,"Close","5",N7,,,,,"T") -> 116365 | Q7: -7 | R7: =RTD("cqg.rtd",,"StudyData",$R$3,"Bar",,"Close","5",Q7,,,,,"T") -> 245558 | T7: -7 | U7: =RTD("cqg.rtd",,"StudyData",$U$3,"Bar",,"Close","5",T7,,,,,"T") -> 328459 | W7: -7 | X7: =RTD("cqg.rtd",,"StudyData",$X$3,"Bar",,"Close","5",W7,,,,,"T") -> 1498 | Z7: -7 | AA7: =RTD("cqg.rtd",,"StudyData",$AA$3,"Bar",,"Close","5",Z7,,,,,"T") -> 94276 | AC7: -7 | AD7: =RTD("cqg.rtd",,"StudyData",$AD$3,"Bar",,"Close","5",AC7,,,,,"T") -> 1274 | AF7: -7 | AG7: =RTD("cqg.rtd",,"StudyData",$AG$3,"Bar",,"Close","5",AF7,,,,,"T") -> 1097 | AI7: -7 | AJ7: =RTD("cqg.rtd",,"StudyData",$AJ$3,"Bar",,"Close","5",AI7,,,,,"T") -> 1558 | AL7: -7 | AM7: =RTD("cqg.rtd",,"StudyData",$AM$3,"Bar",,"Close","5",AL7,,,,,"T") -> 1606 | AO7: -7 | AP7: =RTD("cqg.rtd",,"StudyData",$AP$3,"Bar",,"Close","5",AO7,,,,,"T") -> 106 | AR7: -7 | AS7: =RTD("cqg.rtd",,"StudyData",$AS$3,"Bar",,"Close","5",AR7,,,,,"T") -> 136 | AU7: -7 | AV7: =RTD("cqg.rtd",,"StudyData",$AV$3,"Bar",,"Close","5",AU7,,,,,"T") -> 291 | AX7: -7 | AY7: =RTD("cqg.rtd",,"StudyData",$AY$3,"Bar",,"Close","5",AX7,,,,,"T") -> 6
C8: X.US.BTK | D8: =RTD("cqg.rtd", ,"ContractData",C8, "LongDescription",, "T") -> Biotechnology Index | H8: X.US.NBI | I8: =RTD("cqg.rtd", ,"ContractData",H8, "LongDescription",, "T") -> NASDAQ Biotechnology | K8: -6 | L8: =RTD("cqg.rtd",,"StudyData",$L$3,"Bar",,"Close","5",K8,,,,,"T") -> 80837 | N8: -6 | O8: =RTD("cqg.rtd",,"StudyData",$O$3,"Bar",,"Close","5",N8,,,,,"T") -> 120502 | Q8: -6 | R8: =RTD("cqg.rtd",,"StudyData",$R$3,"Bar",,"Close","5",Q8,,,,,"T") -> 234975 | T8: -6 | U8: =RTD("cqg.rtd",,"StudyData",$U$3,"Bar",,"Close","5",T8,,,,,"T") -> 359591 | W8: -6 | X8: =RTD("cqg.rtd",,"StudyData",$X$3,"Bar",,"Close","5",W8,,,,,"T") -> 1944 | Z8: -6 | AA8: =RTD("cqg.rtd",,"StudyData",$AA$3,"Bar",,"Close","5",Z8,,,,,"T") -> 78631 | AC8: -6 | AD8: =RTD("cqg.rtd",,"StudyData",$AD$3,"Bar",,"Close","5",AC8,,,,,"T") -> 1277 | AF8: -6 | AG8: =RTD("cqg.rtd",,"StudyData",$AG$3,"Bar",,"Close","5",AF8,,,,,"T") -> 1086 | AI8: -6 | AJ8: =RTD("cqg.rtd",,"StudyData",$AJ$3,"Bar",,"Close","5",AI8,,,,,"T") -> 1553 | AL8: -6 | AM8: =RTD("cqg.rtd",,"StudyData",$AM$3,"Bar",,"Close","5",AL8,,,,,"T") -> 1617 | AO8: -6 | AP8: =RTD("cqg.rtd",,"StudyData",$AP$3,"Bar",,"Close","5",AO8,,,,,"T") -> 113 | AR8: -6 | AS8: =RTD("cqg.rtd",,"StudyData",$AS$3,"Bar",,"Close","5",AR8,,,,,"T") -> 145 | AU8: -6 | AV8: =RTD("cqg.rtd",,"StudyData",$AV$3,"Bar",,"Close","5",AU8,,,,,"T") -> -128 | AX8: -6 | AY8: =RTD("cqg.rtd",,"StudyData",$AY$3,"Bar",,"Close","5",AX8,,,,,"T") -> -2
C9: X.US.NYPID | D9: =RTD("cqg.rtd", ,"ContractData",C9, "LongDescription",, "T") -> NYSE Healthcare Index | H9: X.US.NHC | I9: =RTD("cqg.rtd", ,"ContractData",H9, "LongDescription",, "T") -> Nasdaq Health Care Index | K9: -5 | L9: =RTD("cqg.rtd",,"StudyData",$L$3,"Bar",,"Close","5",K9,,,,,"T") -> 84201 | N9: -5 | O9: =RTD("cqg.rtd",,"StudyData",$O$3,"Bar",,"Close","5",N9,,,,,"T") -> 119930 | Q9: -5 | R9: =RTD("cqg.rtd",,"StudyData",$R$3,"Bar",,"Close","5",Q9,,,,,"T") -> 244364 | T9: -5 | U9: =RTD("cqg.rtd",,"StudyData",$U$3,"Bar",,"Close","5",T9,,,,,"T") -> 370660 | W9: -5 | X9: =RTD("cqg.rtd",,"StudyData",$X$3,"Bar",,"Close","5",W9,,,,,"T") -> 4032 | Z9: -5 | AA9: =RTD("cqg.rtd",,"StudyData",$AA$3,"Bar",,"Close","5",Z9,,,,,"T") -> 47381 | AC9: -5 | AD9: =RTD("cqg.rtd",,"StudyData",$AD$3,"Bar",,"Close","5",AC9,,,,,"T") -> 1293 | AF9: -5 | AG9: =RTD("cqg.rtd",,"StudyData",$AG$3,"Bar",,"Close","5",AF9,,,,,"T") -> 1103 | AI9: -5 | AJ9: =RTD("cqg.rtd",,"StudyData",$AJ$3,"Bar",,"Close","5",AI9,,,,,"T") -> 1533 | AL9: -5 | AM9: =RTD("cqg.rtd",,"StudyData",$AM$3,"Bar",,"Close","5",AL9,,,,,"T") -> 1624 | AO9: -5 | AP9: =RTD("cqg.rtd",,"StudyData",$AP$3,"Bar",,"Close","5",AO9,,,,,"T") -> 119 | AR9: -5 | AS9: =RTD("cqg.rtd",,"StudyData",$AS$3,"Bar",,"Close","5",AR9,,,,,"T") -> 126 | AU9: -5 | AV9: =RTD("cqg.rtd",,"StudyData",$AV$3,"Bar",,"Close","5",AU9,,,,,"T") -> 111 | AX9: -5 | AY9: =RTD("cqg.rtd",,"StudyData",$AY$3,"Bar",,"Close","5",AX9,,,,,"T") -> -9
C10: X.US.IXE | D10: =RTD("cqg.rtd", ,"ContractData",C10, "LongDescription",, "T") -> S&P 500 Select Sector Energy Index | H10: X.US.OSX | I10: =RTD("cqg.rtd", ,"ContractData",H10, "LongDescription",, "T") -> PHLX Oil Service Sector | K10: -4 | L10: =RTD("cqg.rtd",,"StudyData",$L$3,"Bar",,"Close","5",K10,,,,,"T") -> 98187 | N10: -4 | O10: =RTD("cqg.rtd",,"StudyData",$O$3,"Bar",,"Close","5",N10,,,,,"T") -> 112662 | Q10: -4 | R10: =RTD("cqg.rtd",,"StudyData",$R$3,"Bar",,"Close","5",Q10,,,,,"T") -> 254215 | T10: -4 | U10: =RTD("cqg.rtd",,"StudyData",$U$3,"Bar",,"Close","5",T10,,,,,"T") -> 372764 | W10: -4 | X10: =RTD("cqg.rtd",,"StudyData",$X$3,"Bar",,"Close","5",W10,,,,,"T") -> 2529 | Z10: -4 | AA10: =RTD("cqg.rtd",,"StudyData",$AA$3,"Bar",,"Close","5",Z10,,,,,"T") -> 111169 | AC10: -4 | AD10: =RTD("cqg.rtd",,"StudyData",$AD$3,"Bar",,"Close","5",AC10,,,,,"T") -> 1307 | AF10: -4 | AG10: =RTD("cqg.rtd",,"StudyData",$AG$3,"Bar",,"Close","5",AF10,,,,,"T") -> 1070 | AI10: -4 | AJ10: =RTD("cqg.rtd",,"StudyData",$AJ$3,"Bar",,"Close","5",AI10,,,,,"T") -> 1533 | AL10: -4 | AM10: =RTD("cqg.rtd",,"StudyData",$AM$3,"Bar",,"Close","5",AL10,,,,,"T") -> 1657 | AO10: -4 | AP10: =RTD("cqg.rtd",,"StudyData",$AP$3,"Bar",,"Close","5",AO10,,,,,"T") -> 109 | AR10: -4 | AS10: =RTD("cqg.rtd",,"StudyData",$AS$3,"Bar",,"Close","5",AR10,,,,,"T") -> 138 | AU10: -4 | AV10: =RTD("cqg.rtd",,"StudyData",$AV$3,"Bar",,"Close","5",AU10,,,,,"T") -> 374 | AX10: -4 | AY10: =RTD("cqg.rtd",,"StudyData",$AY$3,"Bar",,"Close","5",AX10,,,,,"T") -> 17
C11: S.US.XLE | D11: =RTD("cqg.rtd", ,"ContractData",C11, "LongDescription",, "T") -> Energy Select Sector SPDR | H11: S.US.SIRI | I11: =RTD("cqg.rtd", ,"ContractData",H11, "LongDescription",, "T") -> Sirius XM Holdings Inc. | K11: -3 | L11: =RTD("cqg.rtd",,"StudyData",$L$3,"Bar",,"Close","5",K11,,,,,"T") -> 100040 | N11: -3 | O11: =RTD("cqg.rtd",,"StudyData",$O$3,"Bar",,"Close","5",N11,,,,,"T") -> 117836 | Q11: -3 | R11: =RTD("cqg.rtd",,"StudyData",$R$3,"Bar",,"Close","5",Q11,,,,,"T") -> 255886 | T11: -3 | U11: =RTD("cqg.rtd",,"StudyData",$U$3,"Bar",,"Close","5",T11,,,,,"T") -> 389266 | W11: -3 | X11: =RTD("cqg.rtd",,"StudyData",$X$3,"Bar",,"Close","5",W11,,,,,"T") -> 1460 | Z11: -3 | AA11: =RTD("cqg.rtd",,"StudyData",$AA$3,"Bar",,"Close","5",Z11,,,,,"T") -> 93013 | AC11: -3 | AD11: =RTD("cqg.rtd",,"StudyData",$AD$3,"Bar",,"Close","5",AC11,,,,,"T") -> 1337 | AF11: -3 | AG11: =RTD("cqg.rtd",,"StudyData",$AG$3,"Bar",,"Close","5",AF11,,,,,"T") -> 1072 | AI11: -3 | AJ11: =RTD("cqg.rtd",,"StudyData",$AJ$3,"Bar",,"Close","5",AI11,,,,,"T") -> 1520 | AL11: -3 | AM11: =RTD("cqg.rtd",,"StudyData",$AM$3,"Bar",,"Close","5",AL11,,,,,"T") -> 1667 | AO11: -3 | AP11: =RTD("cqg.rtd",,"StudyData",$AP$3,"Bar",,"Close","5",AO11,,,,,"T") -> 93 | AR11: -3 | AS11: =RTD("cqg.rtd",,"StudyData",$AS$3,"Bar",,"Close","5",AR11,,,,,"T") -> 130 | AU11: -3 | AV11: =RTD("cqg.rtd",,"StudyData",$AV$3,"Bar",,"Close","5",AU11,,,,,"T") -> 393 | AX11: -3 | AY11: =RTD("cqg.rtd",,"StudyData",$AY$3,"Bar",,"Close","5",AX11,,,,,"T") -> -5
C12: S.US.RSP | D12: =RTD("cqg.rtd", ,"ContractData",C12, "LongDescription",, "T") -> Guggenheim S&P 500 Equal Weight ETF | H12: S.US.AAPL | I12: =RTD("cqg.rtd", ,"ContractData",H12, "LongDescription",, "T") -> Apple Inc | K12: -2 | L12: =RTD("cqg.rtd",,"StudyData",$L$3,"Bar",,"Close","5",K12,,,,,"T") -> 108502 | N12: -2 | O12: =RTD("cqg.rtd",,"StudyData",$O$3,"Bar",,"Close","5",N12,,,,,"T") -> 107641 | Q12: -2 | R12: =RTD("cqg.rtd",,"StudyData",$R$3,"Bar",,"Close","5",Q12,,,,,"T") -> 301484 | T12: -2 | U12: =RTD("cqg.rtd",,"StudyData",$U$3,"Bar",,"Close","5",T12,,,,,"T") -> 364975 | W12: -2 | X12: =RTD("cqg.rtd",,"StudyData",$X$3,"Bar",,"Close","5",W12,,,,,"T") -> 8442 | Z12: -2 | AA12: =RTD("cqg.rtd",,"StudyData",$AA$3,"Bar",,"Close","5",Z12,,,,,"T") -> 71113 | AC12: -2 | AD12: =RTD("cqg.rtd",,"StudyData",$AD$3,"Bar",,"Close","5",AC12,,,,,"T") -> 1406 | AF12: -2 | AG12: =RTD("cqg.rtd",,"StudyData",$AG$3,"Bar",,"Close","5",AF12,,,,,"T") -> 1170 | AI12: -2 | AJ12: =RTD("cqg.rtd",,"StudyData",$AJ$3,"Bar",,"Close","5",AI12,,,,,"T") -> 1442 | AL12: -2 | AM12: =RTD("cqg.rtd",,"StudyData",$AM$3,"Bar",,"Close","5",AL12,,,,,"T") -> 1573 | AO12: -2 | AP12: =RTD("cqg.rtd",,"StudyData",$AP$3,"Bar",,"Close","5",AO12,,,,,"T") -> 104 | AR12: -2 | AS12: =RTD("cqg.rtd",,"StudyData",$AS$3,"Bar",,"Close","5",AR12,,,,,"T") -> 131 | AU12: -2 | AV12: =RTD("cqg.rtd",,"StudyData",$AV$3,"Bar",,"Close","5",AU12,,,,,"T") -> 285 | AX12: -2 | AY12: =RTD("cqg.rtd",,"StudyData",$AY$3,"Bar",,"Close","5",AX12,,,,,"T") -> 117
C13: S.US.SPY | D13: =RTD("cqg.rtd", ,"ContractData",C13, "LongDescription",, "T") -> SPDR S&P 500 | H13: S.US.TSLA | I13: =RTD("cqg.rtd", ,"ContractData",H13, "LongDescription",, "T") -> Tesla, Inc. | K13: -1 | L13: =RTD("cqg.rtd",,"StudyData",$L$3,"Bar",,"Close","5",K13,,,,,"T") -> 114322 | N13: -1 | O13: =RTD("cqg.rtd",,"StudyData",$O$3,"Bar",,"Close","5",N13,,,,,"T") -> 110775 | Q13: -1 | R13: =RTD("cqg.rtd",,"StudyData",$R$3,"Bar",,"Close","5",Q13,,,,,"T") -> 316606 | T13: -1 | U13: =RTD("cqg.rtd",,"StudyData",$U$3,"Bar",,"Close","5",T13,,,,,"T") -> 362913 | W13: -1 | X13: =RTD("cqg.rtd",,"StudyData",$X$3,"Bar",,"Close","5",W13,,,,,"T") -> 4515 | Z13: -1 | AA13: =RTD("cqg.rtd",,"StudyData",$AA$3,"Bar",,"Close","5",Z13,,,,,"T") -> 109441 | AC13: -1 | AD13: =RTD("cqg.rtd",,"StudyData",$AD$3,"Bar",,"Close","5",AC13,,,,,"T") -> 1472 | AF13: -1 | AG13: =RTD("cqg.rtd",,"StudyData",$AG$3,"Bar",,"Close","5",AF13,,,,,"T") -> 1230 | AI13: -1 | AJ13: =RTD("cqg.rtd",,"StudyData",$AJ$3,"Bar",,"Close","5",AI13,,,,,"T") -> 1379 | AL13: -1 | AM13: =RTD("cqg.rtd",,"StudyData",$AM$3,"Bar",,"Close","5",AL13,,,,,"T") -> 1514 | AO13: -1 | AP13: =RTD("cqg.rtd",,"StudyData",$AP$3,"Bar",,"Close","5",AO13,,,,,"T") -> 106 | AR13: -1 | AS13: =RTD("cqg.rtd",,"StudyData",$AS$3,"Bar",,"Close","5",AR13,,,,,"T") -> 139 | AU13: -1 | AV13: =RTD("cqg.rtd",,"StudyData",$AV$3,"Bar",,"Close","5",AU13,,,,,"T") -> 250 | AX13: -1 | AY13: =RTD("cqg.rtd",,"StudyData",$AY$3,"Bar",,"Close","5",AX13,,,,,"T") -> 160
C14: F.US.EP | D14: =RTD("cqg.rtd", ,"ContractData",C14, "LongDescription",, "T") -> E-Mini S&P 500, Jun 18 | H14: S.US.MU | I14: =RTD("cqg.rtd", ,"ContractData",H14, "LongDescription",, "T") -> Micron Technology Inc | K14: =K13+1 -> 0 | L14: =RTD("cqg.rtd",,"StudyData",$L$3,"Bar",,"Close","5",K14,,,,,"T") -> 129101 | N14: 0 | O14: =RTD("cqg.rtd",,"StudyData",$O$3,"Bar",,"Close","5",N14,,,,,"T") -> 101343 | Q14: 0 | R14: =RTD("cqg.rtd",,"StudyData",$R$3,"Bar",,"Close","5",Q14,,,,,"T") -> 339550 | T14: 0 | U14: =RTD("cqg.rtd",,"StudyData",$U$3,"Bar",,"Close","5",T14,,,,,"T") -> 353797 | W14: 0 | X14: =RTD("cqg.rtd",,"StudyData",$X$3,"Bar",,"Close","5",W14,,,,,"T") -> 2349 | Z14: 0 | AA14: =RTD("cqg.rtd",,"StudyData",$AA$3,"Bar",,"Close","5",Z14,,,,,"T") -> 95356 | AC14: 0 | AD14: =RTD("cqg.rtd",,"StudyData",$AD$3,"Bar",,"Close","5",AC14,,,,,"T") -> 1540 | AF14: 0 | AG14: =RTD("cqg.rtd",,"StudyData",$AG$3,"Bar",,"Close","5",AF14,,,,,"T") -> 1282 | AI14: 0 | AJ14: =RTD("cqg.rtd",,"StudyData",$AJ$3,"Bar",,"Close","5",AI14,,,,,"T") -> 1320 | AL14: 0 | AM14: =RTD("cqg.rtd",,"StudyData",$AM$3,"Bar",,"Close","5",AL14,,,,,"T") -> 1463 | AO14: 0 | AP14: =RTD("cqg.rtd",,"StudyData",$AP$3,"Bar",,"Close","5",AO14,,,,,"T") -> 100 | AR14: 0 | AS14: =RTD("cqg.rtd",,"StudyData",$AS$3,"Bar",,"Close","5",AR14,,,,,"T") -> 139 | AU14: 0 | AV14: =RTD("cqg.rtd",,"StudyData",$AV$3,"Bar",,"Close","5",AU14,,,,,"T") -> 227 | AX14: 0 | AY14: =RTD("cqg.rtd",,"StudyData",$AY$3,"Bar",,"Close","5",AX14,,,,,"T") -> 173
C15: F.US.CLE | D15: =RTD("cqg.rtd", ,"ContractData",C15, "LongDescription",, "T") -> Crude Light (Globex), May 18 | H15: S.US.QQQ | I15: =RTD("cqg.rtd", ,"ContractData",H15, "LongDescription",, "T") -> Powershares QQQ Trust
C16: F.US.HOE | D16: =RTD("cqg.rtd", ,"ContractData",C16, "LongDescription",, "T") -> NY Harbor ULSD, May 18 | H16: S.US.CSCO | I16: =RTD("cqg.rtd", ,"ContractData",H16, "LongDescription",, "T") -> Cisco Systems Inc
C17: F.US.RBE | D17: =RTD("cqg.rtd", ,"ContractData",C17, "LongDescription",, "T") -> RBOB Gasoline (Globex), May 18 | H17: S.US.FB | I17: =RTD("cqg.rtd", ,"ContractData",H17, "LongDescription",, "T") -> Facebook, Inc. | K17: -24 | L17: =RTD("cqg.rtd",,"StudyData",$C$5,"Bar",,"Time","5",K17,,,,,"T") -> 43186.36111 | M17: =RTD("cqg.rtd",,"StudyData",$C$5,"Bar",,"Open","5",K17,,,,,"T") -> 2663.73 | N17: =RTD("cqg.rtd",,"StudyData",$C$5,"Bar",,"High","5",K17,,,,,"T") -> 2663.78 | O17: =RTD("cqg.rtd",,"StudyData",$C$5,"Bar",,"Low","5",K17,,,,,"T") -> 2659.74 | P17: =RTD("cqg.rtd",,"StudyData",$C$5,"Bar",,"Close","5",K17,,,,,"T") -> 2660.1 | R17: -24 | S17: =RTD("cqg.rtd",,"StudyData",$H$5,"Bar",,"Time","5",R17,,,,,"T") -> 43186.36111 | T17: =RTD("cqg.rtd",,"StudyData",$H$5,"Bar",,"Open","5",R17,,,,,"T") -> 7242.74 | U17: =RTD("cqg.rtd",,"StudyData",$H$5,"Bar",,"High","5",R17,,,,,"T") -> 7245.61 | V17: =RTD("cqg.rtd",,"StudyData",$H$5,"Bar",,"Low","5",R17,,,,,"T") -> 7231.96 | W17: =RTD("cqg.rtd",,"StudyData",$H$5,"Bar",,"Close","5",R17,,,,,"T") -> 7231.96
C18: F.US.GCE | D18: =RTD("cqg.rtd", ,"ContractData",C18, "LongDescription",, "T") -> Gold (Globex), Jun 18 | H18: S.US.TLT | I18: =RTD("cqg.rtd", ,"ContractData",H18, "LongDescription",, "T") -> iShares 20+ Year Treasury Bond ETF | K18: =K17+1 -> -23 | L18: =RTD("cqg.rtd",,"StudyData",$C$5,"Bar",,"Time","5",K18,,,,,"T") -> 43186.36458 | M18: =RTD("cqg.rtd",,"StudyData",$C$5,"Bar",,"Open","5",K18,,,,,"T") -> 2659.83 | N18: =RTD("cqg.rtd",,"StudyData",$C$5,"Bar",,"High","5",K18,,,,,"T") -> 2659.83 | O18: =RTD("cqg.rtd",,"StudyData",$C$5,"Bar",,"Low","5",K18,,,,,"T") -> 2655.2 | P18: =RTD("cqg.rtd",,"StudyData",$C$5,"Bar",,"Close","5",K18,,,,,"T") -> 2655.74 | R18: =R17+1 -> -23 | S18: =RTD("cqg.rtd",,"StudyData",$H$5,"Bar",,"Time","5",R18,,,,,"T") -> 43186.36458 | T18: =RTD("cqg.rtd",,"StudyData",$H$5,"Bar",,"Open","5",R18,,,,,"T") -> 7230.4 | U18: =RTD("cqg.rtd",,"StudyData",$H$5,"Bar",,"High","5",R18,,,,,"T") -> 7230.4 | V18: =RTD("cqg.rtd",,"StudyData",$H$5,"Bar",,"Low","5",R18,,,,,"T") -> 7216.35 | W18: =RTD("cqg.rtd",,"StudyData",$H$5,"Bar",,"Close","5",R18,,,,,"T") -> 7218.04
C19: F.US.DD | D19: =RTD("cqg.rtd", ,"ContractData",C19, "LongDescription",, "T") -> DAX Index, Jun 18 | H19: S.US.INTC | I19: =RTD("cqg.rtd", ,"ContractData",H19, "LongDescription",, "T") -> Intel Corporation | K19: =K18+1 -> -22 | L19: =RTD("cqg.rtd",,"StudyData",$C$5,"Bar",,"Time","5",K19,,,,,"T") -> 43186.36806 | M19: =RTD("cqg.rtd",,"StudyData",$C$5,"Bar",,"Open","5",K19,,,,,"T") -> 2655.85 | N19: =RTD("cqg.rtd",,"StudyData",$C$5,"Bar",,"High","5",K19,,,,,"T") -> 2658.57 | O19: =RTD("cqg.rtd",,"StudyData",$C$5,"Bar",,"Low","5",K19,,,,,"T") -> 2655.8 | P19: =RTD("cqg.rtd",,"StudyData",$C$5,"Bar",,"Close","5",K19,,,,,"T") -> 2657.87 | R19: =R18+1 -> -22 | S19: =RTD("cqg.rtd",,"StudyData",$H$5,"Bar",,"Time","5",R19,,,,,"T") -> 43186.36806 | T19: =RTD("cqg.rtd",,"StudyData",$H$5,"Bar",,"Open","5",R19,,,,,"T") -> 7218.13 | U19: =RTD("cqg.rtd",,"StudyData",$H$5,"Bar",,"High","5",R19,,,,,"T") -> 7227.58 | V19: =RTD("cqg.rtd",,"StudyData",$H$5,"Bar",,"Low","5",R19,,,,,"T") -> 7217.39 | W19: =RTD("cqg.rtd",,"StudyData",$H$5,"Bar",,"Close","5",R19,,,,,"T") -> 7225.13
C20: F.US.DSX | D20: =RTD("cqg.rtd", ,"ContractData",C20, "LongDescription",, "T") -> Euro STOXX 50, Jun 18 | H20: S.US.QCOM | I20: =RTD("cqg.rtd", ,"ContractData",H20, "LongDescription",, "T") -> QUALCOMM Inc | K20: -21 | L20: =RTD("cqg.rtd",,"StudyData",$C$5,"Bar",,"Time","5",K20,,,,,"T") -> 43186.37153 | M20: =RTD("cqg.rtd",,"StudyData",$C$5,"Bar",,"Open","5",K20,,,,,"T") -> 2657.88 | N20: =RTD("cqg.rtd",,"StudyData",$C$5,"Bar",,"High","5",K20,,,,,"T") -> 2663.54 | O20: =RTD("cqg.rtd",,"StudyData",$C$5,"Bar",,"Low","5",K20,,,,,"T") -> 2657.88 | P20: =RTD("cqg.rtd",,"StudyData",$C$5,"Bar",,"Close","5",K20,,,,,"T") -> 2663.39 | R20: -21 | S20: =RTD("cqg.rtd",,"StudyData",$H$5,"Bar",,"Time","5",R20,,,,,"T") -> 43186.37153 | T20: =RTD("cqg.rtd",,"StudyData",$H$5,"Bar",,"Open","5",R20,,,,,"T") -> 7225.02 | U20: =RTD("cqg.rtd",,"StudyData",$H$5,"Bar",,"High","5",R20,,,,,"T") -> 7241.82 | V20: =RTD("cqg.rtd",,"StudyData",$H$5,"Bar",,"Low","5",R20,,,,,"T") -> 7225.02 | W20: =RTD("cqg.rtd",,"StudyData",$H$5,"Bar",,"Close","5",R20,,,,,"T") -> 7241.2
C21: F.US.TYA | D21: =RTD("cqg.rtd", ,"ContractData",C21, "LongDescription",, "T") -> 10yr US Treasury Notes (Globex), Jun 18 | H21: S.US.AAL | I21: =RTD("cqg.rtd", ,"ContractData",H21, "LongDescription",, "T") -> American Airlines Group Inc. | K21: -20 | L21: =RTD("cqg.rtd",,"StudyData",$C$5,"Bar",,"Time","5",K21,,,,,"T") -> 43186.375 | M21: =RTD("cqg.rtd",,"StudyData",$C$5,"Bar",,"Open","5",K21,,,,,"T") -> 2663.44 | N21: =RTD("cqg.rtd",,"StudyData",$C$5,"Bar",,"High","5",K21,,,,,"T") -> 2665.28 | O21: =RTD("cqg.rtd",,"StudyData",$C$5,"Bar",,"Low","5",K21,,,,,"T") -> 2661.1 | P21: =RTD("cqg.rtd",,"StudyData",$C$5,"Bar",,"Close","5",K21,,,,,"T") -> 2665.28 | R21: -20 | S21: =RTD("cqg.rtd",,"StudyData",$H$5,"Bar",,"Time","5",R21,,,,,"T") -> 43186.375 | T21: =RTD("cqg.rtd",,"StudyData",$H$5,"Bar",,"Open","5",R21,,,,,"T") -> 7241.8 | U21: =RTD("cqg.rtd",,"StudyData",$H$5,"Bar",,"High","5",R21,,,,,"T") -> 7245.56 | V21: =RTD("cqg.rtd",,"StudyData",$H$5,"Bar",,"Low","5",R21,,,,,"T") -> 7232.07 | W21: =RTD("cqg.rtd",,"StudyData",$H$5,"Bar",,"Close","5",R21,,,,,"T") -> 7245.56
K22: -19 | L22: =RTD("cqg.rtd",,"StudyData",$C$5,"Bar",,"Time","5",K22,,,,,"T") -> 43186.37847 | M22: =RTD("cqg.rtd",,"StudyData",$C$5,"Bar",,"Open","5",K22,,,,,"T") -> 2665.31 | N22: =RTD("cqg.rtd",,"StudyData",$C$5,"Bar",,"High","5",K22,,,,,"T") -> 2667.31 | O22: =RTD("cqg.rtd",,"StudyData",$C$5,"Bar",,"Low","5",K22,,,,,"T") -> 2660.02 | P22: =RTD("cqg.rtd",,"StudyData",$C$5,"Bar",,"Close","5",K22,,,,,"T") -> 2663.23 | R22: -19 | S22: =RTD("cqg.rtd",,"StudyData",$H$5,"Bar",,"Time","5",R22,,,,,"T") -> 43186.37847 | T22: =RTD("cqg.rtd",,"StudyData",$H$5,"Bar",,"Open","5",R22,,,,,"T") -> 7245.73 | U22: =RTD("cqg.rtd",,"StudyData",$H$5,"Bar",,"High","5",R22,,,,,"T") -> 7250.71 | V22: =RTD("cqg.rtd",,"StudyData",$H$5,"Bar",,"Low","5",R22,,,,,"T") -> 7230.68 | W22: =RTD("cqg.rtd",,"StudyData",$H$5,"Bar",,"Close","5",R22,,,,,"T") -> 7235.62
C23: Enter in the symbols you require. | K23: -18 | L23: =RTD("cqg.rtd",,"StudyData",$C$5,"Bar",,"Time","5",K23,,,,,"T") -> 43186.38194 | M23: =RTD("cqg.rtd",,"StudyData",$C$5,"Bar",,"Open","5",K23,,,,,"T") -> 2663.26 | N23: =RTD("cqg.rtd",,"StudyData",$C$5,"Bar",,"High","5",K23,,,,,"T") -> 2663.26 | O23: =RTD("cqg.rtd",,"StudyData",$C$5,"Bar",,"Low","5",K23,,,,,"T") -> 2654.31 | P23: =RTD("cqg.rtd",,"StudyData",$C$5,"Bar",,"Close","5",K23,,,,,"T") -> 2655.87 | R23: -18 | S23: =RTD("cqg.rtd",,"StudyData",$H$5,"Bar",,"Time","5",R23,,,,,"T") -> 43186.38194 | T23: =RTD("cqg.rtd",,"StudyData",$H$5,"Bar",,"Open","5",R23,,,,,"T") -> 7235.62 | U23: =RTD("cqg.rtd",,"StudyData",$H$5,"Bar",,"High","5",R23,,,,,"T") -> 7235.62 | V23: =RTD("cqg.rtd",,"StudyData",$H$5,"Bar",,"Low","5",R23,,,,,"T") -> 7211.43 | W23: =RTD("cqg.rtd",,"StudyData",$H$5,"Bar",,"Close","5",R23,,,,,"T") -> 7216.22
C24: The two charts in the center top of the main page use the first symbol in the Left Hand and Right Hand Display columns above. | K24: -17 | L24: =RTD("cqg.rtd",,"StudyData",$C$5,"Bar",,"Time","5",K24,,,,,"T") -> 43186.38542 | M24: =RTD("cqg.rtd",,"StudyData",$C$5,"Bar",,"Open","5",K24,,,,,"T") -> 2655.82 | N24: =RTD("cqg.rtd",,"StudyData",$C$5,"Bar",,"High","5",K24,,,,,"T") -> 2657.47 | O24: =RTD("cqg.rtd",,"StudyData",$C$5,"Bar",,"Low","5",K24,,,,,"T") -> 2653.35 | P24: =RTD("cqg.rtd",,"StudyData",$C$5,"Bar",,"Close","5",K24,,,,,"T") -> 2656.64 | R24: -17 | S24: =RTD("cqg.rtd",,"StudyData",$H$5,"Bar",,"Time","5",R24,,,,,"T") -> 43186.38542 | T24: =RTD("cqg.rtd",,"StudyData",$H$5,"Bar",,"Open","5",R24,,,,,"T") -> 7215.93 | U24: =RTD("cqg.rtd",,"StudyData",$H$5,"Bar",,"High","5",R24,,,,,"T") -> 7217.04 | V24: =RTD("cqg.rtd",,"StudyData",$H$5,"Bar",,"Low","5",R24,,,,,"T") -> 7208.61 | W24: =RTD("cqg.rtd",,"StudyData",$H$5,"Bar",,"Close","5",R24,,,,,"T") -> 7215.65
K25: -16 | L25: =RTD("cqg.rtd",,"StudyData",$C$5,"Bar",,"Time","5",K25,,,,,"T") -> 43186.38889 | M25: =RTD("cqg.rtd",,"StudyData",$C$5,"Bar",,"Open","5",K25,,,,,"T") -> 2656.61 | N25: =RTD("cqg.rtd",,"StudyData",$C$5,"Bar",,"High","5",K25,,,,,"T") -> 2658.99 | O25: =RTD("cqg.rtd",,"StudyData",$C$5,"Bar",,"Low","5",K25,,,,,"T") -> 2655.09 | P25: =RTD("cqg.rtd",,"StudyData",$C$5,"Bar",,"Close","5",K25,,,,,"T") -> 2656.25 | R25: -16 | S25: =RTD("cqg.rtd",,"StudyData",$H$5,"Bar",,"Time","5",R25,,,,,"T") -> 43186.38889 | T25: =RTD("cqg.rtd",,"StudyData",$H$5,"Bar",,"Open","5",R25,,,,,"T") -> 7215.66 | U25: =RTD("cqg.rtd",,"StudyData",$H$5,"Bar",,"High","5",R25,,,,,"T") -> 7221.69 | V25: =RTD("cqg.rtd",,"StudyData",$H$5,"Bar",,"Low","5",R25,,,,,"T") -> 7209.87 | W25: =RTD("cqg.rtd",,"StudyData",$H$5,"Bar",,"Close","5",R25,,,,,"T") -> 7213.88
K26: -15 | L26: =RTD("cqg.rtd",,"StudyData",$C$5,"Bar",,"Time","5",K26,,,,,"T") -> 43186.39236 | M26: =RTD("cqg.rtd",,"StudyData",$C$5,"Bar",,"Open","5",K26,,,,,"T") -> 2656.28 | N26: =RTD("cqg.rtd",,"StudyData",$C$5,"Bar",,"High","5",K26,,,,,"T") -> 2660.04 | O26: =RTD("cqg.rtd",,"StudyData",$C$5,"Bar",,"Low","5",K26,,,,,"T") -> 2655.49 | P26: =RTD("cqg.rtd",,"StudyData",$C$5,"Bar",,"Close","5",K26,,,,,"T") -> 2658.54 | R26: -15 | S26: =RTD("cqg.rtd",,"StudyData",$H$5,"Bar",,"Time","5",R26,,,,,"T") -> 43186.39236 | T26: =RTD("cqg.rtd",,"StudyData",$H$5,"Bar",,"Open","5",R26,,,,,"T") -> 7214.08 | U26: =RTD("cqg.rtd",,"StudyData",$H$5,"Bar",,"High","5",R26,,,,,"T") -> 7225.62 | V26: =RTD("cqg.rtd",,"StudyData",$H$5,"Bar",,"Low","5",R26,,,,,"T") -> 7211.5 | W26: =RTD("cqg.rtd",,"StudyData",$H$5,"Bar",,"Close","5",R26,,,,,"T") -> 7221.89
C27: When entering symbols the "F.US." for futures or the "S.US." for stocks or the "X.US." for indicies are required. | K27: -14 | L27: =RTD("cqg.rtd",,"StudyData",$C$5,"Bar",,"Time","5",K27,,,,,"T") -> 43186.39583 | M27: =RTD("cqg.rtd",,"StudyData",$C$5,"Bar",,"Open","5",K27,,,,,"T") -> 2658.4 | N27: =RTD("cqg.rtd",,"StudyData",$C$5,"Bar",,"High","5",K27,,,,,"T") -> 2658.5 | O27: =RTD("cqg.rtd",,"StudyData",$C$5,"Bar",,"Low","5",K27,,,,,"T") -> 2652.57 | P27: =RTD("cqg.rtd",,"StudyData",$C$5,"Bar",,"Close","5",K27,,,,,"T") -> 2653.73 | R27: -14 | S27: =RTD("cqg.rtd",,"StudyData",$H$5,"Bar",,"Time","5",R27,,,,,"T") -> 43186.39583 | T27: =RTD("cqg.rtd",,"StudyData",$H$5,"Bar",,"Open","5",R27,,,,,"T") -> 7221.58 | U27: =RTD("cqg.rtd",,"StudyData",$H$5,"Bar",,"High","5",R27,,,,,"T") -> 7222.03 | V27: =RTD("cqg.rtd",,"StudyData",$H$5,"Bar",,"Low","5",R27,,,,,"T") -> 7205.45 | W27: =RTD("cqg.rtd",,"StudyData",$H$5,"Bar",,"Close","5",R27,,,,,"T") -> 7206.69
C28: Use all capital letters. | K28: -13 | L28: =RTD("cqg.rtd",,"StudyData",$C$5,"Bar",,"Time","5",K28,,,,,"T") -> 43186.39931 | M28: =RTD("cqg.rtd",,"StudyData",$C$5,"Bar",,"Open","5",K28,,,,,"T") -> 2653.7 | N28: =RTD("cqg.rtd",,"StudyData",$C$5,"Bar",,"High","5",K28,,,,,"T") -> 2657.53 | O28: =RTD("cqg.rtd",,"StudyData",$C$5,"Bar",,"Low","5",K28,,,,,"T") -> 2653.61 | P28: =RTD("cqg.rtd",,"StudyData",$C$5,"Bar",,"Close","5",K28,,,,,"T") -> 2657.26 | R28: -13 | S28: =RTD("cqg.rtd",,"StudyData",$H$5,"Bar",,"Time","5",R28,,,,,"T") -> 43186.39931 | T28: =RTD("cqg.rtd",,"StudyData",$H$5,"Bar",,"Open","5",R28,,,,,"T") -> 7206.68 | U28: =RTD("cqg.rtd",,"StudyData",$H$5,"Bar",,"High","5",R28,,,,,"T") -> 7216.84 | V28: =RTD("cqg.rtd",,"StudyData",$H$5,"Bar",,"Low","5",R28,,,,,"T") -> 7206.68 | W28: =RTD("cqg.rtd",,"StudyData",$H$5,"Bar",,"Close","5",R28,,,,,"T") -> 7216.42
K29: -12 | L29: =RTD("cqg.rtd",,"StudyData",$C$5,"Bar",,"Time","5",K29,,,,,"T") -> 43186.40278 | M29: =RTD("cqg.rtd",,"StudyData",$C$5,"Bar",,"Open","5",K29,,,,,"T") -> 2657.4 | N29: =RTD("cqg.rtd",,"StudyData",$C$5,"Bar",,"High","5",K29,,,,,"T") -> 2663.81 | O29: =RTD("cqg.rtd",,"StudyData",$C$5,"Bar",,"Low","5",K29,,,,,"T") -> 2656.4 | P29: =RTD("cqg.rtd",,"StudyData",$C$5,"Bar",,"Close","5",K29,,,,,"T") -> 2663.51 | R29: -12 | S29: =RTD("cqg.rtd",,"StudyData",$H$5,"Bar",,"Time","5",R29,,,,,"T") -> 43186.40278 | T29: =RTD("cqg.rtd",,"StudyData",$H$5,"Bar",,"Open","5",R29,,,,,"T") -> 7216.67 | U29: =RTD("cqg.rtd",,"StudyData",$H$5,"Bar",,"High","5",R29,,,,,"T") -> 7233.52 | V29: =RTD("cqg.rtd",,"StudyData",$H$5,"Bar",,"Low","5",R29,,,,,"T") -> 7213.9 | W29: =RTD("cqg.rtd",,"StudyData",$H$5,"Bar",,"Close","5",R29,,,,,"T") -> 7233.07
K30: -11 | L30: =RTD("cqg.rtd",,"StudyData",$C$5,"Bar",,"Time","5",K30,,,,,"T") -> 43186.40625 | M30: =RTD("cqg.rtd",,"StudyData",$C$5,"Bar",,"Open","5",K30,,,,,"T") -> 2663.61 | N30: =RTD("cqg.rtd",,"StudyData",$C$5,"Bar",,"High","5",K30,,,,,"T") -> 2664.03 | O30: =RTD("cqg.rtd",,"StudyData",$C$5,"Bar",,"Low","5",K30,,,,,"T") -> 2660.61 | P30: =RTD("cqg.rtd",,"StudyData",$C$5,"Bar",,"Close","5",K30,,,,,"T") -> 2661.28 | R30: -11 | S30: =RTD("cqg.rtd",,"StudyData",$H$5,"Bar",,"Time","5",R30,,,,,"T") -> 43186.40625 | T30: =RTD("cqg.rtd",,"StudyData",$H$5,"Bar",,"Open","5",R30,,,,,"T") -> 7233.02 | U30: =RTD("cqg.rtd",,"StudyData",$H$5,"Bar",,"High","5",R30,,,,,"T") -> 7233.9 | V30: =RTD("cqg.rtd",,"StudyData",$H$5,"Bar",,"Low","5",R30,,,,,"T") -> 7222.03 | W30: =RTD("cqg.rtd",,"StudyData",$H$5,"Bar",,"Close","5",R30,,,,,"T") -> 7222.09
K31: -10 | L31: =RTD("cqg.rtd",,"StudyData",$C$5,"Bar",,"Time","5",K31,,,,,"T") -> 43186.40972 | M31: =RTD("cqg.rtd",,"StudyData",$C$5,"Bar",,"Open","5",K31,,,,,"T") -> 2661.3 | N31: =RTD("cqg.rtd",,"StudyData",$C$5,"Bar",,"High","5",K31,,,,,"T") -> 2662.97 | O31: =RTD("cqg.rtd",,"StudyData",$C$5,"Bar",,"Low","5",K31,,,,,"T") -> 2659.04 | P31: =RTD("cqg.rtd",,"StudyData",$C$5,"Bar",,"Close","5",K31,,,,,"T") -> 2660.67 | R31: -10 | S31: =RTD("cqg.rtd",,"StudyData",$H$5,"Bar",,"Time","5",R31,,,,,"T") -> 43186.40972 | T31: =RTD("cqg.rtd",,"StudyData",$H$5,"Bar",,"Open","5",R31,,,,,"T") -> 7222.14 | U31: =RTD("cqg.rtd",,"StudyData",$H$5,"Bar",,"High","5",R31,,,,,"T") -> 7225.71 | V31: =RTD("cqg.rtd",,"StudyData",$H$5,"Bar",,"Low","5",R31,,,,,"T") -> 7212.98 | W31: =RTD("cqg.rtd",,"StudyData",$H$5,"Bar",,"Close","5",R31,,,,,"T") -> 7216.07
K32: -9 | L32: =RTD("cqg.rtd",,"StudyData",$C$5,"Bar",,"Time","5",K32,,,,,"T") -> 43186.41319 | M32: =RTD("cqg.rtd",,"StudyData",$C$5,"Bar",,"Open","5",K32,,,,,"T") -> 2660.67 | N32: =RTD("cqg.rtd",,"StudyData",$C$5,"Bar",,"High","5",K32,,,,,"T") -> 2663.32 | O32: =RTD("cqg.rtd",,"StudyData",$C$5,"Bar",,"Low","5",K32,,,,,"T") -> 2658.23 | P32: =RTD("cqg.rtd",,"StudyData",$C$5,"Bar",,"Close","5",K32,,,,,"T") -> 2658.92 | R32: -9 | S32: =RTD("cqg.rtd",,"StudyData",$H$5,"Bar",,"Time","5",R32,,,,,"T") -> 43186.41319 | T32: =RTD("cqg.rtd",,"StudyData",$H$5,"Bar",,"Open","5",R32,,,,,"T") -> 7216.16 | U32: =RTD("cqg.rtd",,"StudyData",$H$5,"Bar",,"High","5",R32,,,,,"T") -> 7222.18 | V32: =RTD("cqg.rtd",,"StudyData",$H$5,"Bar",,"Low","5",R32,,,,,"T") -> 7209.06 | W32: =RTD("cqg.rtd",,"StudyData",$H$5,"Bar",,"Close","5",R32,,,,,"T") -> 7210.53
K33: -8 | L33: =RTD("cqg.rtd",,"StudyData",$C$5,"Bar",,"Time","5",K33,,,,,"T") -> 43186.41667 | M33: =RTD("cqg.rtd",,"StudyData",$C$5,"Bar",,"Open","5",K33,,,,,"T") -> 2658.92 | N33: =RTD("cqg.rtd",,"StudyData",$C$5,"Bar",,"High","5",K33,,,,,"T") -> 2658.99 | O33: =RTD("cqg.rtd",,"StudyData",$C$5,"Bar",,"Low","5",K33,,,,,"T") -> 2655.71 | P33: =RTD("cqg.rtd",,"StudyData",$C$5,"Bar",,"Close","5",K33,,,,,"T") -> 2655.77 | R33: -8 | S33: =RTD("cqg.rtd",,"StudyData",$H$5,"Bar",,"Time","5",R33,,,,,"T") -> 43186.41667 | T33: =RTD("cqg.rtd",,"StudyData",$H$5,"Bar",,"Open","5",R33,,,,,"T") -> 7210.5 | U33: =RTD("cqg.rtd",,"StudyData",$H$5,"Bar",,"High","5",R33,,,,,"T") -> 7210.56 | V33: =RTD("cqg.rtd",,"StudyData",$H$5,"Bar",,"Low","5",R33,,,,,"T") -> 7200.57 | W33: =RTD("cqg.rtd",,"StudyData",$H$5,"Bar",,"Close","5",R33,,,,,"T") -> 7202.85
K34: -7 | L34: =RTD("cqg.rtd",,"StudyData",$C$5,"Bar",,"Time","5",K34,,,,,"T") -> 43186.42014 | M34: =RTD("cqg.rtd",,"StudyData",$C$5,"Bar",,"Open","5",K34,,,,,"T") -> 2655.87 | N34: =RTD("cqg.rtd",,"StudyData",$C$5,"Bar",,"High","5",K34,,,,,"T") -> 2659.19 | O34: =RTD("cqg.rtd",,"StudyData",$C$5,"Bar",,"Low","5",K34,,,,,"T") -> 2654.28 | P34: =RTD("cqg.rtd",,"StudyData",$C$5,"Bar",,"Close","5",K34,,,,,"T") -> 2659.01 | R34: -7 | S34: =RTD("cqg.rtd",,"StudyData",$H$5,"Bar",,"Time","5",R34,,,,,"T") -> 43186.42014 | T34: =RTD("cqg.rtd",,"StudyData",$H$5,"Bar",,"Open","5",R34,,,,,"T") -> 7203.05 | U34: =RTD("cqg.rtd",,"StudyData",$H$5,"Bar",,"High","5",R34,,,,,"T") -> 7208.34 | V34: =RTD("cqg.rtd",,"StudyData",$H$5,"Bar",,"Low","5",R34,,,,,"T") -> 7198.16 | W34: =RTD("cqg.rtd",,"StudyData",$H$5,"Bar",,"Close","5",R34,,,,,"T") -> 7208.01
K35: -6 | L35: =RTD("cqg.rtd",,"StudyData",$C$5,"Bar",,"Time","5",K35,,,,,"T") -> 43186.42361 | M35: =RTD("cqg.rtd",,"StudyData",$C$5,"Bar",,"Open","5",K35,,,,,"T") -> 2658.99 | N35: =RTD("cqg.rtd",,"StudyData",$C$5,"Bar",,"High","5",K35,,,,,"T") -> 2660.23 | O35: =RTD("cqg.rtd",,"StudyData",$C$5,"Bar",,"Low","5",K35,,,,,"T") -> 2656.8 | P35: =RTD("cqg.rtd",,"StudyData",$C$5,"Bar",,"Close","5",K35,,,,,"T") -> 2658.58 | R35: -6 | S35: =RTD("cqg.rtd",,"StudyData",$H$5,"Bar",,"Time","5",R35,,,,,"T") -> 43186.42361 | T35: =RTD("cqg.rtd",,"StudyData",$H$5,"Bar",,"Open","5",R35,,,,,"T") -> 7208 | U35: =RTD("cqg.rtd",,"StudyData",$H$5,"Bar",,"High","5",R35,,,,,"T") -> 7209.08 | V35: =RTD("cqg.rtd",,"StudyData",$H$5,"Bar",,"Low","5",R35,,,,,"T") -> 7203.13 | W35: =RTD("cqg.rtd",,"StudyData",$H$5,"Bar",,"Close","5",R35,,,,,"T") -> 7206.13
K36: -5 | L36: =RTD("cqg.rtd",,"StudyData",$C$5,"Bar",,"Time","5",K36,,,,,"T") -> 43186.42708 | M36: =RTD("cqg.rtd",,"StudyData",$C$5,"Bar",,"Open","5",K36,,,,,"T") -> 2658.62 | N36: =RTD("cqg.rtd",,"StudyData",$C$5,"Bar",,"High","5",K36,,,,,"T") -> 2660.85 | O36: =RTD("cqg.rtd",,"StudyData",$C$5,"Bar",,"Low","5",K36,,,,,"T") -> 2657.36 | P36: =RTD("cqg.rtd",,"StudyData",$C$5,"Bar",,"Close","5",K36,,,,,"T") -> 2659.57 | R36: -5 | S36: =RTD("cqg.rtd",,"StudyData",$H$5,"Bar",,"Time","5",R36,,,,,"T") -> 43186.42708 | T36: =RTD("cqg.rtd",,"StudyData",$H$5,"Bar",,"Open","5",R36,,,,,"T") -> 7206.26 | U36: =RTD("cqg.rtd",,"StudyData",$H$5,"Bar",,"High","5",R36,,,,,"T") -> 7210.04 | V36: =RTD("cqg.rtd",,"StudyData",$H$5,"Bar",,"Low","5",R36,,,,,"T") -> 7203.07 | W36: =RTD("cqg.rtd",,"StudyData",$H$5,"Bar",,"Close","5",R36,,,,,"T") -> 7205.32
K37: -4 | L37: =RTD("cqg.rtd",,"StudyData",$C$5,"Bar",,"Time","5",K37,,,,,"T") -> 43186.43056 | M37: =RTD("cqg.rtd",,"StudyData",$C$5,"Bar",,"Open","5",K37,,,,,"T") -> 2659.55 | N37: =RTD("cqg.rtd",,"StudyData",$C$5,"Bar",,"High","5",K37,,,,,"T") -> 2660.21 | O37: =RTD("cqg.rtd",,"StudyData",$C$5,"Bar",,"Low","5",K37,,,,,"T") -> 2657.01 | P37: =RTD("cqg.rtd",,"StudyData",$C$5,"Bar",,"Close","5",K37,,,,,"T") -> 2660.21 | R37: -4 | S37: =RTD("cqg.rtd",,"StudyData",$H$5,"Bar",,"Time","5",R37,,,,,"T") -> 43186.43056 | T37: =RTD("cqg.rtd",,"StudyData",$H$5,"Bar",,"Open","5",R37,,,,,"T") -> 7204.7 | U37: =RTD("cqg.rtd",,"StudyData",$H$5,"Bar",,"High","5",R37,,,,,"T") -> 7204.97 | V37: =RTD("cqg.rtd",,"StudyData",$H$5,"Bar",,"Low","5",R37,,,,,"T") -> 7195.69 | W37: =RTD("cqg.rtd",,"StudyData",$H$5,"Bar",,"Close","5",R37,,,,,"T") -> 7203.17
K38: -3 | L38: =RTD("cqg.rtd",,"StudyData",$C$5,"Bar",,"Time","5",K38,,,,,"T") -> 43186.43403 | M38: =RTD("cqg.rtd",,"StudyData",$C$5,"Bar",,"Open","5",K38,,,,,"T") -> 2660.22 | N38: =RTD("cqg.rtd",,"StudyData",$C$5,"Bar",,"High","5",K38,,,,,"T") -> 2660.65 | O38: =RTD("cqg.rtd",,"StudyData",$C$5,"Bar",,"Low","5",K38,,,,,"T") -> 2658.21 | P38: =RTD("cqg.rtd",,"StudyData",$C$5,"Bar",,"Close","5",K38,,,,,"T") -> 2660.28 | R38: -3 | S38: =RTD("cqg.rtd",,"StudyData",$H$5,"Bar",,"Time","5",R38,,,,,"T") -> 43186.43403 | T38: =RTD("cqg.rtd",,"StudyData",$H$5,"Bar",,"Open","5",R38,,,,,"T") -> 7203.3 | U38: =RTD("cqg.rtd",,"StudyData",$H$5,"Bar",,"High","5",R38,,,,,"T") -> 7204.23 | V38: =RTD("cqg.rtd",,"StudyData",$H$5,"Bar",,"Low","5",R38,,,,,"T") -> 7196.32 | W38: =RTD("cqg.rtd",,"StudyData",$H$5,"Bar",,"Close","5",R38,,,,,"T") -> 7201.16
K39: -2 | L39: =RTD("cqg.rtd",,"StudyData",$C$5,"Bar",,"Time","5",K39,,,,,"T") -> 43186.4375 | M39: =RTD("cqg.rtd",,"StudyData",$C$5,"Bar",,"Open","5",K39,,,,,"T") -> 2660.46 | N39: =RTD("cqg.rtd",,"StudyData",$C$5,"Bar",,"High","5",K39,,,,,"T") -> 2665.1 | O39: =RTD("cqg.rtd",,"StudyData",$C$5,"Bar",,"Low","5",K39,,,,,"T") -> 2660.46 | P39: =RTD("cqg.rtd",,"StudyData",$C$5,"Bar",,"Close","5",K39,,,,,"T") -> 2664.55 | R39: -2 | S39: =RTD("cqg.rtd",,"StudyData",$H$5,"Bar",,"Time","5",R39,,,,,"T") -> 43186.4375 | T39: =RTD("cqg.rtd",,"StudyData",$H$5,"Bar",,"Open","5",R39,,,,,"T") -> 7202.41 | U39: =RTD("cqg.rtd",,"StudyData",$H$5,"Bar",,"High","5",R39,,,,,"T") -> 7218.89 | V39: =RTD("cqg.rtd",,"StudyData",$H$5,"Bar",,"Low","5",R39,,,,,"T") -> 7202.41 | W39: =RTD("cqg.rtd",,"StudyData",$H$5,"Bar",,"Close","5",R39,,,,,"T") -> 7217.78
K40: -1 | L40: =RTD("cqg.rtd",,"StudyData",$C$5,"Bar",,"Time","5",K40,,,,,"T") -> 43186.44097 | M40: =RTD("cqg.rtd",,"StudyData",$C$5,"Bar",,"Open","5",K40,,,,,"T") -> 2664.53 | N40: =RTD("cqg.rtd",,"StudyData",$C$5,"Bar",,"High","5",K40,,,,,"T") -> 2666.56 | O40: =RTD("cqg.rtd",,"StudyData",$C$5,"Bar",,"Low","5",K40,,,,,"T") -> 2662.56 | P40: =RTD("cqg.rtd",,"StudyData",$C$5,"Bar",,"Close","5",K40,,,,,"T") -> 2666.54 | R40: -1 | S40: =RTD("cqg.rtd",,"StudyData",$H$5,"Bar",,"Time","5",R40,,,,,"T") -> 43186.44097 | T40: =RTD("cqg.rtd",,"StudyData",$H$5,"Bar",,"Open","5",R40,,,,,"T") -> 7217.65 | U40: =RTD("cqg.rtd",,"StudyData",$H$5,"Bar",,"High","5",R40,,,,,"T") -> 7224.89 | V40: =RTD("cqg.rtd",,"StudyData",$H$5,"Bar",,"Low","5",R40,,,,,"T") -> 7213.46 | W40: =RTD("cqg.rtd",,"StudyData",$H$5,"Bar",,"Close","5",R40,,,,,"T") -> 7224.28
K41: 0 | L41: =RTD("cqg.rtd",,"StudyData",$C$5,"Bar",,"Time","5",K41,,,,,"T") -> 43186.44444 | M41: =IF(RTD("cqg.rtd",,"StudyData",$C$5,"Bar",,"Open","5",K41,,,,,"T")="",NA(),RTD("cqg.rtd",,"StudyData",$C$5,"Bar",,"Open","5",K41,,,,,"T")) -> 2666.53 | N41: =IF(RTD("cqg.rtd",,"StudyData",$C$5,"Bar",,"High","5",K41,,,,,"T")="",NA(),RTD("cqg.rtd",,"StudyData",$C$5,"Bar",,"High","5",K41,,,,,"T")) -> 2668.65 | O41: =IF(RTD("cqg.rtd",,"StudyData",$C$5,"Bar",,"Low","5",K41,,,,,"T")="",NA(),RTD("cqg.rtd",,"StudyData",$C$5,"Bar",,"Low","5",K41,,,,,"T")) -> 2666.37 | P41: =IF(RTD("cqg.rtd",,"StudyData",$C$5,"Bar",,"Close","5",K41,,,,,"T")="",NA(),RTD("cqg.rtd",,"StudyData",$C$5,"Bar",,"Close","5",K41,,,,,"T")) -> 2668.17 | R41: 0 | S41: =RTD("cqg.rtd",,"StudyData",$H$5,"Bar",,"Time","5",R41,,,,,"T") -> 43186.44444 | T41: =IF(RTD("cqg.rtd",,"StudyData",$H$5,"Bar",,"Open","5",R41,,,,,"T")="",NA(),RTD("cqg.rtd",,"StudyData",$H$5,"Bar",,"Open","5",R41,,,,,"T")) -> 7224.33 | U41: =IF(RTD("cqg.rtd",,"StudyData",$H$5,"Bar",,"High","5",R41,,,,,"T")="",NA(),RTD("cqg.rtd",,"StudyData",$H$5,"Bar",,"High","5",R41,,,,,"T")) -> 7230.47 | V41: =IF(RTD("cqg.rtd",,"StudyData",$H$5,"Bar",,"Low","5",R41,,,,,"T")="",NA(),RTD("cqg.rtd",,"StudyData",$H$5,"Bar",,"Low","5",R41,,,,,"T")) -> 7224.32 | W41: =IF(RTD("cqg.rtd",,"StudyData",$H$5,"Bar",,"Close","5",R41,,,,,"T")="",NA(),RTD("cqg.rtd",,"StudyData",$H$5,"Bar",,"Close","5",R41,,,,,"T")) -> 7228.52

Sheet NASDAQ (hidden)
C1: S.US.AABA | D1: =IFERROR(RTD("cqg.rtd", ,"ContractData",C1, "PerCentNetLastTrade",, "T")/100,"") -> 0.004880622609 | E1: 766 | F1: =IFERROR(E1,"") -> 766 | G1: =C1 -> S.US.AABA | H1: 1 | I1: =IFERROR(VLOOKUP(H1,$F$1:$G$3155,2,FALSE),"") -> S.US.ASTC | J1: =IFERROR(RTD("cqg.rtd", ,"ContractData",I1, "PerCentNetLastTrade",, "T")/100,"") -> 0.2871287129 | L1: =MIN(D1:D3155) -> -0.5955122527 | M1: =VLOOKUP(L1,D1:G3155,3,FALSE) -> 2748 | N1: =VLOOKUP(M1,$F$1:$G$3155,2,FALSE) -> S.US.PBIB | O1: =IFERROR(RTD("cqg.rtd", ,"ContractData",N1, "PerCentNetLastTrade",, "T")/100,"") -> -0.5955122527
C2: S.US.AACC | D2: =IFERROR(RTD("cqg.rtd", ,"ContractData",C2, "PerCentNetLastTrade",, "T")/100,"") ->  | F2: =IFERROR(E2,"") ->  | G2: =C2 -> S.US.AACC | H2: =H1+1 -> 2 | I2: =IFERROR(VLOOKUP(H2,$F$1:$G$3155,2,FALSE),"") -> S.US.SHOS | J2: =IFERROR(RTD("cqg.rtd", ,"ContractData",I2, "PerCentNetLastTrade",, "T")/100,"") -> 0.2619047619 | M2: =M1-1 -> 2747 | N2: =VLOOKUP(M2,$F$1:$G$3155,2,FALSE) -> S.US.BYFC | O2: =IFERROR(RTD("cqg.rtd", ,"ContractData",N2, "PerCentNetLastTrade",, "T")/100,"") -> -0.3538461538
C3: S.US.AAL | D3: =IFERROR(RTD("cqg.rtd", ,"ContractData",C3, "PerCentNetLastTrade",, "T")/100,"") -> 0.004627844196 | E3: 783 | F3: 783 | G3: =C3 -> S.US.AAL | H3: =H2+1 -> 3 | I3: =IFERROR(VLOOKUP(H3,$F$1:$G$3155,2,FALSE),"") -> S.US.ANTH | J3: =IFERROR(RTD("cqg.rtd", ,"ContractData",I3, "PerCentNetLastTrade",, "T")/100,"") -> 0.1612903226 | M3: =M2-1 -> 2746 | N3: S.US.LFIN | O3: =IFERROR(RTD("cqg.rtd", ,"ContractData",N3, "PerCentNetLastTrade",, "T")/100,"") -> -0.3124156545
C4: S.US.AAME | D4: =IFERROR(RTD("cqg.rtd", ,"ContractData",C4, "PerCentNetLastTrade",, "T")/100,"") ->  | G4: S.US.AAME | H4: 4 | I4: S.US.TOPS | J4: =IFERROR(RTD("cqg.rtd", ,"ContractData",I4, "PerCentNetLastTrade",, "T")/100,"") -> 0.1636363636 | M4: 2745 | N4: S.US.OASM | O4: =IFERROR(RTD("cqg.rtd", ,"ContractData",N4, "PerCentNetLastTrade",, "T")/100,"") -> -0.2962962963
C5: S.US.AAOI | D5: =IFERROR(RTD("cqg.rtd", ,"ContractData",C5, "PerCentNetLastTrade",, "T")/100,"") -> 0.007337953526 | E5: 608 | F5: 608 | G5: S.US.AAOI | H5: 5 | I5: S.US.ARWR | J5: =IFERROR(RTD("cqg.rtd", ,"ContractData",I5, "PerCentNetLastTrade",, "T")/100,"") -> 0.1541786744 | M5: 2744 | N5: S.US.DVCR | O5: =IFERROR(RTD("cqg.rtd", ,"ContractData",N5, "PerCentNetLastTrade",, "T")/100,"") -> -0.260952381
C6: S.US.AAON | D6: =IFERROR(RTD("cqg.rtd", ,"ContractData",C6, "PerCentNetLastTrade",, "T")/100,"") -> -0.00395256917 | E6: 1702 | F6: 1702 | G6: S.US.AAON | H6: 6 | I6: S.US.AYTU | J6: =IFERROR(RTD("cqg.rtd", ,"ContractData",I6, "PerCentNetLastTrade",, "T")/100,"") -> 0.1355932203 | M6: 2743 | N6: S.US.RXII | O6: =IFERROR(RTD("cqg.rtd", ,"ContractData",N6, "PerCentNetLastTrade",, "T")/100,"") -> -0.1921182266
C7: S.US.AAPL | D7: =IFERROR(RTD("cqg.rtd", ,"ContractData",C7, "PerCentNetLastTrade",, "T")/100,"") -> 0.008045378249 | E7: 575 | F7: 575 | G7: S.US.AAPL | H7: 7 | I7: S.US.HMNY | J7: =IFERROR(RTD("cqg.rtd", ,"ContractData",I7, "PerCentNetLastTrade",, "T")/100,"") -> 0.1241830065 | M7: 2742 | N7: S.US.COGT | O7: =IFERROR(RTD("cqg.rtd", ,"ContractData",N7, "PerCentNetLastTrade",, "T")/100,"") -> -0.1731343284
C8: S.US.AAWW | D8: =IFERROR(RTD("cqg.rtd", ,"ContractData",C8, "PerCentNetLastTrade",, "T")/100,"") -> -0.008666666667 | E8: 2025 | F8: 2025 | G8: S.US.AAWW | H8: 8 | I8: S.US.ENPH | J8: =IFERROR(RTD("cqg.rtd", ,"ContractData",I8, "PerCentNetLastTrade",, "T")/100,"") -> 0.1158536585 | M8: 2741 | N8: S.US.ANY | O8: =IFERROR(RTD("cqg.rtd", ,"ContractData",N8, "PerCentNetLastTrade",, "T")/100,"") -> -0.1559633028
C9: S.US.AAXJ | D9: =IFERROR(RTD("cqg.rtd", ,"ContractData",C9, "PerCentNetLastTrade",, "T")/100,"") -> 0.0006431695395 | E9: 1150 | F9: 1150 | G9: S.US.AAXJ | H9: 9 | I9: S.US.PIXY | J9: =IFERROR(RTD("cqg.rtd", ,"ContractData",I9, "PerCentNetLastTrade",, "T")/100,"") -> 0.1138790036 | M9: 2740 | N9: S.US.ALT | O9: =IFERROR(RTD("cqg.rtd", ,"ContractData",N9, "PerCentNetLastTrade",, "T")/100,"") -> -0.1558441558
C10: S.US.AAXN | D10: =IFERROR(RTD("cqg.rtd", ,"ContractData",C10, "PerCentNetLastTrade",, "T")/100,"") -> 0.01136363636 | E10: 433 | F10: 433 | G10: S.US.AAXN | H10: 10 | I10: S.US.SWIR | J10: =IFERROR(RTD("cqg.rtd", ,"ContractData",I10, "PerCentNetLastTrade",, "T")/100,"") -> 0.1056962025 | M10: 2739 | N10: =VLOOKUP(M10,$F$1:$G$3155,2,FALSE) -> S.US.TWMC | O10: =IFERROR(RTD("cqg.rtd", ,"ContractData",N10, "PerCentNetLastTrade",, "T")/100,"") -> -0.1357142857
C11: S.US.ABAC | D11: =IFERROR(RTD("cqg.rtd", ,"ContractData",C11, "PerCentNetLastTrade",, "T")/100,"") -> -0.0564516129 | E11: 2693 | F11: 2693 | G11: S.US.ABAC | H11: 11 | I11: S.US.VTL
C12: S.US.ABAX | D12: =IFERROR(RTD("cqg.rtd", ,"ContractData",C12, "PerCentNetLastTrade",, "T")/100,"") -> -0.03622407757 | E12: 2614 | F12: 2614 | G12: S.US.ABAX | H12: 12 | I12: S.US.ATNX
C13: S.US.ABCB | D13: =IFERROR(RTD("cqg.rtd", ,"ContractData",C13, "PerCentNetLastTrade",, "T")/100,"") -> -0.007441860465 | E13: 1944 | F13: 1944 | G13: S.US.ABCB | H13: 13 | I13: S.US.VRNA
C14: S.US.ABCD | D14: =IFERROR(RTD("cqg.rtd", ,"ContractData",C14, "PerCentNetLastTrade",, "T")/100,"") -> -0.001923076923 | E14: 1507 | F14: 1507 | G14: S.US.ABCD | H14: 14 | I14: S.US.PETX
C15: S.US.ABDC | D15: =IFERROR(RTD("cqg.rtd", ,"ContractData",C15, "PerCentNetLastTrade",, "T")/100,"") -> -0.01519337017 | E15: 2295 | F15: 2295 | G15: S.US.ABDC | H15: 15 | I15: S.US.NTRP
C16: S.US.ABEO | D16: =IFERROR(RTD("cqg.rtd", ,"ContractData",C16, "PerCentNetLastTrade",, "T")/100,"") -> -0.04651162791 | E16: 2670 | F16: 2670 | G16: S.US.ABEO | H16: 16 | I16: S.US.NVFY
C17: S.US.ABGB | D17: =IFERROR(RTD("cqg.rtd", ,"ContractData",C17, "PerCentNetLastTrade",, "T")/100,"") ->  | G17: S.US.ABGB | H17: 17 | I17: S.US.SES
C18: S.US.ABIL | D18: =IFERROR(RTD("cqg.rtd", ,"ContractData",C18, "PerCentNetLastTrade",, "T")/100,"") -> -0.0349127182 | E18: 2605 | F18: 2605 | G18: S.US.ABIL | H18: 18 | I18: S.US.SHLD
C19: S.US.ABIO | D19: =IFERROR(RTD("cqg.rtd", ,"ContractData",C19, "PerCentNetLastTrade",, "T")/100,"") -> 0.01960784314 | E19: 222 | F19: 222 | G19: S.US.ABIO | H19: 19 | I19: S.US.RMGN
C20: S.US.ABLX | D20: =IFERROR(RTD("cqg.rtd", ,"ContractData",C20, "PerCentNetLastTrade",, "T")/100,"") -> -0.005854372484 | E20: 1826 | F20: 1826 | G20: S.US.ABLX | H20: 20 | I20: S.US.ESPR
C21: S.US.ABMD | D21: =IFERROR(RTD("cqg.rtd", ,"ContractData",C21, "PerCentNetLastTrade",, "T")/100,"") -> 0.000778605281 | E21: 1132 | F21: 1132 | G21: S.US.ABMD | H21: 21 | I21: S.US.PRTO
C22: S.US.ABTX | D22: =IFERROR(RTD("cqg.rtd", ,"ContractData",C22, "PerCentNetLastTrade",, "T")/100,"") -> -0.01373283396 | E22: 2248 | F22: 2248 | G22: S.US.ABTX | H22: 22 | I22: S.US.AIPT
C23: S.US.ABUS | D23: =IFERROR(RTD("cqg.rtd", ,"ContractData",C23, "PerCentNetLastTrade",, "T")/100,"") -> -0.01509433962 | E23: 2289 | F23: 2289 | G23: S.US.ABUS | H23: 23 | I23: S.US.CRME
C24: S.US.ACAD | D24: =IFERROR(RTD("cqg.rtd", ,"ContractData",C24, "PerCentNetLastTrade",, "T")/100,"") -> -0.0106202209 | E24: 2129 | F24: 2129 | G24: S.US.ACAD | H24: 24 | I24: S.US.INNT
C25: S.US.ACBI | D25: =IFERROR(RTD("cqg.rtd", ,"ContractData",C25, "PerCentNetLastTrade",, "T")/100,"") -> -0.0108401084 | E25: 2138 | F25: 2138 | G25: S.US.ACBI | H25: 25 | I25: S.US.HTGM
C26: S.US.ACER | D26: =IFERROR(RTD("cqg.rtd", ,"ContractData",C26, "PerCentNetLastTrade",, "T")/100,"") -> 0.01724137931 | E26: 270 | F26: 270 | G26: S.US.ACER | H26: 26 | I26: S.US.SBBP
C27: S.US.ACET | D27: =IFERROR(RTD("cqg.rtd", ,"ContractData",C27, "PerCentNetLastTrade",, "T")/100,"") -> 0.03055555556 | E27: 110 | F27: 110 | G27: S.US.ACET | H27: 27 | I27: S.US.CPST
C28: S.US.ACFC | D28: =IFERROR(RTD("cqg.rtd", ,"ContractData",C28, "PerCentNetLastTrade",, "T")/100,"") -> -0.00193236715 | E28: 1508 | F28: 1508 | G28: S.US.ACFC | H28: 28 | I28: S.US.HLG
C29: S.US.ACFN | D29: =IFERROR(RTD("cqg.rtd", ,"ContractData",C29, "PerCentNetLastTrade",, "T")/100,"") ->  | G29: S.US.ACFN | H29: 29 | I29: S.US.VVPR
C30: S.US.ACGL | D30: =IFERROR(RTD("cqg.rtd", ,"ContractData",C30, "PerCentNetLastTrade",, "T")/100,"") -> 0.01032150908 | E30: 483 | F30: 483 | G30: S.US.ACGL | H30: 30 | I30: S.US.LGCY
C31: S.US.ACHC | D31: =IFERROR(RTD("cqg.rtd", ,"ContractData",C31, "PerCentNetLastTrade",, "T")/100,"") -> 0.007106598985 | E31: 623 | F31: 623 | G31: S.US.ACHC | H31: 31 | I31: S.US.CFBK
C32: S.US.ACHN | D32: =IFERROR(RTD("cqg.rtd", ,"ContractData",C32, "PerCentNetLastTrade",, "T")/100,"") -> 0.005063291139 | E32: 752 | F32: 752 | G32: S.US.ACHN | H32: 32 | I32: S.US.SSLJ
C33: S.US.ACHV | D33: =IFERROR(RTD("cqg.rtd", ,"ContractData",C33, "PerCentNetLastTrade",, "T")/100,"") -> 0 | E33: 1186 | F33: 1186 | G33: S.US.ACHV | H33: 33 | I33: S.US.QRHC
C34: S.US.ACIA | D34: =IFERROR(RTD("cqg.rtd", ,"ContractData",C34, "PerCentNetLastTrade",, "T")/100,"") -> -0.005180069068 | E34: 1787 | F34: 1787 | G34: S.US.ACIA | H34: 34 | I34: S.US.AMEH
C35: S.US.ACIU | D35: =IFERROR(RTD("cqg.rtd", ,"ContractData",C35, "PerCentNetLastTrade",, "T")/100,"") -> 0.01988636364 | E35: 216 | F35: 216 | G35: S.US.ACIU | H35: 35 | I35: S.US.HEAR
C36: S.US.ACIW | D36: =IFERROR(RTD("cqg.rtd", ,"ContractData",C36, "PerCentNetLastTrade",, "T")/100,"") -> -0.002839756592 | E36: 1609 | F36: 1609 | G36: S.US.ACIW | H36: 36 | I36: S.US.TTOO
C37: S.US.ACLS | D37: =IFERROR(RTD("cqg.rtd", ,"ContractData",C37, "PerCentNetLastTrade",, "T")/100,"") -> -0.01350844278 | E37: 2242 | F37: 2242 | G37: S.US.ACLS | H37: 37 | I37: S.US.BBGI
C38: S.US.ACMR | D38: =IFERROR(RTD("cqg.rtd", ,"ContractData",C38, "PerCentNetLastTrade",, "T")/100,"") -> 0.006259780908 | E38: 670 | F38: 670 | G38: S.US.ACMR | H38: 38 | I38: S.US.TNDM
C39: S.US.ACNB | D39: =IFERROR(RTD("cqg.rtd", ,"ContractData",C39, "PerCentNetLastTrade",, "T")/100,"") -> -0.008532423208 | E39: 2015 | F39: 2015 | G39: S.US.ACNB | H39: 39 | I39: S.US.AEZS
C40: S.US.ACOR | D40: =IFERROR(RTD("cqg.rtd", ,"ContractData",C40, "PerCentNetLastTrade",, "T")/100,"") -> 0.00206185567 | E40: 993 | F40: 993 | G40: S.US.ACOR | H40: 40 | I40: S.US.CRNT
C41: S.US.ACRS | D41: =IFERROR(RTD("cqg.rtd", ,"ContractData",C41, "PerCentNetLastTrade",, "T")/100,"") -> -0.001754385965 | E41: 1491 | F41: 1491 | G41: S.US.ACRS | H41: 41 | I41: S.US.NCNA
C42: S.US.ACRX | D42: =IFERROR(RTD("cqg.rtd", ,"ContractData",C42, "PerCentNetLastTrade",, "T")/100,"") -> -0.02978723404 | E42: 2562 | F42: 2562 | G42: S.US.ACRX | H42: 42 | I42: S.US.FVE
C43: S.US.ACSF | D43: =IFERROR(RTD("cqg.rtd", ,"ContractData",C43, "PerCentNetLastTrade",, "T")/100,"") -> -0.004464285714 | E43: 1734 | F43: 1734 | G43: S.US.ACSF | H43: 43 | I43: S.US.GPRO
C44: S.US.ACST | D44: =IFERROR(RTD("cqg.rtd", ,"ContractData",C44, "PerCentNetLastTrade",, "T")/100,"") -> -0.009900990099 | E44: 2098 | F44: 2098 | G44: S.US.ACST | H44: 44 | I44: S.US.SORL
C45: S.US.ACT | D45: =IFERROR(RTD("cqg.rtd", ,"ContractData",C45, "PerCentNetLastTrade",, "T")/100,"") -> 0.001633319722 | E45: 1036 | F45: 1036 | G45: S.US.ACT | H45: 45 | I45: S.US.EYEG
C46: S.US.ACTG | D46: =IFERROR(RTD("cqg.rtd", ,"ContractData",C46, "PerCentNetLastTrade",, "T")/100,"") -> 0 | E46: 1187 | F46: 1187 | G46: S.US.ACTG | H46: 46 | I46: S.US.FNKO
C47: S.US.ACWI | D47: =IFERROR(RTD("cqg.rtd", ,"ContractData",C47, "PerCentNetLastTrade",, "T")/100,"") -> 0.003206468702 | E47: 885 | F47: 885 | G47: S.US.ACWI | H47: 47 | I47: S.US.JAGX
C48: S.US.ACWX | D48: =IFERROR(RTD("cqg.rtd", ,"ContractData",C48, "PerCentNetLastTrade",, "T")/100,"") -> 0.003027245207 | E48: 941 | F48: 941 | G48: S.US.ACWX | H48: 48 | I48: S.US.RETO
C49: S.US.ACXM | D49: =IFERROR(RTD("cqg.rtd", ,"ContractData",C49, "PerCentNetLastTrade",, "T")/100,"") -> -0.009548058561 | E49: 2079 | F49: 2079 | G49: S.US.ACXM | H49: 49 | I49: S.US.GLBS
C50: S.US.ADAP | D50: =IFERROR(RTD("cqg.rtd", ,"ContractData",C50, "PerCentNetLastTrade",, "T")/100,"") -> -0.006055363322 | E50: 1838 | F50: 1838 | G50: S.US.ADAP | H50: 50 | I50: S.US.CYAD
C51: S.US.ADBE | D51: =IFERROR(RTD("cqg.rtd", ,"ContractData",C51, "PerCentNetLastTrade",, "T")/100,"") -> -0.01131449041 | E51: 2159 | F51: 2159 | G51: S.US.ADBE | H51: 51 | I51: S.US.SPWH
C52: S.US.ADES | D52: =IFERROR(RTD("cqg.rtd", ,"ContractData",C52, "PerCentNetLastTrade",, "T")/100,"") -> 0.03590664273 | E52: 81 | F52: 81 | G52: S.US.ADES | H52: 52 | I52: S.US.SIMO
C53: S.US.ADI | D53: =IFERROR(RTD("cqg.rtd", ,"ContractData",C53, "PerCentNetLastTrade",, "T")/100,"") -> 0.007732789174 | E53: 591 | F53: 591 | G53: S.US.ADI | H53: 53 | I53: S.US.FENC
C54: S.US.ADIL | D54: =IFERROR(RTD("cqg.rtd", ,"ContractData",C54, "PerCentNetLastTrade",, "T")/100,"") ->  | G54: S.US.ADIL | H54: 54 | I54: S.US.CJJD
C55: S.US.ADMA | D55: =IFERROR(RTD("cqg.rtd", ,"ContractData",C55, "PerCentNetLastTrade",, "T")/100,"") -> -0.03071017274 | E55: 2576 | F55: 2576 | G55: S.US.ADMA | H55: 55 | I55: S.US.CREG
C56: S.US.ADMP | D56: =IFERROR(RTD("cqg.rtd", ,"ContractData",C56, "PerCentNetLastTrade",, "T")/100,"") -> 0.008902077151 | E56: 545 | F56: 545 | G56: S.US.ADMP | H56: 56 | I56: S.US.VIRT
C57: S.US.ADMS | D57: =IFERROR(RTD("cqg.rtd", ,"ContractData",C57, "PerCentNetLastTrade",, "T")/100,"") -> 0.002049180328 | E57: 994 | F57: 994 | G57: S.US.ADMS | H57: 57 | I57: S.US.WLFC
C58: S.US.ADOM | D58: =IFERROR(RTD("cqg.rtd", ,"ContractData",C58, "PerCentNetLastTrade",, "T")/100,"") -> -0.008771929825 | E58: 2032 | F58: 2032 | G58: S.US.ADOM | H58: 58 | I58: S.US.CLMT
C59: S.US.ADP | D59: =IFERROR(RTD("cqg.rtd", ,"ContractData",C59, "PerCentNetLastTrade",, "T")/100,"") -> 0.006575486586 | E59: 653 | F59: 653 | G59: S.US.ADP | H59: 59 | I59: S.US.LE
C60: S.US.ADRA | D60: =IFERROR(RTD("cqg.rtd", ,"ContractData",C60, "PerCentNetLastTrade",, "T")/100,"") ->  | G60: S.US.ADRA | H60: 60 | I60: S.US.ADRO
C61: S.US.ADRD | D61: =IFERROR(RTD("cqg.rtd", ,"ContractData",C61, "PerCentNetLastTrade",, "T")/100,"") -> 0.005300353357 | E61: 732 | F61: 732 | G61: S.US.ADRD | H61: 61 | I61: S.US.ESSA
C62: S.US.ADRE | D62: =IFERROR(RTD("cqg.rtd", ,"ContractData",C62, "PerCentNetLastTrade",, "T")/100,"") -> 0.004693786321 | E62: 779 | F62: 779 | G62: S.US.ADRE | H62: 62 | I62: S.US.ETSY
C63: S.US.ADRO | D63: =IFERROR(RTD("cqg.rtd", ,"ContractData",C63, "PerCentNetLastTrade",, "T")/100,"") -> 0.04301075269 | E63: 60 | F63: 60 | G63: S.US.ADRO | H63: 63 | I63: S.US.HNNA
C64: S.US.ADRU | D64: =IFERROR(RTD("cqg.rtd", ,"ContractData",C64, "PerCentNetLastTrade",, "T")/100,"") ->  | G64: S.US.ADRU | H64: 64 | I64: S.US.CRTO
C65: S.US.ADSK | D65: =IFERROR(RTD("cqg.rtd", ,"ContractData",C65, "PerCentNetLastTrade",, "T")/100,"") -> -0.001639099985 | E65: 1479 | F65: 1479 | G65: S.US.ADSK | H65: 65 | I65: S.US.FLDM
C66: S.US.ADTN | D66: =IFERROR(RTD("cqg.rtd", ,"ContractData",C66, "PerCentNetLastTrade",, "T")/100,"") -> 0.001286173633 | E66: 1075 | F66: =IFERROR(E66,"") -> 1075 | G66: S.US.ADTN | H66: 66 | I66: =IFERROR(VLOOKUP(H66,$F$1:$G$3155,2,FALSE),"") -> S.US.IVAC
C67: S.US.ADUS | D67: =IFERROR(RTD("cqg.rtd", ,"ContractData",C67, "PerCentNetLastTrade",, "T")/100,"") -> 0.003307607497 | E67: 872 | F67: 872 | G67: =C67 -> S.US.ADUS | H67: =H66+1 -> 67 | I67: S.US.DGII
C68: S.US.ADVL | D68: =IFERROR(RTD("cqg.rtd", ,"ContractData",C68, "PerCentNetLastTrade",, "T")/100,"") ->  | G68: S.US.ADVL | H68: 68 | I68: S.US.NLST
C69: S.US.ADVM | D69: =IFERROR(RTD("cqg.rtd", ,"ContractData",C69, "PerCentNetLastTrade",, "T")/100,"") -> -0.01869158879 | E69: 2391 | F69: 2391 | G69: S.US.ADVM | H69: 69 | I69: S.US.OPTN
C70: S.US.ADXS | D70: =IFERROR(RTD("cqg.rtd", ,"ContractData",C70, "PerCentNetLastTrade",, "T")/100,"") -> -0.005291005291 | E70: 1796 | F70: 1796 | G70: S.US.ADXS | H70: 70 | I70: S.US.CASM
C71: S.US.AEGN | D71: =IFERROR(RTD("cqg.rtd", ,"ContractData",C71, "PerCentNetLastTrade",, "T")/100,"") -> -0.005371530886 | E71: 1799 | F71: 1799 | G71: S.US.AEGN | H71: 71 | I71: S.US.FSCT
C72: S.US.AEHR | D72: =IFERROR(RTD("cqg.rtd", ,"ContractData",C72, "PerCentNetLastTrade",, "T")/100,"") -> -0.00826446281 | E72: 2000 | F72: 2000 | G72: S.US.AEHR | H72: 72 | I72: S.US.ALOT
C73: S.US.AEIS | D73: =IFERROR(RTD("cqg.rtd", ,"ContractData",C73, "PerCentNetLastTrade",, "T")/100,"") -> -0.005885015844 | E73: 1829 | F73: 1829 | G73: S.US.AEIS | H73: 73 | I73: S.US.CNFR
C74: S.US.AEMD | D74: =IFERROR(RTD("cqg.rtd", ,"ContractData",C74, "PerCentNetLastTrade",, "T")/100,"") -> -0.02654867257 | E74: 2523 | F74: 2523 | G74: S.US.AEMD | H74: 74 | I74: S.US.ONCS
C75: S.US.AERI | D75: =IFERROR(RTD("cqg.rtd", ,"ContractData",C75, "PerCentNetLastTrade",, "T")/100,"") -> -0.005617977528 | E75: 1812 | F75: 1812 | G75: S.US.AERI | H75: 75 | I75: S.US.INOD
C76: S.US.AETI | D76: =IFERROR(RTD("cqg.rtd", ,"ContractData",C76, "PerCentNetLastTrade",, "T")/100,"") -> 0 | E76: 1188 | F76: 1188 | G76: S.US.AETI | H76: 76 | I76: S.US.PNRG
C77: S.US.AEY | D77: =IFERROR(RTD("cqg.rtd", ,"ContractData",C77, "PerCentNetLastTrade",, "T")/100,"") -> -0.007518796992 | E77: 1949 | F77: 1949 | G77: S.US.AEY | H77: 77 | I77: S.US.DSLV
C78: S.US.AEZS | D78: =IFERROR(RTD("cqg.rtd", ,"ContractData",C78, "PerCentNetLastTrade",, "T")/100,"") -> 0.05769230769 | E78: 39 | F78: 39 | G78: S.US.AEZS | H78: 78 | I78: S.US.FRSX
C79: S.US.AFAM | D79: =IFERROR(RTD("cqg.rtd", ,"ContractData",C79, "PerCentNetLastTrade",, "T")/100,"") -> -0.006200177148 | E79: 1845 | F79: 1845 | G79: S.US.AFAM | H79: 79 | I79: S.US.AKAO
C80: S.US.AFH | D80: =IFERROR(RTD("cqg.rtd", ,"ContractData",C80, "PerCentNetLastTrade",, "T")/100,"") -> -0.04651162791 | E80: 2671 | F80: 2671 | G80: S.US.AFH | H80: 80 | I80: S.US.ASMB
C81: S.US.AFMD | D81: =IFERROR(RTD("cqg.rtd", ,"ContractData",C81, "PerCentNetLastTrade",, "T")/100,"") -> -0.01463414634 | E81: 2276 | F81: 2276 | G81: S.US.AFMD | H81: 81 | I81: S.US.ADES
C82: S.US.AFSI | D82: =IFERROR(RTD("cqg.rtd", ,"ContractData",C82, "PerCentNetLastTrade",, "T")/100,"") -> 0.0008051529791 | E82: 1125 | F82: 1125 | G82: S.US.AFSI | H82: 82 | I82: S.US.CBAK
C83: S.US.AGEN | D83: =IFERROR(RTD("cqg.rtd", ,"ContractData",C83, "PerCentNetLastTrade",, "T")/100,"") -> 0.01603206413 | E83: 293 | F83: 293 | G83: S.US.AGEN | H83: 83 | I83: S.US.WWR
C84: S.US.AGFS | D84: =IFERROR(RTD("cqg.rtd", ,"ContractData",C84, "PerCentNetLastTrade",, "T")/100,"") -> 0.008310249307 | E84: 566 | F84: 566 | G84: S.US.AGFS | H84: 84 | I84: S.US.SGH
C85: S.US.AGII | D85: =IFERROR(RTD("cqg.rtd", ,"ContractData",C85, "PerCentNetLastTrade",, "T")/100,"") -> 0.001233480176 | E85: 1081 | F85: 1081 | G85: S.US.AGII | H85: 85 | I85: S.US.SCSC
C86: S.US.AGIO | D86: =IFERROR(RTD("cqg.rtd", ,"ContractData",C86, "PerCentNetLastTrade",, "T")/100,"") -> -0.01640304628 | E86: 2334 | F86: 2334 | G86: S.US.AGIO | H86: 86 | I86: S.US.DXYN
C87: S.US.AGLE | D87: =IFERROR(RTD("cqg.rtd", ,"ContractData",C87, "PerCentNetLastTrade",, "T")/100,"") -> -0.0297029703 | E87: 2561 | F87: 2561 | G87: S.US.AGLE | H87: 87 | I87: S.US.GSVC
C88: S.US.AGNC | D88: =IFERROR(RTD("cqg.rtd", ,"ContractData",C88, "PerCentNetLastTrade",, "T")/100,"") -> -0.002122015915 | E88: 1527 | F88: 1527 | G88: S.US.AGNC | H88: 88 | I88: S.US.SAL
C89: S.US.AGNCB | D89: =IFERROR(RTD("cqg.rtd", ,"ContractData",C89, "PerCentNetLastTrade",, "T")/100,"") -> 0.002281368821 | E89: 973 | F89: 973 | G89: S.US.AGNCB | H89: 89 | I89: S.US.KALA
C90: S.US.AGND | D90: =IFERROR(RTD("cqg.rtd", ,"ContractData",C90, "PerCentNetLastTrade",, "T")/100,"") -> -0.004337899543 | E90: 1717 | F90: 1717 | G90: S.US.AGND | H90: 90 | I90: S.US.VCTR
C91: S.US.AGRX | D91: =IFERROR(RTD("cqg.rtd", ,"ContractData",C91, "PerCentNetLastTrade",, "T")/100,"") -> -0.07407407407 | E91: 2713 | F91: 2713 | G91: S.US.AGRX | H91: 91 | I91: S.US.DSPG
C92: S.US.AGTC | D92: =IFERROR(RTD("cqg.rtd", ,"ContractData",C92, "PerCentNetLastTrade",, "T")/100,"") -> -0.01149425287 | E92: 2165 | F92: 2165 | G92: S.US.AGTC | H92: 92 | I92: S.US.LMNR
C93: S.US.AGYS | D93: =IFERROR(RTD("cqg.rtd", ,"ContractData",C93, "PerCentNetLastTrade",, "T")/100,"") -> 0.02179379715 | E93: 189 | F93: 189 | G93: S.US.AGYS | H93: 93 | I93: S.US.FRTA
C94: S.US.AGZD | D94: =IFERROR(RTD("cqg.rtd", ,"ContractData",C94, "PerCentNetLastTrade",, "T")/100,"") -> -0.0002085505735 | E94: 1356 | F94: 1356 | G94: S.US.AGZD | H94: 94 | I94: S.US.YECO
C95: S.US.AHGP | D95: =IFERROR(RTD("cqg.rtd", ,"ContractData",C95, "PerCentNetLastTrade",, "T")/100,"") -> -0.0015625 | E95: 1470 | F95: 1470 | G95: S.US.AHGP | H95: 95 | I95: S.US.DVAX
C96: S.US.AHPA | D96: =IFERROR(RTD("cqg.rtd", ,"ContractData",C96, "PerCentNetLastTrade",, "T")/100,"") ->  | G96: S.US.AHPA | H96: 96 | I96: S.US.CCBG
C97: S.US.AHPI | D97: =IFERROR(RTD("cqg.rtd", ,"ContractData",C97, "PerCentNetLastTrade",, "T")/100,"") -> -0.0251572327 | E97: 2507 | F97: 2507 | G97: S.US.AHPI | H97: 97 | I97: S.US.QTNT
C98: S.US.AIA | D98: =IFERROR(RTD("cqg.rtd", ,"ContractData",C98, "PerCentNetLastTrade",, "T")/100,"") -> -0.0002916727432 | E98: 1362 | F98: 1362 | G98: S.US.AIA | H98: 98 | I98: S.US.MTGEP
C99: S.US.AIHS | D99: =IFERROR(RTD("cqg.rtd", ,"ContractData",C99, "PerCentNetLastTrade",, "T")/100,"") -> 0.01056338028 | E99: 466 | F99: 466 | G99: S.US.AIHS | H99: 99 | I99: S.US.NBRV
C100: S.US.AIMC | D100: =IFERROR(RTD("cqg.rtd", ,"ContractData",C100, "PerCentNetLastTrade",, "T")/100,"") -> -0.003184713376 | E100: 1638 | F100: 1638 | G100: S.US.AIMC | H100: 100 | I100: S.US.BIOC
C101: S.US.AIMT | D101: =IFERROR(RTD("cqg.rtd", ,"ContractData",C101, "PerCentNetLastTrade",, "T")/100,"") -> 0.0006397952655 | E101: 1151 | F101: 1151 | G101: S.US.AIMT | H101: 101 | I101: S.US.NEWA
C102: S.US.AINV | D102: =IFERROR(RTD("cqg.rtd", ,"ContractData",C102, "PerCentNetLastTrade",, "T")/100,"") -> -0.007448789572 | E102: 1945 | F102: 1945 | G102: S.US.AINV | H102: 102 | I102: S.US.MLCO
C103: S.US.AIPT | D103: =IFERROR(RTD("cqg.rtd", ,"ContractData",C103, "PerCentNetLastTrade",, "T")/100,"") -> 0.08256880734 | E103: 22 | F103: 22 | G103: S.US.AIPT | H103: 103 | I103: S.US.HA
C104: S.US.AIRG | D104: =IFERROR(RTD("cqg.rtd", ,"ContractData",C104, "PerCentNetLastTrade",, "T")/100,"") -> -0.01334951456 | E104: 2234 | F104: 2234 | G104: S.US.AIRG | H104: 104 | I104: S.US.NBEV
C105: S.US.AIRR | D105: =IFERROR(RTD("cqg.rtd", ,"ContractData",C105, "PerCentNetLastTrade",, "T")/100,"") -> -0.00194024059 | E105: 1509 | F105: 1509 | G105: S.US.AIRR | H105: 105 | I105: S.US.SPCB
C106: S.US.AIRT | D106: =IFERROR(RTD("cqg.rtd", ,"ContractData",C106, "PerCentNetLastTrade",, "T")/100,"") ->  | G106: S.US.AIRT | H106: 106 | I106: S.US.BSTC
C107: S.US.AKAM | D107: =IFERROR(RTD("cqg.rtd", ,"ContractData",C107, "PerCentNetLastTrade",, "T")/100,"") -> 0.002355223053 | E107: 963 | F107: 963 | G107: S.US.AKAM | H107: 107 | I107: S.US.UG
C108: S.US.AKAO | D108: =IFERROR(RTD("cqg.rtd", ,"ContractData",C108, "PerCentNetLastTrade",, "T")/100,"") -> 0.03617181613 | E108: 79 | F108: 79 | G108: S.US.AKAO | H108: 108 | I108: S.US.ALNA
C109: S.US.AKBA | D109: =IFERROR(RTD("cqg.rtd", ,"ContractData",C109, "PerCentNetLastTrade",, "T")/100,"") -> -0.01040681173 | E109: 2121 | F109: 2121 | G109: S.US.AKBA | H109: 109 | I109: S.US.FRAN
C110: S.US.AKCA | D110: =IFERROR(RTD("cqg.rtd", ,"ContractData",C110, "PerCentNetLastTrade",, "T")/100,"") -> 0.006896551724 | E110: 631 | F110: 631 | G110: S.US.AKCA | H110: 110 | I110: S.US.ACET
C111: S.US.AKER | D111: =IFERROR(RTD("cqg.rtd", ,"ContractData",C111, "PerCentNetLastTrade",, "T")/100,"") -> -0.02173913043 | E111: 2456 | F111: 2456 | G111: S.US.AKER | H111: 111 | I111: S.US.TVIZ
C112: S.US.AKRX | D112: =IFERROR(RTD("cqg.rtd", ,"ContractData",C112, "PerCentNetLastTrade",, "T")/100,"") -> -0.01762820513 | E112: 2370 | F112: 2370 | G112: S.US.AKRX | H112: 112 | I112: S.US.KZIA
C113: S.US.AKTS | D113: =IFERROR(RTD("cqg.rtd", ,"ContractData",C113, "PerCentNetLastTrade",, "T")/100,"") -> -0.0178041543 | E113: 2374 | F113: 2374 | G113: S.US.AKTS | H113: 113 | I113: S.US.EYEN
C114: S.US.AKTX | D114: =IFERROR(RTD("cqg.rtd", ,"ContractData",C114, "PerCentNetLastTrade",, "T")/100,"") -> -0.02139037433 | E114: 2451 | F114: 2451 | G114: S.US.AKTX | H114: 114 | I114: S.US.MRCY
C115: S.US.ALBO | D115: =IFERROR(RTD("cqg.rtd", ,"ContractData",C115, "PerCentNetLastTrade",, "T")/100,"") -> 0.0269138756 | E115: 138 | F115: 138 | G115: S.US.ALBO | H115: 115 | I115: S.US.INO
C116: S.US.ALCO | D116: =IFERROR(RTD("cqg.rtd", ,"ContractData",C116, "PerCentNetLastTrade",, "T")/100,"") -> -0.01399631676 | E116: 2256 | F116: 2256 | G116: S.US.ALCO | H116: 116 | I116: S.US.SBPH
C117: S.US.ALDR | D117: =IFERROR(RTD("cqg.rtd", ,"ContractData",C117, "PerCentNetLastTrade",, "T")/100,"") -> -0.002510460251 | E117: 1575 | F117: 1575 | G117: S.US.ALDR | H117: 117 | I117: S.US.FNJN
C118: S.US.ALDX | D118: =IFERROR(RTD("cqg.rtd", ,"ContractData",C118, "PerCentNetLastTrade",, "T")/100,"") -> -0.02395209581 | E118: 2495 | F118: 2495 | G118: S.US.ALDX | H118: 118 | I118: S.US.IMNP
C119: S.US.ALGN | D119: =IFERROR(RTD("cqg.rtd", ,"ContractData",C119, "PerCentNetLastTrade",, "T")/100,"") -> -0.007188742735 | E119: 1923 | F119: 1923 | G119: S.US.ALGN | H119: 119 | I119: S.US.NSSC
C120: S.US.ALGT | D120: =IFERROR(RTD("cqg.rtd", ,"ContractData",C120, "PerCentNetLastTrade",, "T")/100,"") -> 0.01343065693 | E120: 357 | F120: 357 | G120: S.US.ALGT | H120: 120 | I120: S.US.CIDM
C121: S.US.ALIM | D121: =IFERROR(RTD("cqg.rtd", ,"ContractData",C121, "PerCentNetLastTrade",, "T")/100,"") -> -0.01851851852 | E121: 2386 | F121: 2386 | G121: S.US.ALIM | H121: 121 | I121: S.US.MIII
C122: S.US.ALJJ | D122: =IFERROR(RTD("cqg.rtd", ,"ContractData",C122, "PerCentNetLastTrade",, "T")/100,"") -> 0.01421800948 | E122: 337 | F122: 337 | G122: S.US.ALJJ | H122: 122 | I122: S.US.NVEC
C123: S.US.ALKS | D123: =IFERROR(RTD("cqg.rtd", ,"ContractData",C123, "PerCentNetLastTrade",, "T")/100,"") -> -0.0009891196835 | E123: 1419 | F123: 1419 | G123: S.US.ALKS | H123: 123 | I123: S.US.MSFG
C124: S.US.ALLT | D124: =IFERROR(RTD("cqg.rtd", ,"ContractData",C124, "PerCentNetLastTrade",, "T")/100,"") -> 0.003533568905 | E124: 857 | F124: 857 | G124: S.US.ALLT | H124: 124 | I124: S.US.ORGS
C125: S.US.ALNA | D125: =IFERROR(RTD("cqg.rtd", ,"ContractData",C125, "PerCentNetLastTrade",, "T")/100,"") -> 0.03135135135 | E125: 108 | F125: 108 | G125: S.US.ALNA | H125: 125 | I125: S.US.IMMY
C126: S.US.ALNY | D126: =IFERROR(RTD("cqg.rtd", ,"ContractData",C126, "PerCentNetLastTrade",, "T")/100,"") -> -0.007219695329 | E126: 1930 | F126: 1930 | G126: S.US.ALNY | H126: 126 | I126: S.US.UTSI
C127: S.US.ALOG | D127: =IFERROR(RTD("cqg.rtd", ,"ContractData",C127, "PerCentNetLastTrade",, "T")/100,"") -> -0.0005350454789 | E127: 1377 | F127: 1377 | G127: S.US.ALOG | H127: 127 | I127: S.US.BLDP
C128: S.US.ALOT | D128: =IFERROR(RTD("cqg.rtd", ,"ContractData",C128, "PerCentNetLastTrade",, "T")/100,"") -> 0.0396039604 | E128: 72 | F128: 72 | G128: S.US.ALOT | H128: 128 | I128: S.US.SINO
C129: S.US.ALQA | D129: =IFERROR(RTD("cqg.rtd", ,"ContractData",C129, "PerCentNetLastTrade",, "T")/100,"") -> 0.02590673575 | E129: 147 | F129: 147 | G129: S.US.ALQA | H129: 129 | I129: S.US.WHLM
C130: S.US.ALRM | D130: =IFERROR(RTD("cqg.rtd", ,"ContractData",C130, "PerCentNetLastTrade",, "T")/100,"") -> 0.001798099152 | E130: 1017 | F130: =IFERROR(E130,"") -> 1017 | G130: S.US.ALRM | H130: 130 | I130: =IFERROR(VLOOKUP(H130,$F$1:$G$3155,2,FALSE),"") -> S.US.ZBIO
C131: S.US.ALRN | D131: =IFERROR(RTD("cqg.rtd", ,"ContractData",C131, "PerCentNetLastTrade",, "T")/100,"") -> -0.03105590062 | E131: 2577 | F131: 2577 | G131: =C131 -> S.US.ALRN | H131: =H130+1 -> 131 | I131: S.US.WYNN
C132: S.US.ALSK | D132: =IFERROR(RTD("cqg.rtd", ,"ContractData",C132, "PerCentNetLastTrade",, "T")/100,"") -> -0.01960784314 | E132: 2416 | F132: 2416 | G132: S.US.ALSK | H132: 132 | I132: S.US.AXSM
C133: S.US.ALT | D133: =IFERROR(RTD("cqg.rtd", ,"ContractData",C133, "PerCentNetLastTrade",, "T")/100,"") -> -0.1558441558 | E133: 2740 | F133: 2740 | G133: S.US.ALT | H133: 133 | I133: S.US.NYMX
C134: S.US.ALTI | D134: =IFERROR(RTD("cqg.rtd", ,"ContractData",C134, "PerCentNetLastTrade",, "T")/100,"") ->  | G134: S.US.ALTI | H134: 134 | I134: S.US.AXTI
C135: S.US.ALTR | D135: =IFERROR(RTD("cqg.rtd", ,"ContractData",C135, "PerCentNetLastTrade",, "T")/100,"") -> 0.001556662516 | E135: 1048 | F135: 1048 | G135: S.US.ALTR | H135: 135 | I135: S.US.SSTI
C136: S.US.ALTY | D136: =IFERROR(RTD("cqg.rtd", ,"ContractData",C136, "PerCentNetLastTrade",, "T")/100,"") ->  | G136: S.US.ALTY | H136: 136 | I136: S.US.PIH
C137: S.US.ALXN | D137: =IFERROR(RTD("cqg.rtd", ,"ContractData",C137, "PerCentNetLastTrade",, "T")/100,"") -> -0.00824742268 | E137: 1997 | F137: 1997 | G137: S.US.ALXN | H137: 137 | I137: S.US.MIND
C138: S.US.AMAG | D138: =IFERROR(RTD("cqg.rtd", ,"ContractData",C138, "PerCentNetLastTrade",, "T")/100,"") -> 0.003684210526 | E138: 846 | F138: 846 | G138: S.US.AMAG | H138: 138 | I138: S.US.ALBO
C139: S.US.AMAT | D139: =IFERROR(RTD("cqg.rtd", ,"ContractData",C139, "PerCentNetLastTrade",, "T")/100,"") -> -0.00906447751 | E139: 2048 | F139: 2048 | G139: S.US.AMAT | H139: 139 | I139: S.US.AMTX
C140: S.US.AMBA | D140: =IFERROR(RTD("cqg.rtd", ,"ContractData",C140, "PerCentNetLastTrade",, "T")/100,"") -> -0.006062976726 | E140: 1839 | F140: 1839 | G140: S.US.AMBA | H140: 140 | I140: S.US.CHMA
C141: S.US.AMBC | D141: =IFERROR(RTD("cqg.rtd", ,"ContractData",C141, "PerCentNetLastTrade",, "T")/100,"") -> 0.01125082727 | E141: 436 | F141: 436 | G141: S.US.AMBC | H141: 141 | I141: S.US.RIGL
C142: S.US.AMCA | D142: =IFERROR(RTD("cqg.rtd", ,"ContractData",C142, "PerCentNetLastTrade",, "T")/100,"") -> 0.01089918256 | E142: 449 | F142: 449 | G142: S.US.AMCA | H142: 142 | I142: S.US.QDEL
C143: S.US.AMCN | D143: =IFERROR(RTD("cqg.rtd", ,"ContractData",C143, "PerCentNetLastTrade",, "T")/100,"") -> -0.08695652174 | E143: 2722 | F143: 2722 | G143: S.US.AMCN | H143: 143 | I143: S.US.FFBC
C144: S.US.AMCX | D144: =IFERROR(RTD("cqg.rtd", ,"ContractData",C144, "PerCentNetLastTrade",, "T")/100,"") -> 0.006556725611 | E144: 654 | F144: 654 | G144: S.US.AMCX | H144: 144 | I144: S.US.CLRB
C145: S.US.AMD | D145: =IFERROR(RTD("cqg.rtd", ,"ContractData",C145, "PerCentNetLastTrade",, "T")/100,"") -> -0.01340996169 | E145: 2238 | F145: 2238 | G145: S.US.AMD | H145: 145 | I145: S.US.HX
C146: S.US.AMDA | D146: =IFERROR(RTD("cqg.rtd", ,"ContractData",C146, "PerCentNetLastTrade",, "T")/100,"") -> -0.09941520468 | E146: 2730 | F146: 2730 | G146: S.US.AMDA | H146: 146 | I146: S.US.INWK
C147: S.US.AMED | D147: =IFERROR(RTD("cqg.rtd", ,"ContractData",C147, "PerCentNetLastTrade",, "T")/100,"") -> -0.01055880442 | E147: 2127 | F147: 2127 | G147: S.US.AMED | H147: 147 | I147: S.US.ALQA
C148: S.US.AMEH | D148: =IFERROR(RTD("cqg.rtd", ,"ContractData",C148, "PerCentNetLastTrade",, "T")/100,"") -> 0.06025641026 | E148: 34 | F148: 34 | G148: S.US.AMEH | H148: 148 | I148: S.US.EDUC
C149: S.US.AMGN | D149: =IFERROR(RTD("cqg.rtd", ,"ContractData",C149, "PerCentNetLastTrade",, "T")/100,"") -> -0.009989154632 | E149: 2100 | F149: 2100 | G149: S.US.AMGN | H149: 149 | I149: S.US.ARCW
C150: S.US.AMKR | D150: =IFERROR(RTD("cqg.rtd", ,"ContractData",C150, "PerCentNetLastTrade",, "T")/100,"") -> -0.01951672862 | E150: 2413 | F150: 2413 | G150: S.US.AMKR | H150: 150 | I150: S.US.PERI
C151: S.US.AMMA | D151: =IFERROR(RTD("cqg.rtd", ,"ContractData",C151, "PerCentNetLastTrade",, "T")/100,"") -> -0.02083333333 | E151: 2439 | F151: 2439 | G151: S.US.AMMA | H151: 151 | I151: S.US.VVUS
C152: S.US.AMNB | D152: =IFERROR(RTD("cqg.rtd", ,"ContractData",C152, "PerCentNetLastTrade",, "T")/100,"") -> 0.01694915254 | E152: 277 | F152: 277 | G152: S.US.AMNB | H152: 152 | I152: S.US.FLL
C153: S.US.AMOT | D153: =IFERROR(RTD("cqg.rtd", ,"ContractData",C153, "PerCentNetLastTrade",, "T")/100,"") -> 0.02041350432 | E153: 205 | F153: 205 | G153: S.US.AMOT | H153: 153 | I153: S.US.SPNE
C154: S.US.AMPH | D154: =IFERROR(RTD("cqg.rtd", ,"ContractData",C154, "PerCentNetLastTrade",, "T")/100,"") -> 0.01020956475 | E154: 485 | F154: 485 | G154: S.US.AMPH | H154: 154 | I154: S.US.GIGM
C155: S.US.AMQ | D155: =IFERROR(RTD("cqg.rtd", ,"ContractData",C155, "PerCentNetLastTrade",, "T")/100,"") ->  | G155: S.US.AMQ | H155: 155 | I155: S.US.CBFV
C156: S.US.AMR | D156: =IFERROR(RTD("cqg.rtd", ,"ContractData",C156, "PerCentNetLastTrade",, "T")/100,"") -> -0.003562945368 | E156: 1671 | F156: 1671 | G156: S.US.AMR | H156: 156 | I156: S.US.PTGX
C157: S.US.AMRB | D157: =IFERROR(RTD("cqg.rtd", ,"ContractData",C157, "PerCentNetLastTrade",, "T")/100,"") -> 0.009138381201 | E157: 532 | F157: 532 | G157: S.US.AMRB | H157: 157 | I157: S.US.DBVT
C158: S.US.AMRH | D158: =IFERROR(RTD("cqg.rtd", ,"ContractData",C158, "PerCentNetLastTrade",, "T")/100,"") -> -0.04117647059 | E158: 2642 | F158: 2642 | G158: S.US.AMRH | H158: 158 | I158: S.US.CCCR
C159: S.US.AMRK | D159: =IFERROR(RTD("cqg.rtd", ,"ContractData",C159, "PerCentNetLastTrade",, "T")/100,"") -> -0.02260869565 | E159: 2470 | F159: 2470 | G159: S.US.AMRK | H159: 159 | I159: S.US.FANH
C160: S.US.AMRN | D160: =IFERROR(RTD("cqg.rtd", ,"ContractData",C160, "PerCentNetLastTrade",, "T")/100,"") -> -0.003164556962 | E160: 1635 | F160: 1635 | G160: S.US.AMRN | H160: 160 | I160: S.US.SPEX
C161: S.US.AMRS | D161: =IFERROR(RTD("cqg.rtd", ,"ContractData",C161, "PerCentNetLastTrade",, "T")/100,"") -> -0.004405286344 | E161: 1727 | F161: 1727 | G161: S.US.AMRS | H161: 161 | I161: S.US.MGIC
C162: S.US.AMSC | D162: =IFERROR(RTD("cqg.rtd", ,"ContractData",C162, "PerCentNetLastTrade",, "T")/100,"") -> 0 | E162: 1189 | F162: 1189 | G162: S.US.AMSC | H162: 162 | I162: S.US.SELB
C163: S.US.AMSF | D163: =IFERROR(RTD("cqg.rtd", ,"ContractData",C163, "PerCentNetLastTrade",, "T")/100,"") -> -0.0009259259259 | E163: 1413 | F163: 1413 | G163: S.US.AMSF | H163: 163 | I163: S.US.DGLD
C164: S.US.AMSWA | D164: =IFERROR(RTD("cqg.rtd", ,"ContractData",C164, "PerCentNetLastTrade",, "T")/100,"") -> 0.004739336493 | E164: 774 | F164: 774 | G164: S.US.AMSWA | H164: 164 | I164: S.US.RVNC
C165: S.US.AMTD | D165: =IFERROR(RTD("cqg.rtd", ,"ContractData",C165, "PerCentNetLastTrade",, "T")/100,"") -> 0.00425170068 | E165: 804 | F165: 804 | G165: S.US.AMTD | H165: 165 | I165: S.US.ZAGG
C166: S.US.AMTX | D166: =IFERROR(RTD("cqg.rtd", ,"ContractData",C166, "PerCentNetLastTrade",, "T")/100,"") -> 0.02673796791 | E166: 139 | F166: 139 | G166: S.US.AMTX | H166: 166 | I166: S.US.NXST
C167: S.US.AMWD | D167: =IFERROR(RTD("cqg.rtd", ,"ContractData",C167, "PerCentNetLastTrade",, "T")/100,"") -> 0.006128702758 | E167: 678 | F167: 678 | G167: S.US.AMWD | H167: 167 | I167: S.US.PESI
C168: S.US.AMZN | D168: =IFERROR(RTD("cqg.rtd", ,"ContractData",C168, "PerCentNetLastTrade",, "T")/100,"") -> 0.01158201895 | E168: 421 | F168: 421 | G168: S.US.AMZN | H168: 168 | I168: S.US.ERII
C169: S.US.ANAB | D169: =IFERROR(RTD("cqg.rtd", ,"ContractData",C169, "PerCentNetLastTrade",, "T")/100,"") -> -0.04243169639 | E169: 2668 | F169: 2668 | G169: S.US.ANAB | H169: 169 | I169: S.US.RCKY
C170: S.US.ANAT | D170: =IFERROR(RTD("cqg.rtd", ,"ContractData",C170, "PerCentNetLastTrade",, "T")/100,"") -> -0.01025862069 | E170: 2116 | F170: 2116 | G170: S.US.ANAT | H170: 170 | I170: S.US.AVGO
C171: S.US.ANCB | D171: =IFERROR(RTD("cqg.rtd", ,"ContractData",C171, "PerCentNetLastTrade",, "T")/100,"") ->  | G171: S.US.ANCB | H171: 171 | I171: S.US.MAT
C172: S.US.ANCX | D172: =IFERROR(RTD("cqg.rtd", ,"ContractData",C172, "PerCentNetLastTrade",, "T")/100,"") -> 0.004209049456 | E172: 809 | F172: 809 | G172: S.US.ANCX | H172: 172 | I172: S.US.RMBL
C173: S.US.ANDA | D173: =IFERROR(RTD("cqg.rtd", ,"ContractData",C173, "PerCentNetLastTrade",, "T")/100,"") ->  | G173: S.US.ANDA | H173: 173 | I173: S.US.INFO
C174: S.US.ANDE | D174: =IFERROR(RTD("cqg.rtd", ,"ContractData",C174, "PerCentNetLastTrade",, "T")/100,"") -> 0.004545454545 | E174: 787 | F174: 787 | G174: S.US.ANDE | H174: 174 | I174: S.US.OHAI
C175: S.US.ANGO | D175: =IFERROR(RTD("cqg.rtd", ,"ContractData",C175, "PerCentNetLastTrade",, "T")/100,"") -> 0 | E175: 1190 | F175: 1190 | G175: S.US.ANGO | H175: 175 | I175: S.US.TRNS
C176: S.US.ANIK | D176: =IFERROR(RTD("cqg.rtd", ,"ContractData",C176, "PerCentNetLastTrade",, "T")/100,"") -> -0.00333006856 | E176: 1652 | F176: 1652 | G176: S.US.ANIK | H176: 176 | I176: S.US.REIS
C177: S.US.ANIP | D177: =IFERROR(RTD("cqg.rtd", ,"ContractData",C177, "PerCentNetLastTrade",, "T")/100,"") -> -0.02437785678 | E177: 2498 | F177: 2498 | G177: S.US.ANIP | H177: 177 | I177: S.US.BDSI
C178: S.US.ANSS | D178: =IFERROR(RTD("cqg.rtd", ,"ContractData",C178, "PerCentNetLastTrade",, "T")/100,"") -> 0.006210794361 | E178: 676 | F178: 676 | G178: S.US.ANSS | H178: 178 | I178: S.US.ORRF
C179: S.US.ANTE | D179: =IFERROR(RTD("cqg.rtd", ,"ContractData",C179, "PerCentNetLastTrade",, "T")/100,"") ->  | G179: S.US.ANTE | H179: 179 | I179: S.US.SONC
C180: S.US.ANTH | D180: =IFERROR(RTD("cqg.rtd", ,"ContractData",C180, "PerCentNetLastTrade",, "T")/100,"") -> 0.1612903226 | E180: 3 | F180: 3 | G180: S.US.ANTH | H180: 180 | I180: S.US.ENG
C181: S.US.ANY | D181: =IFERROR(RTD("cqg.rtd", ,"ContractData",C181, "PerCentNetLastTrade",, "T")/100,"") -> -0.1559633028 | E181: 2741 | F181: 2741 | G181: S.US.ANY | H181: 181 | I181: S.US.OPGN
C182: S.US.AOBC | D182: =IFERROR(RTD("cqg.rtd", ,"ContractData",C182, "PerCentNetLastTrade",, "T")/100,"") -> 0.01144640999 | E182: 427 | F182: 427 | G182: S.US.AOBC | H182: 182 | I182: S.US.FTR
C183: S.US.AOSL | D183: =IFERROR(RTD("cqg.rtd", ,"ContractData",C183, "PerCentNetLastTrade",, "T")/100,"") -> -0.01717791411 | E183: 2356 | F183: 2356 | G183: S.US.AOSL | H183: 183 | I183: S.US.KFRC
C184: S.US.APAGF | D184: =IFERROR(RTD("cqg.rtd", ,"ContractData",C184, "PerCentNetLastTrade",, "T")/100,"") ->  | G184: S.US.APAGF | H184: 184 | I184: S.US.FRSH
C185: S.US.APDN | D185: =IFERROR(RTD("cqg.rtd", ,"ContractData",C185, "PerCentNetLastTrade",, "T")/100,"") -> 0 | E185: 1191 | F185: 1191 | G185: S.US.APDN | H185: 185 | I185: S.US.MELR
C186: S.US.APEI | D186: =IFERROR(RTD("cqg.rtd", ,"ContractData",C186, "PerCentNetLastTrade",, "T")/100,"") -> -0.02314814815 | E186: 2475 | F186: 2475 | G186: S.US.APEI | H186: 186 | I186: S.US.GGAL
C187: S.US.APEN | D187: =IFERROR(RTD("cqg.rtd", ,"ContractData",C187, "PerCentNetLastTrade",, "T")/100,"") -> -0.03402366864 | E187: 2600 | F187: 2600 | G187: S.US.APEN | H187: 187 | I187: S.US.JCOM
C188: S.US.APLP | D188: =IFERROR(RTD("cqg.rtd", ,"ContractData",C188, "PerCentNetLastTrade",, "T")/100,"") -> -0.02386634845 | E188: 2492 | F188: 2492 | G188: S.US.APLP | H188: 188 | I188: S.US.GSUM
C189: S.US.APLS | D189: =IFERROR(RTD("cqg.rtd", ,"ContractData",C189, "PerCentNetLastTrade",, "T")/100,"") -> 0 | E189: 1192 | F189: 1192 | G189: S.US.APLS | H189: 189 | I189: S.US.AGYS
C190: S.US.APOG | D190: =IFERROR(RTD("cqg.rtd", ,"ContractData",C190, "PerCentNetLastTrade",, "T")/100,"") -> -0.002730375427 | E190: 1598 | F190: 1598 | G190: S.US.APOG | H190: 190 | I190: S.US.STMP
C191: S.US.APOP | D191: =IFERROR(RTD("cqg.rtd", ,"ContractData",C191, "PerCentNetLastTrade",, "T")/100,"") -> -0.004405286344 | E191: 1728 | F191: 1728 | G191: S.US.APOP | H191: 191 | I191: S.US.USAP
C192: S.US.APPD | D192: =IFERROR(RTD("cqg.rtd", ,"ContractData",C192, "PerCentNetLastTrade",, "T")/100,"") ->  | G192: S.US.APPD | H192: 192 | I192: S.US.PFIE
C193: S.US.APPF | D193: =IFERROR(RTD("cqg.rtd", ,"ContractData",C193, "PerCentNetLastTrade",, "T")/100,"") -> 0 | E193: 1193 | F193: 1193 | G193: S.US.APPF | H193: 193 | I193: S.US.EDAP
C194: S.US.APPN | D194: =IFERROR(RTD("cqg.rtd", ,"ContractData",C194, "PerCentNetLastTrade",, "T")/100,"") -> -0.0003790750569 | E194: 1368 | F194: =IFERROR(E194,"") -> 1368 | G194: S.US.APPN | H194: 194 | I194: =IFERROR(VLOOKUP(H194,$F$1:$G$3155,2,FALSE),"") -> S.US.FJP
C195: S.US.APPS | D195: =IFERROR(RTD("cqg.rtd", ,"ContractData",C195, "PerCentNetLastTrade",, "T")/100,"") -> 0.01895734597 | E195: 234 | F195: 234 | G195: =C195 -> S.US.APPS | H195: =H194+1 -> 195 | I195: S.US.PEBK
C196: S.US.APRI | D196: =IFERROR(RTD("cqg.rtd", ,"ContractData",C196, "PerCentNetLastTrade",, "T")/100,"") -> -0.08955223881 | E196: 2724 | F196: 2724 | G196: S.US.APRI | H196: 196 | I196: S.US.CVON
C197: S.US.APTI | D197: =IFERROR(RTD("cqg.rtd", ,"ContractData",C197, "PerCentNetLastTrade",, "T")/100,"") -> -0.009963467287 | E197: 2023 | F197: 2023 | G197: S.US.APTI | H197: 197 | I197: S.US.LOCO
C198: S.US.APTO | D198: =IFERROR(RTD("cqg.rtd", ,"ContractData",C198, "PerCentNetLastTrade",, "T")/100,"") -> -0.03151862464 | E198: 2582 | F198: 2582 | G198: S.US.APTO | H198: 198 | I198: S.US.NSEC
C199: S.US.APVO | D199: =IFERROR(RTD("cqg.rtd", ,"ContractData",C199, "PerCentNetLastTrade",, "T")/100,"") -> -0.028125 | E199: 2544 | F199: 2544 | G199: S.US.APVO | H199: 199 | I199: S.US.CELC
C200: S.US.APWC | D200: =IFERROR(RTD("cqg.rtd", ,"ContractData",C200, "PerCentNetLastTrade",, "T")/100,"") -> -0.01486988848 | E200: 2285 | F200: 2285 | G200: S.US.APWC | H200: 200 | I200: S.US.KIDS
... 2956 more rows

Sheet NYSE (hidden)
C1: S.US.A | D1: =IFERROR(RTD("cqg.rtd", ,"ContractData",C1, "PerCentNetLastTrade",, "T")/100,"") -> 0.002785923754 | E1: 907 | F1: =IFERROR(E1,"") -> 907 | G1: =C1 -> S.US.A | H1: 1 | I1: =IFERROR(VLOOKUP(H1,$F$1:$G$2776,2,FALSE),"") -> S.US.HMI | J1: =IFERROR(RTD("cqg.rtd", ,"ContractData",I1, "PerCentNetLastTrade",, "T")/100,"") -> 0.07745098039 | L1: =MIN(D1:D2776) -> -0.2370820669 | M1: =VLOOKUP(L1,D1:G2776,3,FALSE) -> 2437 | N1: =VLOOKUP(M1,$H$1:$I$2776,2,FALSE) -> S.US.IDT | O1: =IFERROR(RTD("cqg.rtd", ,"ContractData",N1, "PerCentNetLastTrade",, "T")/100,"") -> -0.2370820669
C2: S.US.AA | D2: =IFERROR(RTD("cqg.rtd", ,"ContractData",C2, "PerCentNetLastTrade",, "T")/100,"") -> -0.005025125628 | E2: 1815 | F2: =IFERROR(E2,"") -> 1815 | G2: =C2 -> S.US.AA | H2: =H1+1 -> 2 | I2: =IFERROR(VLOOKUP(H2,$F$1:$G$2776,2,FALSE),"") -> S.US.ECR | J2: =IFERROR(RTD("cqg.rtd", ,"ContractData",I2, "PerCentNetLastTrade",, "T")/100,"") -> 0.07692307692 | M2: =M1-1 -> 2436 | N2: S.US.NAP | O2: =IFERROR(RTD("cqg.rtd", ,"ContractData",N2, "PerCentNetLastTrade",, "T")/100,"") -> -0.2051282051
C3: S.US.AAC | D3: =IFERROR(RTD("cqg.rtd", ,"ContractData",C3, "PerCentNetLastTrade",, "T")/100,"") -> -0.02687296417 | E3: 2383 | F3: 2383 | G3: S.US.AAC | H3: =H2+1 -> 3 | I3: S.US.TEP | J3: =IFERROR(RTD("cqg.rtd", ,"ContractData",I3, "PerCentNetLastTrade",, "T")/100,"") -> 0.07585227273 | M3: =M2-1 -> 2435 | N3: S.US.NVTA | O3: =IFERROR(RTD("cqg.rtd", ,"ContractData",N3, "PerCentNetLastTrade",, "T")/100,"") -> -0.1357142857
C4: S.US.AAN | D4: =IFERROR(RTD("cqg.rtd", ,"ContractData",C4, "PerCentNetLastTrade",, "T")/100,"") -> -0.0038935756 | E4: 1712 | F4: 1712 | G4: S.US.AAN | H4: 4 | I4: S.US.RYAM | J4: =IFERROR(RTD("cqg.rtd", ,"ContractData",I4, "PerCentNetLastTrade",, "T")/100,"") -> 0.07550077042 | M4: 2434 | N4: S.US.ARA | O4: =IFERROR(RTD("cqg.rtd", ,"ContractData",N4, "PerCentNetLastTrade",, "T")/100,"") -> -0.1346153846
C5: S.US.AAP | D5: =IFERROR(RTD("cqg.rtd", ,"ContractData",C5, "PerCentNetLastTrade",, "T")/100,"") -> 0.01420231768 | E5: 171 | F5: 171 | G5: S.US.AAP | H5: 5 | I5: S.US.TEGP | J5: =IFERROR(RTD("cqg.rtd", ,"ContractData",I5, "PerCentNetLastTrade",, "T")/100,"") -> 0.06832298137 | M5: 2433 | N5: S.US.LAC | O5: =IFERROR(RTD("cqg.rtd", ,"ContractData",N5, "PerCentNetLastTrade",, "T")/100,"") -> -0.09075342466
C6: S.US.AAT | D6: =IFERROR(RTD("cqg.rtd", ,"ContractData",C6, "PerCentNetLastTrade",, "T")/100,"") -> 0.01396648045 | E6: 178 | F6: 178 | G6: S.US.AAT | H6: 6 | I6: S.US.BBDO | J6: =IFERROR(RTD("cqg.rtd", ,"ContractData",I6, "PerCentNetLastTrade",, "T")/100,"") -> 0.06610009443 | M6: 2432 | N6: S.US.UNT | O6: =IFERROR(RTD("cqg.rtd", ,"ContractData",N6, "PerCentNetLastTrade",, "T")/100,"") -> -0.09029927761
C7: S.US.AAV | D7: =IFERROR(RTD("cqg.rtd", ,"ContractData",C7, "PerCentNetLastTrade",, "T")/100,"") -> -0.0253968254 | E7: 2372 | F7: 2372 | G7: S.US.AAV | H7: 7 | I7: S.US.NLS | J7: =IFERROR(RTD("cqg.rtd", ,"ContractData",I7, "PerCentNetLastTrade",, "T")/100,"") -> 0.06477732794 | M7: 2431 | N7: S.US.SBS | O7: =IFERROR(RTD("cqg.rtd", ,"ContractData",N7, "PerCentNetLastTrade",, "T")/100,"") -> -0.08096468562
C8: S.US.AB | D8: =IFERROR(RTD("cqg.rtd", ,"ContractData",C8, "PerCentNetLastTrade",, "T")/100,"") -> -0.003773584906 | E8: 1703 | F8: 1703 | G8: S.US.AB | H8: 8 | I8: S.US.IO | J8: =IFERROR(RTD("cqg.rtd", ,"ContractData",I8, "PerCentNetLastTrade",, "T")/100,"") -> 0.06349206349 | M8: 2430 | N8: S.US.PUMP | O8: =IFERROR(RTD("cqg.rtd", ,"ContractData",N8, "PerCentNetLastTrade",, "T")/100,"") -> -0.07252358491
C9: S.US.ABB | D9: =IFERROR(RTD("cqg.rtd", ,"ContractData",C9, "PerCentNetLastTrade",, "T")/100,"") -> 0.007669365147 | E9: 436 | F9: 436 | G9: S.US.ABB | H9: 9 | I9: S.US.GRAM | J9: =IFERROR(RTD("cqg.rtd", ,"ContractData",I9, "PerCentNetLastTrade",, "T")/100,"") -> 0.06343283582 | M9: 2429 | N9: S.US.EGO | O9: =IFERROR(RTD("cqg.rtd", ,"ContractData",N9, "PerCentNetLastTrade",, "T")/100,"") -> -0.05813953488
C10: S.US.ABBV | D10: =IFERROR(RTD("cqg.rtd", ,"ContractData",C10, "PerCentNetLastTrade",, "T")/100,"") -> -0.01637279597 | E10: 2275 | F10: 2275 | G10: S.US.ABBV | H10: 10 | I10: S.US.FEDU | J10: =IFERROR(RTD("cqg.rtd", ,"ContractData",I10, "PerCentNetLastTrade",, "T")/100,"") -> 0.06212121212 | M10: 2428 | N10: S.US.HJV | O10: =IFERROR(RTD("cqg.rtd", ,"ContractData",N10, "PerCentNetLastTrade",, "T")/100,"") -> -0.05701078582
C11: S.US.ABC | D11: =IFERROR(RTD("cqg.rtd", ,"ContractData",C11, "PerCentNetLastTrade",, "T")/100,"") -> -0.002354326074 | E11: 1587 | F11: 1587 | G11: S.US.ABC | H11: 11 | I11: S.US.CMCM
C12: S.US.ABEV | D12: =IFERROR(RTD("cqg.rtd", ,"ContractData",C12, "PerCentNetLastTrade",, "T")/100,"") -> -0.004166666667 | E12: 1740 | F12: 1740 | G12: S.US.ABEV | H12: 12 | I12: S.US.CHU
C13: S.US.ABG | D13: =IFERROR(RTD("cqg.rtd", ,"ContractData",C13, "PerCentNetLastTrade",, "T")/100,"") -> 0.007639419404 | E13: 440 | F13: 440 | G13: S.US.ABG | H13: 13 | I13: S.US.JCP
C14: S.US.ABM | D14: =IFERROR(RTD("cqg.rtd", ,"ContractData",C14, "PerCentNetLastTrade",, "T")/100,"") -> 0.003303303303 | E14: 849 | F14: 849 | G14: S.US.ABM | H14: 14 | I14: S.US.VRS
C15: S.US.ABR | D15: =IFERROR(RTD("cqg.rtd", ,"ContractData",C15, "PerCentNetLastTrade",, "T")/100,"") -> 0 | E15: 1245 | F15: 1245 | G15: S.US.ABR | H15: 15 | I15: S.US.BHVN
C16: S.US.ABS | D16: =IFERROR(RTD("cqg.rtd", ,"ContractData",C16, "PerCentNetLastTrade",, "T")/100,"") ->  | G16: S.US.ABS | H16: 16 | I16: S.US.VJET
C17: S.US.ABT | D17: =IFERROR(RTD("cqg.rtd", ,"ContractData",C17, "PerCentNetLastTrade",, "T")/100,"") -> 0.004912395612 | E17: 678 | F17: 678 | G17: S.US.ABT | H17: 17 | I17: S.US.CEL
C18: S.US.ABX | D18: =IFERROR(RTD("cqg.rtd", ,"ContractData",C18, "PerCentNetLastTrade",, "T")/100,"") -> -0.01489028213 | E18: 2245 | F18: 2245 | G18: S.US.ABX | H18: 18 | I18: S.US.LXFT
C19: S.US.ACC | D19: =IFERROR(RTD("cqg.rtd", ,"ContractData",C19, "PerCentNetLastTrade",, "T")/100,"") -> 0.01322678424 | E19: 198 | F19: 198 | G19: S.US.ACC | H19: 19 | I19: S.US.CYD
C20: S.US.ACCO | D20: =IFERROR(RTD("cqg.rtd", ,"ContractData",C20, "PerCentNetLastTrade",, "T")/100,"") -> 0.001606425703 | E20: 1043 | F20: 1043 | G20: S.US.ACCO | H20: 20 | I20: S.US.RHT
C21: S.US.ACE | D21: =IFERROR(RTD("cqg.rtd", ,"ContractData",C21, "PerCentNetLastTrade",, "T")/100,"") ->  | G21: S.US.ACE | H21: 21 | I21: S.US.TLRA
C22: S.US.ACG | D22: =IFERROR(RTD("cqg.rtd", ,"ContractData",C22, "PerCentNetLastTrade",, "T")/100,"") ->  | G22: S.US.ACG | H22: 22 | I22: S.US.YGE
C23: S.US.ACH | D23: =IFERROR(RTD("cqg.rtd", ,"ContractData",C23, "PerCentNetLastTrade",, "T")/100,"") -> 0.0007331378299 | E23: 1183 | F23: 1183 | G23: S.US.ACH | H23: 23 | I23: S.US.TAL
C24: S.US.ACM | D24: =IFERROR(RTD("cqg.rtd", ,"ContractData",C24, "PerCentNetLastTrade",, "T")/100,"") -> -0.005350605463 | E24: 1837 | F24: 1837 | G24: S.US.ACM | H24: 24 | I24: S.US.QHC
C25: S.US.ACN | D25: =IFERROR(RTD("cqg.rtd", ,"ContractData",C25, "PerCentNetLastTrade",, "T")/100,"") -> -0.0005888125613 | E25: 1379 | F25: 1379 | G25: S.US.ACN | H25: 25 | I25: S.US.LKM
C26: S.US.ACO | D26: =IFERROR(RTD("cqg.rtd", ,"ContractData",C26, "PerCentNetLastTrade",, "T")/100,"") ->  | G26: S.US.ACO | H26: 26 | I26: S.US.LVS
C27: S.US.ACP | D27: =IFERROR(RTD("cqg.rtd", ,"ContractData",C27, "PerCentNetLastTrade",, "T")/100,"") -> -0.0007251631617 | E27: 1398 | F27: 1398 | G27: S.US.ACP | H27: 27 | I27: S.US.MTG
C28: S.US.ACRE | D28: =IFERROR(RTD("cqg.rtd", ,"ContractData",C28, "PerCentNetLastTrade",, "T")/100,"") -> -0.002415458937 | E28: 1592 | F28: 1592 | G28: S.US.ACRE | H28: 28 | I28: S.US.BSMX
C29: S.US.ADAM | D29: =IFERROR(RTD("cqg.rtd", ,"ContractData",C29, "PerCentNetLastTrade",, "T")/100,"") ->  | G29: S.US.ADAM | H29: 29 | I29: S.US.APRN
C30: S.US.ADC | D30: =IFERROR(RTD("cqg.rtd", ,"ContractData",C30, "PerCentNetLastTrade",, "T")/100,"") -> -0.001276052744 | E30: 1462 | F30: 1462 | G30: S.US.ADC | H30: 30 | I30: S.US.CBD
C31: S.US.ADM | D31: =IFERROR(RTD("cqg.rtd", ,"ContractData",C31, "PerCentNetLastTrade",, "T")/100,"") -> 0.0100396918 | E31: 305 | F31: 305 | G31: S.US.ADM | H31: 31 | I31: S.US.NBHC
C32: S.US.ADNT | D32: =IFERROR(RTD("cqg.rtd", ,"ContractData",C32, "PerCentNetLastTrade",, "T")/100,"") -> 0.007578309195 | E32: 443 | F32: 443 | G32: S.US.ADNT | H32: 32 | I32: S.US.KODK
C33: S.US.ADS | D33: =IFERROR(RTD("cqg.rtd", ,"ContractData",C33, "PerCentNetLastTrade",, "T")/100,"") -> -0.004724409449 | E33: 1790 | F33: 1790 | G33: S.US.ADS | H33: 33 | I33: S.US.VNTR
C34: S.US.ADSW | D34: =IFERROR(RTD("cqg.rtd", ,"ContractData",C34, "PerCentNetLastTrade",, "T")/100,"") -> 0 | E34: 1246 | F34: 1246 | G34: S.US.ADSW | H34: 34 | I34: S.US.NPTN
C35: S.US.ADT | D35: =IFERROR(RTD("cqg.rtd", ,"ContractData",C35, "PerCentNetLastTrade",, "T")/100,"") -> -0.03018867925 | E35: 2398 | F35: 2398 | G35: S.US.ADT | H35: 35 | I35: S.US.SMLP
C36: S.US.ADX | D36: =IFERROR(RTD("cqg.rtd", ,"ContractData",C36, "PerCentNetLastTrade",, "T")/100,"") -> 0 | E36: 1247 | F36: 1247 | G36: S.US.ADX | H36: 36 | I36: S.US.AT
C37: S.US.AED | D37: =IFERROR(RTD("cqg.rtd", ,"ContractData",C37, "PerCentNetLastTrade",, "T")/100,"") -> -0.001145475372 | E37: 1450 | F37: 1450 | G37: S.US.AED | H37: 37 | I37: S.US.CC
C38: S.US.AEE | D38: =IFERROR(RTD("cqg.rtd", ,"ContractData",C38, "PerCentNetLastTrade",, "T")/100,"") -> 0.01039197812 | E38: 287 | F38: 287 | G38: S.US.AEE | H38: 38 | I38: S.US.RDN
C39: S.US.AEG | D39: =IFERROR(RTD("cqg.rtd", ,"ContractData",C39, "PerCentNetLastTrade",, "T")/100,"") -> -0.002954209749 | E39: 1632 | F39: 1632 | G39: S.US.AEG | H39: 39 | I39: S.US.YRD
C40: S.US.AEK | D40: =IFERROR(RTD("cqg.rtd", ,"ContractData",C40, "PerCentNetLastTrade",, "T")/100,"") -> 0.003017729159 | E40: 879 | F40: 879 | G40: S.US.AEK | H40: 40 | I40: S.US.CNQ
C41: S.US.AEL | D41: =IFERROR(RTD("cqg.rtd", ,"ContractData",C41, "PerCentNetLastTrade",, "T")/100,"") -> 0.0009848982272 | E41: 1133 | F41: 1133 | G41: S.US.AEL | H41: 41 | I41: S.US.PSTG
C42: S.US.AEM | D42: =IFERROR(RTD("cqg.rtd", ,"ContractData",C42, "PerCentNetLastTrade",, "T")/100,"") -> -0.004720320982 | E42: 1789 | F42: 1789 | G42: S.US.AEM | H42: 42 | I42: S.US.GE
C43: S.US.AEO | D43: =IFERROR(RTD("cqg.rtd", ,"ContractData",C43, "PerCentNetLastTrade",, "T")/100,"") -> -0.003996003996 | E43: 1720 | F43: 1720 | G43: S.US.AEO | H43: 43 | I43: S.US.TSQ
C44: S.US.AEP | D44: =IFERROR(RTD("cqg.rtd", ,"ContractData",C44, "PerCentNetLastTrade",, "T")/100,"") -> 0.00579408706 | E44: 577 | F44: 577 | G44: S.US.AEP | H44: 44 | I44: S.US.ATTO
C45: S.US.AER | D45: =IFERROR(RTD("cqg.rtd", ,"ContractData",C45, "PerCentNetLastTrade",, "T")/100,"") -> 0.0001984914649 | E45: 1237 | F45: 1237 | G45: S.US.AER | H45: 45 | I45: S.US.CRK
C46: S.US.AES | D46: =IFERROR(RTD("cqg.rtd", ,"ContractData",C46, "PerCentNetLastTrade",, "T")/100,"") -> 0.007380073801 | E46: 460 | F46: 460 | G46: S.US.AES | H46: 46 | I46: S.US.FENG
C47: S.US.AET | D47: =IFERROR(RTD("cqg.rtd", ,"ContractData",C47, "PerCentNetLastTrade",, "T")/100,"") -> 0.0003513909224 | E47: 1227 | F47: 1227 | G47: S.US.AET | H47: 47 | I47: S.US.GSK
C48: S.US.AEUA | D48: =IFERROR(RTD("cqg.rtd", ,"ContractData",C48, "PerCentNetLastTrade",, "T")/100,"") -> -0.001333333333 | E48: 1471 | F48: 1471 | G48: S.US.AEUA | H48: 48 | I48: S.US.BKE
C49: S.US.AFB | D49: =IFERROR(RTD("cqg.rtd", ,"ContractData",C49, "PerCentNetLastTrade",, "T")/100,"") -> -0.001601281025 | E49: 1511 | F49: 1511 | G49: S.US.AFB | H49: 49 | I49: S.US.TLRD
C50: S.US.AFC | D50: =IFERROR(RTD("cqg.rtd", ,"ContractData",C50, "PerCentNetLastTrade",, "T")/100,"") -> -0.0007788161994 | E50: 1410 | F50: 1410 | G50: S.US.AFC | H50: 50 | I50: S.US.VSI
C51: S.US.AFG | D51: =IFERROR(RTD("cqg.rtd", ,"ContractData",C51, "PerCentNetLastTrade",, "T")/100,"") -> 8.906305664e-05 | E51: 1244 | F51: 1244 | G51: S.US.AFG | H51: 51 | I51: S.US.CSLT
C52: S.US.AFI | D52: =IFERROR(RTD("cqg.rtd", ,"ContractData",C52, "PerCentNetLastTrade",, "T")/100,"") -> 0.005131964809 | E52: 653 | F52: 653 | G52: S.US.AFI | H52: 52 | I52: S.US.SOGO
C53: S.US.AFL | D53: =IFERROR(RTD("cqg.rtd", ,"ContractData",C53, "PerCentNetLastTrade",, "T")/100,"") -> -0.01111363121 | E53: 2144 | F53: 2144 | G53: S.US.AFL | H53: 53 | I53: S.US.PKX
C54: S.US.AFT | D54: =IFERROR(RTD("cqg.rtd", ,"ContractData",C54, "PerCentNetLastTrade",, "T")/100,"") -> 0.003597122302 | E54: 814 | F54: 814 | G54: S.US.AFT | H54: 54 | I54: S.US.DDS
C55: S.US.AG | D55: =IFERROR(RTD("cqg.rtd", ,"ContractData",C55, "PerCentNetLastTrade",, "T")/100,"") -> -0.01286173633 | E55: 2199 | F55: 2199 | G55: S.US.AG | H55: 55 | I55: S.US.CIF
C56: S.US.AGC | D56: =IFERROR(RTD("cqg.rtd", ,"ContractData",C56, "PerCentNetLastTrade",, "T")/100,"") -> 0 | E56: 1248 | F56: 1248 | G56: S.US.AGC | H56: 56 | I56: S.US.MYOV
C57: S.US.AGCO | D57: =IFERROR(RTD("cqg.rtd", ,"ContractData",C57, "PerCentNetLastTrade",, "T")/100,"") -> 0.005946791862 | E57: 584 | F57: 584 | G57: S.US.AGCO | H57: 57 | I57: S.US.IMAX
C58: S.US.AGD | D58: =IFERROR(RTD("cqg.rtd", ,"ContractData",C58, "PerCentNetLastTrade",, "T")/100,"") -> 0.00756859035 | E58: 445 | F58: 445 | G58: S.US.AGD | H58: 58 | I58: S.US.PPDF
C59: S.US.AGI | D59: =IFERROR(RTD("cqg.rtd", ,"ContractData",C59, "PerCentNetLastTrade",, "T")/100,"") -> -0.02676864245 | E59: 2369 | F59: 2369 | G59: S.US.AGI | H59: 59 | I59: S.US.VLRS
C60: S.US.AGM | D60: =IFERROR(RTD("cqg.rtd", ,"ContractData",C60, "PerCentNetLastTrade",, "T")/100,"") -> 0.002925687537 | E60: 892 | F60: 892 | G60: S.US.AGM | H60: 60 | I60: S.US.JT
C61: S.US.AGMA | D61: =IFERROR(RTD("cqg.rtd", ,"ContractData",C61, "PerCentNetLastTrade",, "T")/100,"") ->  | G61: S.US.AGMA | H61: 61 | I61: S.US.MDLY
C62: S.US.AGN | D62: =IFERROR(RTD("cqg.rtd", ,"ContractData",C62, "PerCentNetLastTrade",, "T")/100,"") -> 0.01585518102 | E62: 142 | F62: 142 | G62: S.US.AGN | H62: 62 | I62: S.US.PER
C63: S.US.AGNPA | D63: =IFERROR(RTD("cqg.rtd", ,"ContractData",C63, "PerCentNetLastTrade",, "T")/100,"") ->  | G63: S.US.AGNPA | H63: 63 | I63: S.US.WGO
C64: S.US.AGO | D64: =IFERROR(RTD("cqg.rtd", ,"ContractData",C64, "PerCentNetLastTrade",, "T")/100,"") -> -0.007117437722 | E64: 1945 | F64: 1945 | G64: S.US.AGO | H64: 64 | I64: S.US.CIEN
C65: S.US.AGP | D65: =IFERROR(RTD("cqg.rtd", ,"ContractData",C65, "PerCentNetLastTrade",, "T")/100,"") ->  | G65: S.US.AGP | H65: 65 | I65: S.US.JWN
C66: S.US.AGR | D66: =IFERROR(RTD("cqg.rtd", ,"ContractData",C66, "PerCentNetLastTrade",, "T")/100,"") -> 0.004822182037 | E66: 689 | F66: =IFERROR(E66,"") -> 689 | G66: =C66 -> S.US.AGR | H66: 66 | I66: =IFERROR(VLOOKUP(H66,$F$1:$G$2776,2,FALSE),"") -> S.US.TISI
C67: S.US.AGRO | D67: =IFERROR(RTD("cqg.rtd", ,"ContractData",C67, "PerCentNetLastTrade",, "T")/100,"") -> 0.005284015852 | E67: 638 | F67: 638 | G67: S.US.AGRO | H67: =H66+1 -> 67 | I67: S.US.ESNT
C68: S.US.AGS | D68: =IFERROR(RTD("cqg.rtd", ,"ContractData",C68, "PerCentNetLastTrade",, "T")/100,"") -> 0.01888530631 | E68: 110 | F68: 110 | G68: S.US.AGS | H68: 68 | I68: S.US.DCP
C69: S.US.AGX | D69: =IFERROR(RTD("cqg.rtd", ,"ContractData",C69, "PerCentNetLastTrade",, "T")/100,"") -> -0.001290322581 | E69: 1464 | F69: 1464 | G69: S.US.AGX | H69: 69 | I69: S.US.MGM
C70: S.US.AHC | D70: =IFERROR(RTD("cqg.rtd", ,"ContractData",C70, "PerCentNetLastTrade",, "T")/100,"") -> 0 | E70: 1249 | F70: 1249 | G70: S.US.AHC | H70: 70 | I70: S.US.WD
C71: S.US.AHH | D71: =IFERROR(RTD("cqg.rtd", ,"ContractData",C71, "PerCentNetLastTrade",, "T")/100,"") -> -0.01121914734 | E71: 2148 | F71: 2148 | G71: S.US.AHH | H71: 71 | I71: S.US.KFY
C72: S.US.AHL | D72: =IFERROR(RTD("cqg.rtd", ,"ContractData",C72, "PerCentNetLastTrade",, "T")/100,"") -> -0.005834305718 | E72: 1878 | F72: 1878 | G72: S.US.AHL | H72: 72 | I72: S.US.GES
C73: S.US.AHP | D73: =IFERROR(RTD("cqg.rtd", ,"ContractData",C73, "PerCentNetLastTrade",, "T")/100,"") -> 0.006382978723 | E73: 547 | F73: 547 | G73: S.US.AHP | H73: 73 | I73: S.US.MO
C74: S.US.AHT | D74: =IFERROR(RTD("cqg.rtd", ,"ContractData",C74, "PerCentNetLastTrade",, "T")/100,"") -> 0 | E74: 1250 | F74: 1250 | G74: S.US.AHT | H74: 74 | I74: S.US.PAGS
C75: S.US.AI | D75: =IFERROR(RTD("cqg.rtd", ,"ContractData",C75, "PerCentNetLastTrade",, "T")/100,"") -> 0.008576329331 | E75: 374 | F75: 374 | G75: S.US.AI | H75: 75 | I75: S.US.M
C76: S.US.AIB | D76: =IFERROR(RTD("cqg.rtd", ,"ContractData",C76, "PerCentNetLastTrade",, "T")/100,"") ->  | G76: S.US.AIB | H76: 76 | I76: S.US.NCLH
C77: S.US.AIF | D77: =IFERROR(RTD("cqg.rtd", ,"ContractData",C77, "PerCentNetLastTrade",, "T")/100,"") -> 0.001277139208 | E77: 1095 | F77: 1095 | G77: S.US.AIF | H77: 77 | I77: S.US.KBH
C78: S.US.AIG | D78: =IFERROR(RTD("cqg.rtd", ,"ContractData",C78, "PerCentNetLastTrade",, "T")/100,"") -> 0.006271905552 | E78: 561 | F78: 561 | G78: S.US.AIG | H78: 78 | I78: S.US.IRM
C79: S.US.AIN | D79: =IFERROR(RTD("cqg.rtd", ,"ContractData",C79, "PerCentNetLastTrade",, "T")/100,"") -> -0.002029664325 | E79: 1553 | F79: 1553 | G79: S.US.AIN | H79: 79 | I79: S.US.CHL
C80: S.US.AIR | D80: =IFERROR(RTD("cqg.rtd", ,"ContractData",C80, "PerCentNetLastTrade",, "T")/100,"") -> 0.01670480549 | E80: 131 | F80: 131 | G80: S.US.AIR | H80: 80 | I80: S.US.HVT
C81: S.US.AIT | D81: =IFERROR(RTD("cqg.rtd", ,"ContractData",C81, "PerCentNetLastTrade",, "T")/100,"") -> 0.003472222222 | E81: 826 | F81: 826 | G81: S.US.AIT | H81: 81 | I81: S.US.CVNA
C82: S.US.AIV | D82: =IFERROR(RTD("cqg.rtd", ,"ContractData",C82, "PerCentNetLastTrade",, "T")/100,"") -> 0.004859335038 | E82: 685 | F82: 685 | G82: S.US.AIV | H82: 82 | I82: S.US.NOAH
C83: S.US.AIW | D83: =IFERROR(RTD("cqg.rtd", ,"ContractData",C83, "PerCentNetLastTrade",, "T")/100,"") ->  | G83: S.US.AIW | H83: 83 | I83: S.US.DRE
C84: S.US.AIY | D84: =IFERROR(RTD("cqg.rtd", ,"ContractData",C84, "PerCentNetLastTrade",, "T")/100,"") -> 0.0003898635478 | E84: 1222 | F84: 1222 | G84: S.US.AIY | H84: 84 | I84: S.US.GTN
C85: S.US.AIZ | D85: =IFERROR(RTD("cqg.rtd", ,"ContractData",C85, "PerCentNetLastTrade",, "T")/100,"") -> -0.003302509908 | E85: 1664 | F85: 1664 | G85: S.US.AIZ | H85: 85 | I85: S.US.TPC
C86: S.US.AJG | D86: =IFERROR(RTD("cqg.rtd", ,"ContractData",C86, "PerCentNetLastTrade",, "T")/100,"") -> 0.00542283453 | E86: 623 | F86: 623 | G86: S.US.AJG | H86: 86 | I86: S.US.EXD
C87: S.US.AJRD | D87: =IFERROR(RTD("cqg.rtd", ,"ContractData",C87, "PerCentNetLastTrade",, "T")/100,"") -> 0.005341880342 | E87: 632 | F87: 632 | G87: S.US.AJRD | H87: 87 | I87: S.US.ORA
C88: S.US.AJX | D88: =IFERROR(RTD("cqg.rtd", ,"ContractData",C88, "PerCentNetLastTrade",, "T")/100,"") -> -0.002274450341 | E88: 1580 | F88: 1580 | G88: S.US.AJX | H88: 88 | I88: S.US.KTP
C89: S.US.AKOA | D89: =IFERROR(RTD("cqg.rtd", ,"ContractData",C89, "PerCentNetLastTrade",, "T")/100,"") ->  | G89: S.US.AKOA | H89: 89 | I89: S.US.RYB
C90: S.US.AKOB | D90: =IFERROR(RTD("cqg.rtd", ,"ContractData",C90, "PerCentNetLastTrade",, "T")/100,"") ->  | G90: S.US.AKOB | H90: 90 | I90: S.US.QTWO
C91: S.US.AKP | D91: =IFERROR(RTD("cqg.rtd", ,"ContractData",C91, "PerCentNetLastTrade",, "T")/100,"") -> -0.004716981132 | E91: 1788 | F91: 1788 | G91: S.US.AKP | H91: 91 | I91: S.US.CP
C92: S.US.AKR | D92: =IFERROR(RTD("cqg.rtd", ,"ContractData",C92, "PerCentNetLastTrade",, "T")/100,"") -> -0.008649093904 | E92: 2025 | F92: 2025 | G92: S.US.AKR | H92: 92 | I92: S.US.TNP
C93: S.US.AKS | D93: =IFERROR(RTD("cqg.rtd", ,"ContractData",C93, "PerCentNetLastTrade",, "T")/100,"") -> -0.006637168142 | E93: 1920 | F93: 1920 | G93: S.US.AKS | H93: 93 | I93: S.US.SLCA
C94: S.US.AL | D94: =IFERROR(RTD("cqg.rtd", ,"ContractData",C94, "PerCentNetLastTrade",, "T")/100,"") -> 0.00328022493 | E94: 854 | F94: 854 | G94: S.US.AL | H94: 94 | I94: S.US.BGS
C95: S.US.ALB | D95: =IFERROR(RTD("cqg.rtd", ,"ContractData",C95, "PerCentNetLastTrade",, "T")/100,"") -> 0.01017380246 | E95: 300 | F95: 300 | G95: S.US.ALB | H95: 95 | I95: S.US.WMK
C96: S.US.ALDW | D96: =IFERROR(RTD("cqg.rtd", ,"ContractData",C96, "PerCentNetLastTrade",, "T")/100,"") ->  | G96: S.US.ALDW | H96: 96 | I96: S.US.BH
C97: S.US.ALE | D97: =IFERROR(RTD("cqg.rtd", ,"ContractData",C97, "PerCentNetLastTrade",, "T")/100,"") -> 0.004792782633 | E97: 692 | F97: 692 | G97: S.US.ALE | H97: 97 | I97: S.US.SVU
C98: S.US.ALEX | D98: =IFERROR(RTD("cqg.rtd", ,"ContractData",C98, "PerCentNetLastTrade",, "T")/100,"") -> -0.00258955546 | E98: 1606 | F98: 1606 | G98: S.US.ALEX | H98: 98 | I98: S.US.MOH
C99: S.US.ALG | D99: =IFERROR(RTD("cqg.rtd", ,"ContractData",C99, "PerCentNetLastTrade",, "T")/100,"") -> -0.007336692301 | E99: 1960 | F99: 1960 | G99: S.US.ALG | H99: 99 | I99: S.US.LOMA
C100: S.US.ALK | D100: =IFERROR(RTD("cqg.rtd", ,"ContractData",C100, "PerCentNetLastTrade",, "T")/100,"") -> 0.0008043758044 | E100: 1169 | F100: 1169 | G100: S.US.ALK | H100: 100 | I100: S.US.CLDR
C101: S.US.ALL | D101: =IFERROR(RTD("cqg.rtd", ,"ContractData",C101, "PerCentNetLastTrade",, "T")/100,"") -> 0.002539145154 | E101: 937 | F101: 937 | G101: S.US.ALL | H101: 101 | I101: S.US.DK
C102: S.US.ALLE | D102: =IFERROR(RTD("cqg.rtd", ,"ContractData",C102, "PerCentNetLastTrade",, "T")/100,"") -> 0.009697256386 | E102: 321 | F102: 321 | G102: S.US.ALLE | H102: 102 | I102: S.US.TM
C103: S.US.ALLY | D103: =IFERROR(RTD("cqg.rtd", ,"ContractData",C103, "PerCentNetLastTrade",, "T")/100,"") -> 0.003373313343 | E103: 843 | F103: 843 | G103: S.US.ALLY | H103: 103 | I103: S.US.NGVC
C104: S.US.ALSN | D104: =IFERROR(RTD("cqg.rtd", ,"ContractData",C104, "PerCentNetLastTrade",, "T")/100,"") -> -0.005674490586 | E104: 1866 | F104: 1866 | G104: S.US.ALSN | H104: 104 | I104: S.US.PLD
C105: S.US.ALU | D105: =IFERROR(RTD("cqg.rtd", ,"ContractData",C105, "PerCentNetLastTrade",, "T")/100,"") ->  | G105: S.US.ALU | H105: 105 | I105: S.US.SOL
C106: S.US.ALV | D106: =IFERROR(RTD("cqg.rtd", ,"ContractData",C106, "PerCentNetLastTrade",, "T")/100,"") -> 0.004695780506 | E106: 705 | F106: 705 | G106: S.US.ALV | H106: 106 | I106: S.US.COE
C107: S.US.ALX | D107: =IFERROR(RTD("cqg.rtd", ,"ContractData",C107, "PerCentNetLastTrade",, "T")/100,"") -> 0.00950595796 | E107: 330 | F107: 330 | G107: S.US.ALX | H107: 107 | I107: S.US.NKE
C108: S.US.AM | D108: =IFERROR(RTD("cqg.rtd", ,"ContractData",C108, "PerCentNetLastTrade",, "T")/100,"") -> 0.005564387917 | E108: 611 | F108: 611 | G108: S.US.AM | H108: 108 | I108: S.US.ZEN
C109: S.US.AMBR | D109: =IFERROR(RTD("cqg.rtd", ,"ContractData",C109, "PerCentNetLastTrade",, "T")/100,"") -> -0.0033632287 | E109: 1670 | F109: 1670 | G109: S.US.AMBR | H109: 109 | I109: S.US.SEAS
C110: S.US.AMC | D110: =IFERROR(RTD("cqg.rtd", ,"ContractData",C110, "PerCentNetLastTrade",, "T")/100,"") -> 0.003584229391 | E110: 815 | F110: 815 | G110: S.US.AMC | H110: 110 | I110: S.US.AGS
C111: S.US.AME | D111: =IFERROR(RTD("cqg.rtd", ,"ContractData",C111, "PerCentNetLastTrade",, "T")/100,"") -> -0.001432478187 | E111: 1481 | F111: 1481 | G111: S.US.AME | H111: 111 | I111: S.US.TK
C112: S.US.AMG | D112: =IFERROR(RTD("cqg.rtd", ,"ContractData",C112, "PerCentNetLastTrade",, "T")/100,"") -> 0.001166489926 | E112: 1112 | F112: 1112 | G112: S.US.AMG | H112: 112 | I112: S.US.DCO
C113: S.US.AMGP | D113: =IFERROR(RTD("cqg.rtd", ,"ContractData",C113, "PerCentNetLastTrade",, "T")/100,"") -> -0.007430340557 | E113: 1971 | F113: 1971 | G113: S.US.AMGP | H113: 113 | I113: S.US.FG
C114: S.US.AMH | D114: =IFERROR(RTD("cqg.rtd", ,"ContractData",C114, "PerCentNetLastTrade",, "T")/100,"") -> 0.007796257796 | E114: 427 | F114: 427 | G114: S.US.AMH | H114: 114 | I114: S.US.CHA
C115: S.US.AMID | D115: =IFERROR(RTD("cqg.rtd", ,"ContractData",C115, "PerCentNetLastTrade",, "T")/100,"") -> -0.03448275862 | E115: 2409 | F115: 2409 | G115: S.US.AMID | H115: 115 | I115: S.US.ZAYO
C116: S.US.AMN | D116: =IFERROR(RTD("cqg.rtd", ,"ContractData",C116, "PerCentNetLastTrade",, "T")/100,"") -> 0.007772020725 | E116: 431 | F116: 431 | G116: S.US.AMN | H116: 116 | I116: S.US.CCT
C117: S.US.AMP | D117: =IFERROR(RTD("cqg.rtd", ,"ContractData",C117, "PerCentNetLastTrade",, "T")/100,"") -> 0.007823470411 | E117: 425 | F117: 425 | G117: S.US.AMP | H117: 117 | I117: S.US.USG
C118: S.US.AMRC | D118: =IFERROR(RTD("cqg.rtd", ,"ContractData",C118, "PerCentNetLastTrade",, "T")/100,"") -> 0 | E118: 1251 | F118: 1251 | G118: S.US.AMRC | H118: 118 | I118: S.US.QTM
C119: S.US.AMT | D119: =IFERROR(RTD("cqg.rtd", ,"ContractData",C119, "PerCentNetLastTrade",, "T")/100,"") -> -0.000344328903 | E119: 1351 | F119: 1351 | G119: S.US.AMT | H119: 119 | I119: S.US.THO
C120: S.US.AMTGPA | D120: =IFERROR(RTD("cqg.rtd", ,"ContractData",C120, "PerCentNetLastTrade",, "T")/100,"") ->  | G120: S.US.AMTGPA | H120: 120 | I120: S.US.DE
C121: S.US.AMX | D121: =IFERROR(RTD("cqg.rtd", ,"ContractData",C121, "PerCentNetLastTrade",, "T")/100,"") -> 0.008342022941 | E121: 391 | F121: 391 | G121: S.US.AMX | H121: 121 | I121: S.US.NWY
C122: S.US.AN | D122: =IFERROR(RTD("cqg.rtd", ,"ContractData",C122, "PerCentNetLastTrade",, "T")/100,"") -> 0.0006369426752 | E122: 1191 | F122: 1191 | G122: S.US.AN | H122: 122 | I122: S.US.OMI
C123: S.US.ANDV | D123: =IFERROR(RTD("cqg.rtd", ,"ContractData",C123, "PerCentNetLastTrade",, "T")/100,"") -> -0.003757949509 | E123: 1700 | F123: 1700 | G123: S.US.ANDV | H123: 123 | I123: S.US.CIR
C124: S.US.ANDX | D124: =IFERROR(RTD("cqg.rtd", ,"ContractData",C124, "PerCentNetLastTrade",, "T")/100,"") -> -0.006854009596 | E124: 1930 | F124: 1930 | G124: S.US.ANDX | H124: 124 | I124: S.US.NGL
C125: S.US.ANET | D125: =IFERROR(RTD("cqg.rtd", ,"ContractData",C125, "PerCentNetLastTrade",, "T")/100,"") -> -0.0009963834969 | E125: 1430 | F125: 1430 | G125: S.US.ANET | H125: 125 | I125: S.US.LB
C126: S.US.ANF | D126: =IFERROR(RTD("cqg.rtd", ,"ContractData",C126, "PerCentNetLastTrade",, "T")/100,"") -> -0.007392197125 | E126: 1967 | F126: 1967 | G126: S.US.ANF | H126: 126 | I126: S.US.ATEN
C127: S.US.ANFI | D127: =IFERROR(RTD("cqg.rtd", ,"ContractData",C127, "PerCentNetLastTrade",, "T")/100,"") -> 0.01193317422 | E127: 228 | F127: 228 | G127: S.US.ANFI | H127: 127 | I127: S.US.LNC
C128: S.US.ANH | D128: =IFERROR(RTD("cqg.rtd", ,"ContractData",C128, "PerCentNetLastTrade",, "T")/100,"") -> 0.004106776181 | E128: 770 | F128: 770 | G128: S.US.ANH | H128: 128 | I128: S.US.JEQ
C129: S.US.ANHPA | D129: =IFERROR(RTD("cqg.rtd", ,"ContractData",C129, "PerCentNetLastTrade",, "T")/100,"") -> 0.003474903475 | E129: 825 | F129: 825 | G129: S.US.ANHPA | H129: 129 | I129: S.US.MX
C130: S.US.ANTM | D130: =IFERROR(RTD("cqg.rtd", ,"ContractData",C130, "PerCentNetLastTrade",, "T")/100,"") -> 0.007644291659 | E130: 438 | F130: =IFERROR(E130,"") -> 438 | G130: =C130 -> S.US.ANTM | H130: 130 | I130: =IFERROR(VLOOKUP(H130,$F$1:$G$2776,2,FALSE),"") -> S.US.APB
C131: S.US.ANTX | D131: =IFERROR(RTD("cqg.rtd", ,"ContractData",C131, "PerCentNetLastTrade",, "T")/100,"") -> 0.003519170217 | E131: 822 | F131: 822 | G131: S.US.ANTX | H131: =H130+1 -> 131 | I131: S.US.AIR
C132: S.US.ANW | D132: =IFERROR(RTD("cqg.rtd", ,"ContractData",C132, "PerCentNetLastTrade",, "T")/100,"") -> -0.02564102564 | E132: 2375 | F132: 2375 | G132: S.US.ANW | H132: 132 | I132: S.US.SWCH
C133: S.US.AOD | D133: =IFERROR(RTD("cqg.rtd", ,"ContractData",C133, "PerCentNetLastTrade",, "T")/100,"") -> 0.007829977629 | E133: 424 | F133: 424 | G133: S.US.AOD | H133: 133 | I133: S.US.RSPP
C134: S.US.AOI | D134: =IFERROR(RTD("cqg.rtd", ,"ContractData",C134, "PerCentNetLastTrade",, "T")/100,"") -> 0.002510460251 | E134: 940 | F134: 940 | G134: S.US.AOI | H134: 134 | I134: S.US.GIS
C135: S.US.AON | D135: =IFERROR(RTD("cqg.rtd", ,"ContractData",C135, "PerCentNetLastTrade",, "T")/100,"") -> -0.002485795455 | E135: 1597 | F135: 1597 | G135: S.US.AON | H135: 135 | I135: S.US.TTM
C136: S.US.AOS | D136: =IFERROR(RTD("cqg.rtd", ,"ContractData",C136, "PerCentNetLastTrade",, "T")/100,"") -> -0.007317452904 | E136: 1959 | F136: 1959 | G136: S.US.AOS | H136: 136 | I136: S.US.LC
C137: S.US.AP | D137: =IFERROR(RTD("cqg.rtd", ,"ContractData",C137, "PerCentNetLastTrade",, "T")/100,"") -> -0.02673796791 | E137: 2382 | F137: 2382 | G137: S.US.AP | H137: 137 | I137: S.US.GCO
C138: S.US.APA | D138: =IFERROR(RTD("cqg.rtd", ,"ContractData",C138, "PerCentNetLastTrade",, "T")/100,"") -> -0.009924892704 | E138: 2091 | F138: 2091 | G138: S.US.APA | H138: 138 | I138: S.US.WAB
C139: S.US.APAM | D139: =IFERROR(RTD("cqg.rtd", ,"ContractData",C139, "PerCentNetLastTrade",, "T")/100,"") -> -0.00736377025 | E139: 1965 | F139: 1965 | G139: S.US.APAM | H139: 139 | I139: S.US.LGF
C140: S.US.APB | D140: =IFERROR(RTD("cqg.rtd", ,"ContractData",C140, "PerCentNetLastTrade",, "T")/100,"") -> 0.01677148847 | E140: 130 | F140: 130 | G140: S.US.APB | H140: 140 | I140: S.US.UAL
C141: S.US.APC | D141: =IFERROR(RTD("cqg.rtd", ,"ContractData",C141, "PerCentNetLastTrade",, "T")/100,"") -> -0.006550567183 | E141: 1911 | F141: 1911 | G141: S.US.APC | H141: 141 | I141: S.US.EXR
C142: S.US.APD | D142: =IFERROR(RTD("cqg.rtd", ,"ContractData",C142, "PerCentNetLastTrade",, "T")/100,"") -> -0.0008698893998 | E142: 1421 | F142: 1421 | G142: S.US.APD | H142: 142 | I142: S.US.AGN
C143: S.US.APF | D143: =IFERROR(RTD("cqg.rtd", ,"ContractData",C143, "PerCentNetLastTrade",, "T")/100,"") -> -0.002207505519 | E143: 1575 | F143: 1575 | G143: S.US.APF | H143: 143 | I143: S.US.WLK
C144: S.US.APFH | D144: =IFERROR(RTD("cqg.rtd", ,"ContractData",C144, "PerCentNetLastTrade",, "T")/100,"") ->  | G144: S.US.APFH | H144: 144 | I144: S.US.FR
C145: S.US.APH | D145: =IFERROR(RTD("cqg.rtd", ,"ContractData",C145, "PerCentNetLastTrade",, "T")/100,"") -> 0.002411298657 | E145: 952 | F145: 952 | G145: S.US.APH | H145: 145 | I145: S.US.CGG
C146: S.US.APL | D146: =IFERROR(RTD("cqg.rtd", ,"ContractData",C146, "PerCentNetLastTrade",, "T")/100,"") ->  | G146: S.US.APL | H146: 146 | I146: S.US.REXR
C147: S.US.APLE | D147: =IFERROR(RTD("cqg.rtd", ,"ContractData",C147, "PerCentNetLastTrade",, "T")/100,"") -> 0.002340550029 | E147: 965 | F147: 965 | G147: S.US.APLE | H147: 147 | I147: S.US.EGP
C148: S.US.APO | D148: =IFERROR(RTD("cqg.rtd", ,"ContractData",C148, "PerCentNetLastTrade",, "T")/100,"") -> 0.004588659456 | E148: 717 | F148: 717 | G148: S.US.APO | H148: 148 | I148: S.US.TV
C149: S.US.APRN | D149: =IFERROR(RTD("cqg.rtd", ,"ContractData",C149, "PerCentNetLastTrade",, "T")/100,"") -> 0.03571428571 | E149: 29 | F149: 29 | G149: S.US.APRN | H149: 149 | I149: S.US.HMC
C150: S.US.APTS | D150: =IFERROR(RTD("cqg.rtd", ,"ContractData",C150, "PerCentNetLastTrade",, "T")/100,"") -> -0.002861230329 | E150: 1622 | F150: 1622 | G150: S.US.APTS | H150: 150 | I150: S.US.CBSA
C151: S.US.APTV | D151: =IFERROR(RTD("cqg.rtd", ,"ContractData",C151, "PerCentNetLastTrade",, "T")/100,"") -> 0.01328786453 | E151: 194 | F151: 194 | G151: S.US.APTV | H151: 151 | I151: S.US.MNR
C152: S.US.APU | D152: =IFERROR(RTD("cqg.rtd", ,"ContractData",C152, "PerCentNetLastTrade",, "T")/100,"") -> -0.02484013773 | E152: 2368 | F152: 2368 | G152: S.US.APU | H152: 152 | I152: S.US.RLGY
C153: S.US.AQ | D153: =IFERROR(RTD("cqg.rtd", ,"ContractData",C153, "PerCentNetLastTrade",, "T")/100,"") -> 0.002365464222 | E153: 961 | F153: 961 | G153: S.US.AQ | H153: 153 | I153: S.US.DESP
C154: S.US.AQN | D154: =IFERROR(RTD("cqg.rtd", ,"ContractData",C154, "PerCentNetLastTrade",, "T")/100,"") -> 0.007063572149 | E154: 488 | F154: 488 | G154: S.US.AQN | H154: 154 | I154: S.US.HUN
C155: S.US.AQUA | D155: =IFERROR(RTD("cqg.rtd", ,"ContractData",C155, "PerCentNetLastTrade",, "T")/100,"") -> 0.00187090739 | E155: 1009 | F155: 1009 | G155: S.US.AQUA | H155: 155 | I155: S.US.VOC
C156: S.US.AR | D156: =IFERROR(RTD("cqg.rtd", ,"ContractData",C156, "PerCentNetLastTrade",, "T")/100,"") -> -0.009113924051 | E156: 2048 | F156: 2048 | G156: S.US.AR | H156: 156 | I156: S.US.CALX
C157: S.US.ARA | D157: =IFERROR(RTD("cqg.rtd", ,"ContractData",C157, "PerCentNetLastTrade",, "T")/100,"") -> -0.1346153846 | E157: 2434 | F157: 2434 | G157: S.US.ARA | H157: 157 | I157: S.US.KEP
C158: S.US.ARC | D158: =IFERROR(RTD("cqg.rtd", ,"ContractData",C158, "PerCentNetLastTrade",, "T")/100,"") -> -0.01339285714 | E158: 2212 | F158: 2212 | G158: S.US.ARC | H158: 158 | I158: S.US.TGS
C159: S.US.ARCH | D159: =IFERROR(RTD("cqg.rtd", ,"ContractData",C159, "PerCentNetLastTrade",, "T")/100,"") -> -0.01125401929 | E159: 2151 | F159: 2151 | G159: S.US.ARCH | H159: 159 | I159: S.US.SHG
C160: S.US.ARCO | D160: =IFERROR(RTD("cqg.rtd", ,"ContractData",C160, "PerCentNetLastTrade",, "T")/100,"") -> -0.005617977528 | E160: 1858 | F160: 1858 | G160: S.US.ARCO | H160: 160 | I160: S.US.CAE
C161: S.US.ARCX | D161: =IFERROR(RTD("cqg.rtd", ,"ContractData",C161, "PerCentNetLastTrade",, "T")/100,"") ->  | G161: S.US.ARCX | H161: 161 | I161: S.US.CACI
C162: S.US.ARD | D162: =IFERROR(RTD("cqg.rtd", ,"ContractData",C162, "PerCentNetLastTrade",, "T")/100,"") -> -0.01106427819 | E162: 2141 | F162: 2141 | G162: S.US.ARD | H162: 162 | I162: S.US.DPLO
C163: S.US.ARDC | D163: =IFERROR(RTD("cqg.rtd", ,"ContractData",C163, "PerCentNetLastTrade",, "T")/100,"") -> -0.004910988336 | E163: 1803 | F163: 1803 | G163: S.US.ARDC | H163: 163 | I163: S.US.XIN
C164: S.US.ARE | D164: =IFERROR(RTD("cqg.rtd", ,"ContractData",C164, "PerCentNetLastTrade",, "T")/100,"") -> 0.009908347783 | E164: 314 | F164: 314 | G164: S.US.ARE | H164: 164 | I164: S.US.SFE
C165: S.US.ARES | D165: =IFERROR(RTD("cqg.rtd", ,"ContractData",C165, "PerCentNetLastTrade",, "T")/100,"") -> -0.01149425287 | E165: 2167 | F165: 2167 | G165: S.US.ARES | H165: 165 | I165: S.US.AXL
C166: S.US.ARG | D166: =IFERROR(RTD("cqg.rtd", ,"ContractData",C166, "PerCentNetLastTrade",, "T")/100,"") ->  | G166: S.US.ARG | H166: 166 | I166: S.US.HUBS
C167: S.US.ARI | D167: =IFERROR(RTD("cqg.rtd", ,"ContractData",C167, "PerCentNetLastTrade",, "T")/100,"") -> -0.002190580504 | E167: 1572 | F167: 1572 | G167: S.US.ARI | H167: 167 | I167: S.US.KT
C168: S.US.ARK | D168: =IFERROR(RTD("cqg.rtd", ,"ContractData",C168, "PerCentNetLastTrade",, "T")/100,"") ->  | G168: S.US.ARK | H168: 168 | I168: S.US.JHX
C169: S.US.ARL | D169: =IFERROR(RTD("cqg.rtd", ,"ContractData",C169, "PerCentNetLastTrade",, "T")/100,"") -> 0.007793472966 | E169: 428 | F169: 428 | G169: S.US.ARL | H169: 169 | I169: S.US.TBI
C170: S.US.ARMF | D170: =IFERROR(RTD("cqg.rtd", ,"ContractData",C170, "PerCentNetLastTrade",, "T")/100,"") ->  | G170: S.US.ARMF | H170: 170 | I170: S.US.RHP
C171: S.US.ARMK | D171: =IFERROR(RTD("cqg.rtd", ,"ContractData",C171, "PerCentNetLastTrade",, "T")/100,"") -> -0.002508151492 | E171: 1600 | F171: 1600 | G171: S.US.ARMK | H171: 171 | I171: S.US.AAP
C172: S.US.AROC | D172: =IFERROR(RTD("cqg.rtd", ,"ContractData",C172, "PerCentNetLastTrade",, "T")/100,"") -> -0.02541436464 | E172: 2373 | F172: 2373 | G172: S.US.AROC | H172: 172 | I172: S.US.BBT
C173: S.US.ARP | D173: =IFERROR(RTD("cqg.rtd", ,"ContractData",C173, "PerCentNetLastTrade",, "T")/100,"") ->  | G173: S.US.ARP | H173: 173 | I173: S.US.DSX
C174: S.US.ARPI | D174: =IFERROR(RTD("cqg.rtd", ,"ContractData",C174, "PerCentNetLastTrade",, "T")/100,"") ->  | G174: S.US.ARPI | H174: 174 | I174: S.US.FIT
C175: S.US.ARR | D175: =IFERROR(RTD("cqg.rtd", ,"ContractData",C175, "PerCentNetLastTrade",, "T")/100,"") -> 0.0008771929825 | E175: 1152 | F175: 1152 | G175: S.US.ARR | H175: 175 | I175: S.US.VRTV
C176: S.US.ARU | D176: =IFERROR(RTD("cqg.rtd", ,"ContractData",C176, "PerCentNetLastTrade",, "T")/100,"") ->  | G176: S.US.ARU | H176: 176 | I176: S.US.DWDP
C177: S.US.ARW | D177: =IFERROR(RTD("cqg.rtd", ,"ContractData",C177, "PerCentNetLastTrade",, "T")/100,"") -> 0.004969268994 | E177: 669 | F177: 669 | G177: S.US.ARW | H177: 177 | I177: S.US.GCI
C178: S.US.ARY | D178: =IFERROR(RTD("cqg.rtd", ,"ContractData",C178, "PerCentNetLastTrade",, "T")/100,"") ->  | G178: S.US.ARY | H178: 178 | I178: S.US.AAT
C179: S.US.ASA | D179: =IFERROR(RTD("cqg.rtd", ,"ContractData",C179, "PerCentNetLastTrade",, "T")/100,"") -> -0.01885014138 | E179: 2310 | F179: 2310 | G179: S.US.ASA | H179: 179 | I179: S.US.SUI
C180: S.US.ASB | D180: =IFERROR(RTD("cqg.rtd", ,"ContractData",C180, "PerCentNetLastTrade",, "T")/100,"") -> -0.01102362205 | E180: 2138 | F180: 2138 | G180: S.US.ASB | H180: 180 | I180: S.US.DCT
C181: S.US.ASC | D181: =IFERROR(RTD("cqg.rtd", ,"ContractData",C181, "PerCentNetLastTrade",, "T")/100,"") -> -0.003773584906 | E181: 1704 | F181: 1704 | G181: S.US.ASC | H181: 181 | I181: S.US.PEG
C182: S.US.ASG | D182: =IFERROR(RTD("cqg.rtd", ,"ContractData",C182, "PerCentNetLastTrade",, "T")/100,"") -> 0 | E182: 1252 | F182: 1252 | G182: S.US.ASG | H182: 182 | I182: S.US.MLR
C183: S.US.ASGN | D183: =IFERROR(RTD("cqg.rtd", ,"ContractData",C183, "PerCentNetLastTrade",, "T")/100,"") -> -0.0002438132391 | E183: 1360 | F183: 1360 | G183: S.US.ASGN | H183: 183 | I183: S.US.EXPR
C184: S.US.ASH | D184: =IFERROR(RTD("cqg.rtd", ,"ContractData",C184, "PerCentNetLastTrade",, "T")/100,"") -> -0.008334530823 | E184: 2012 | F184: 2012 | G184: S.US.ASH | H184: 184 | I184: S.US.MTL
C185: S.US.ASI | D185: =IFERROR(RTD("cqg.rtd", ,"ContractData",C185, "PerCentNetLastTrade",, "T")/100,"") ->  | G185: S.US.ASI | H185: 185 | I185: S.US.IX
C186: S.US.ASIX | D186: =IFERROR(RTD("cqg.rtd", ,"ContractData",C186, "PerCentNetLastTrade",, "T")/100,"") -> 0.0005753739931 | E186: 1201 | F186: 1201 | G186: S.US.ASIX | H186: 186 | I186: S.US.ERJ
C187: S.US.ASPN | D187: =IFERROR(RTD("cqg.rtd", ,"ContractData",C187, "PerCentNetLastTrade",, "T")/100,"") -> -0.004705882353 | E187: 1787 | F187: 1787 | G187: S.US.ASPN | H187: 187 | I187: S.US.IAE
C188: S.US.ASR | D188: =IFERROR(RTD("cqg.rtd", ,"ContractData",C188, "PerCentNetLastTrade",, "T")/100,"") -> -0.01001164144 | E188: 2096 | F188: 2096 | G188: S.US.ASR | H188: 188 | I188: S.US.FE
C189: S.US.ASX | D189: =IFERROR(RTD("cqg.rtd", ,"ContractData",C189, "PerCentNetLastTrade",, "T")/100,"") -> 0.002754820937 | E189: 910 | F189: 910 | G189: S.US.ASX | H189: 189 | I189: S.US.VGR
C190: S.US.AT | D190: =IFERROR(RTD("cqg.rtd", ,"ContractData",C190, "PerCentNetLastTrade",, "T")/100,"") -> 0.03333333333 | E190: 36 | F190: 36 | G190: S.US.AT | H190: 190 | I190: S.US.HCP
C191: S.US.ATE | D191: =IFERROR(RTD("cqg.rtd", ,"ContractData",C191, "PerCentNetLastTrade",, "T")/100,"") ->  | G191: S.US.ATE | H191: 191 | I191: S.US.WUBA
C192: S.US.ATEN | D192: =IFERROR(RTD("cqg.rtd", ,"ContractData",C192, "PerCentNetLastTrade",, "T")/100,"") -> 0.01718213058 | E192: 126 | F192: 126 | G192: S.US.ATEN | H192: 192 | I192: S.US.PAR
C193: S.US.ATGE | D193: =IFERROR(RTD("cqg.rtd", ,"ContractData",C193, "PerCentNetLastTrade",, "T")/100,"") -> -0.001043841336 | E193: 1437 | F193: 1437 | G193: S.US.ATGE | H193: 193 | I193: S.US.DECK
C194: S.US.ATH | D194: =IFERROR(RTD("cqg.rtd", ,"ContractData",C194, "PerCentNetLastTrade",, "T")/100,"") -> -0.001830756713 | E194: 1532 | F194: =IFERROR(E194,"") -> 1532 | G194: =C194 -> S.US.ATH | H194: 194 | I194: =IFERROR(VLOOKUP(H194,$F$1:$G$2776,2,FALSE),"") -> S.US.APTV
C195: S.US.ATHM | D195: =IFERROR(RTD("cqg.rtd", ,"ContractData",C195, "PerCentNetLastTrade",, "T")/100,"") -> 0.0001146263182 | E195: 1243 | F195: 1243 | G195: S.US.ATHM | H195: =H194+1 -> 195 | I195: S.US.FPI
C196: S.US.ATI | D196: =IFERROR(RTD("cqg.rtd", ,"ContractData",C196, "PerCentNetLastTrade",, "T")/100,"") -> -0.01947502117 | E196: 2321 | F196: 2321 | G196: S.US.ATI | H196: 196 | I196: S.US.TYL
C197: S.US.ATKR | D197: =IFERROR(RTD("cqg.rtd", ,"ContractData",C197, "PerCentNetLastTrade",, "T")/100,"") -> 0.005617977528 | E197: 604 | F197: 604 | G197: S.US.ATKR | H197: 197 | I197: S.US.OMC
C198: S.US.ATO | D198: =IFERROR(RTD("cqg.rtd", ,"ContractData",C198, "PerCentNetLastTrade",, "T")/100,"") -> 0.007100012241 | E198: 483 | F198: 483 | G198: S.US.ATO | H198: 198 | I198: S.US.ACC
C199: S.US.ATR | D199: =IFERROR(RTD("cqg.rtd", ,"ContractData",C199, "PerCentNetLastTrade",, "T")/100,"") -> -0.001020292484 | E199: 1433 | F199: 1433 | G199: S.US.ATR | H199: 199 | I199: S.US.SJI
C200: S.US.ATTO | D200: =IFERROR(RTD("cqg.rtd", ,"ContractData",C200, "PerCentNetLastTrade",, "T")/100,"") -> 0.03164556962 | E200: 44 | F200: 44 | G200: S.US.ATTO | H200: 200 | I200: S.US.JOF
... 2958 more rows
